Workbook

Sheet Lookups (hidden)
B3: EditText_WsName | C3: Employment NPIs
B4: EditText_FieldName | C4: FNPI 1d The number of unemployed adults who obtained and maintained employment for at least 180 days (up to a living wage).
B5: EditText_Text
B6: EditText_Status | C6: Cancel
B7: EditText_MaxLength | C7: 4000
B9: Max_Errors | C9: 500
B11: XML_Filename | C11: D:\Work\NASCSP - SmartForms\SmartForms 2019-20\Module 4 SmartForm - 2019-20.xml

Sheet Instructions
C2: Instructional Notes
B4: Module 4, Section A: Individual and Family National Performance Indicators (NPIs) - Data Entry Form
B6: Section A: Individual and Family NPIs Data Entry Form is comprised of indicators to report outcomes that fall under National Goal 1: Individuals and families with low incomes are stable and achieve economic security. The indicators are the vehicle by which CSBG Eligible Entities measure and report the outcomes they have achieved for individuals and families. All Individual and Family NPIs are optional, and there is a category for "Other Outcome Indicator".
B8: Module 4, Section B: Individual and Family Services - Data Entry Form
B9: Section B: Individual and Family Services Data Entry Form provides information on the work CSBG Eligible Entities did to help individuals and families achieve the outcomes listed in Section A. This standardized Individual and Family Services list will aid in analysis of the relationship between people, services, and outcomes.
B11: Module 4, Section C: All Characteristics Report - Data Entry Form
B12: Section C: The All Characteristics Report Data Entry Form collects data on all individuals and households, whether or not funded directly by CSBG. This demographic information strengthens the CSBG Annual Report by demonstrating who is being served by CSBG Eligible Entities.

Sheet Table of Contents
B5: Table of Contents
B7: Instructions
B9: Outstanding Errors and Warnings
B11: Employment Indicators (Employment NPIs)
B12: Education and Cognitive Development Indicators (Education NPIs)
B13: Income and Asset Building Indicators (Income NPIs)
B14: Housing Indicators (Housing NPIs)
B15: Health and Social/Behavioral Development Indicators (Health NPIs)
B16: Civic Engagement and Community Involvement Indicators (CivicEng&Comm NPIs)
B17: Outcomes Across Multiple Domains (Outcomes Across Mult Domains)
B19: Employment Services (Services Employment)
B20: Education and Cognitive Development Services (Services Education)
B21: Income and Asset Building Services (Services Income)
B22: Housing Services (Services Housing)
B23: Health and Social/Behavioral Development (Services Health and Social)
B24: Civic Engagement and Community Involvement (Services Civic Eng. & Comm Inv.)
B25: Services Supporting Multiple Domains (Support Services)
B27: All Characteristics Report (ALL Characteristics)
B29: Year to Year Comparisons NPIs
B30: Year to Year Comparisons SRVs
B31: Year to Year ALL Characteristic

Sheet Outstanding Errors and Warnings
E2: Double click in any row to go to the cell that generated the error or warning.
F3: Double Click
B4: Module 4 Errors and Warnings | F4: Below To
B5: Tab | C5: Data Field | D5: Severity | E5: Message Description | F5: Go To Field

Sheet Employment NPIs
C1: FY 2020 CSBG Annual Report
B2: Module 4, Section A: Individual and Family National Performance Indicators (FNPIs) - Data Entry Form
B3: Goal 1: Individuals and Families with low incomes are stable and achieve economic security.
B4: Employment Indicators
B5: Name of CSBG Eligible Entity Reporting: | D5: Southeastern Utah Association of Local Governments
B6: State: | D6: Utah | G6: DUNS: | H6: 097758627
B8: Employment (FNPI 1) | D8: I.) Number of Individuals Served in program(s) (#) | E8: II.) Target (#) | F8: III.) Actual Results (#) | G8: IV.) Percentage Achieving Outcome [III/ I = IV ] (% auto calculated) | H8: V.) Performance Target Accuracy (III/II = V] (% auto calculated) | I8: NPI Entry Status
B9: FNPI 1a The number of unemployed youth who obtained employment to gain skills or income. | D9: 11 | E9: 13 | F9: 9 | G9: =IFERROR(F9/D9,"") -> 0.8181818182 | H9: =IFERROR(F9/E9,"") -> 0.6923076923 | I9: OK
B10: FNPI 1b The number of unemployed adults who obtained employment (up to a living wage). | D10: 39 | E10: 50 | F10: 34 | G10: 0.8717948718 | H10: 0.68 | I10: OK
B11: FNPI 1c The number of unemployed adults who obtained and maintained employment for at least 90 days (up to a living wage). | D11: 42 | E11: 53 | F11: 35 | G11: 0.8333333333 | H11: 0.6603773585 | I11: OK
B12: FNPI 1d The number of unemployed adults who obtained and maintained employment for at least 180 days (up to a living wage). | D12: 31 | E12: 42 | F12: 27 | G12: 0.8709677419 | H12: 0.6428571429 | I12: OK
B13: FNPI 1e The number of unemployed adults who obtained employment (with a living wage or higher). | D13: 35 | E13: 44 | F13: 31 | G13: 0.8857142857 | H13: 0.7045454545 | I13: OK
B14: FNPI 1f The number of unemployed adults who obtained and maintained employment for at least 90 days (with a living wage or higher). | D14: 17 | E14: 19 | F14: 14 | G14: 0.8235294118 | H14: 0.7368421053 | I14: OK
B15: FNPI 1g The number of unemployed adults who obtained and maintained employment for at least 180 days (with a living wage or higher). | D15: 15 | E15: 18 | F15: 12 | G15: 0.8 | H15: 0.6666666667 | I15: OK
B17: Employment (FNPI 1) | D17: I.) Number of Individuals Served in program(s) (#) | E17: II.) Target (#) | F17: III.) Actual Results (#) | G17: IV.) Percentage Achieving Outcome [III/ I = IV ] (% auto calculated) | H17: V.) Performance Target Accuracy (III/II = V] (% auto calculated) | I17: NPI Entry Status
B18: FNPI 1h The number of employed participants in a career-advancement related program who entered or transitioned into a position that provided increased income and/or benefits. | D18: 39 | E18: 47 | F18: 32 | G18: =IFERROR(F18/D18,"") -> 0.8205128205 | H18: =IFERROR(F18/E18,"") -> 0.6808510638 | I18: OK
B19: FNPI 1h.1 The number of employed participants in a career advancement related program who increased income from employment through wage or salary amount increase. | C19: FNPI 1h.1 Of the above, the number of employed participants who Increased income from employment through wage or salary amount increase. | D19: 36 | E19: 45 | F19: 32 | G19: =IFERROR(F19/D19,"") -> 0.8888888889 | H19: =IFERROR(F19/E19,"") -> 0.7111111111 | I19: OK
B20: FNPI 1h.2 The number of employed participants in a career advancement related program who increased income from employment through hours worked increase. | C20: FNPI 1h.2 Of the above, the number of employed participants who increased income from employment through hours worked increase. | D20: 23 | E20: 27 | F20: 20 | G20: =IFERROR(F20/D20,"") -> 0.8695652174 | H20: =IFERROR(F20/E20,"") -> 0.7407407407 | I20: OK
B21: FNPI 1h.3 The number of employed participants in a career advancement related program who increased benefits related to employment. | C21: FNPI 1h.3 Of the above, the number of employed participants who increased benefits related to employment. | D21: 11 | E21: 14 | F21: 8 | G21: =IFERROR(F21/D21,"") -> 0.7272727273 | H21: =IFERROR(F21/E21,"") -> 0.5714285714 | I21: OK
B23: Other Employment Outcome Indicator (FNPI 1z) Please briefly describe the other indicator and specify the units used (number of individuals or households) | D23: I.) Number of Participants Served in program(s) (#) | E23: II.) Target (#) | F23: III.) Actual Results (#) | G23: IV.) Percentage Achieving Outcome [III/ I = IV ] (% auto calculated) | H23: V.) Performance Target Accuracy (III/II = V] (% auto calculated) | I23: NPI Entry Status
B24: FNPI 1z.1 | C24: Number of individuals who improved employment as a result of remote work programs. | D24: 12 | E24: 18 | F24: 10 | G24: =IFERROR(F24/D24,"") -> 0.8333333333 | H24: =IFERROR(F24/E24,"") -> 0.5555555556 | I24: OK
B25: FNPI 1z.2 | G25: =IFERROR(F25/D25,"") ->  | H25: =IFERROR(F25/E25,"") -> 
B26: FNPI 1z.3 | G26: =IFERROR(F26/D26,"") ->  | H26: =IFERROR(F26/E26,"") -> 
B27: FNPI 1z.4 | G27: =IFERROR(F27/D27,"") ->  | H27: =IFERROR(F27/E27,"") -> 
B28: FNPI 1z.5 | G28: =IFERROR(F28/D28,"") ->  | H28: =IFERROR(F28/E28,"") -> 
I29: =IF(OR(AND(AND(D29<>"",D29<>0),AND(E29<>"",E29<>0),F29<>""),AND(OR(D29="",D29=0),OR(E29="",E29=0),OR(F29="",F29=0))),"","Row Incomplete") -> 
M50: 1

Sheet Services Employment
B1: FY 2020 CSBG Annual Report
B2: Module 4, Section B: Individual and Family Services - Data Entry Form
B3: Goal 1: Individuals and Families with low-incomes are stable and achieve economic security.
B4: Employment Services
B5: Name of CSBG Eligible Entity Reporting: | C5: =M4AgencyName -> Southeastern Utah Association of Local Governments
B6: State: | C6: =M4StateName -> Utah | D6: DUNS: | E6: =M4DUNS -> 097758627
B7: Employment Services (SRV 1) | C7: Unduplicated Number of Individuals Served
B8: Skills Training and Opportunities for Experience (SRV 1a-f)
B9: SRV 1a Vocational Training | C9: 5
B10: SRV 1b On-the-Job and other Work Experience | C10: 14
B11: SRV 1c Youth Summer Work Placements
B12: SRV 1d Apprenticeship/Internship | C12: 3
B13: SRV 1e Self-Employment Skills Training | C13: 2
B14: SRV 1f Job Readiness Training | C14: 18
B15: Career Counseling (SRV 1g-h)
B16: SRV 1g Workshops | C16: 12
B17: SRV 1h Coaching | C17: 25
B18: Job Search (SRV 1i-n)
B19: SRV 1i Coaching | C19: 26
B20: SRV 1j Resume Development | C20: 22
B21: SRV 1k Interview Skills Training | C21: 22
B22: SRV 1l Job Referrals | C22: 46
B23: SRV 1m Job Placements | C23: 13
B24: SRV 1n Pre-employment physicals, background checks, etc. | C24: 14 | I24: OK
B25: Post Employment Supports (SRV 1o-p)
B26: SRV 1o Coaching | C26: 9
B27: SRV 1p Interactions with employers | C27: 13
B28: Employment Supplies (SRV 1q)
B29: SRV 1q Employment Supplies | C29: 13

Sheet Education NPIs
C1: FY 2020 CSBG Annual Report
B2: Module 4, Section A: Individual and Family National Performance Indicators (FNPIs) - Data Entry Form
B3: Goal 1: Individuals and Families with low incomes are stable and achieve economic security.
C4: Education and Cognitive Development Indicators
B5: Name of CSBG Eligible Entity Reporting: | D5: =M4AgencyName -> Southeastern Utah Association of Local Governments
B6: State: | D6: =M4StateName -> Utah | G6: DUNS: | H6: =M4DUNS -> 097758627
B8: Education and Cognitive Development (FNPI 2) | D8: I.) Number of Individuals Served in program(s) (#) | E8: II.) Target (#) | F8: III.) Actual Results (#) | G8: IV.) Percentage Achieving Outcome [III/ I = IV ] (% auto calculated) | H8: V.) Performance Target Accuracy (III/II = V] (% auto calculated) | I8: NPI Entry Status
B9: FNPI 2a The number of children (0 to 5) who demonstrated improved emergent literacy skills. | G9: =IFERROR(F9/D9,"") ->  | H9: =IFERROR(F9/E9,"") -> 
B10: FNPI 2b The number of children (0 to 5) who demonstrated skills for school readiness. | D10: 10 | E10: 13 | F10: 8 | G10: 0.8 | H10: 0.6153846154 | I10: OK
B11: FNPI 2c The number of children and youth who demonstrated improved positive approaches toward learning, including improved attention skills. (auto total). | D11: =SUM(D12:D14) -> 0 | E11: =SUM(E12:E14) -> 0 | F11: =SUM(F12:F14) -> 0
B12: FNPI 2c.1 Early Childhood Education (ages 0-5): The number of children and youth who demonstrated improved positive approaches toward learning, including improved attention skills | C12: FNPI 2c.1 Early Childhood Education (ages 0-5)
B13: FNPI 2c.2 1st grade - 8th grade: The number of children and youth who demonstrated improved positive approaches toward learning, including improved attention skills | C13: FNPI 2c.2 1st grade-8th grade
B14: FNPI 2c.3 9th grade - 12th grade: The number of children and youth who demonstrated improved positive approaches toward learning, including improved attention skills | C14: FNPI 2c.3 9th grade-12th grade
B15: FNPI 2d The number of children and youth who are achieving at basic grade level (academic, social, and other school success skills). (auto total) | D15: =SUM(D16:D18) -> 0 | E15: =SUM(E16:E18) -> 0 | F15: =SUM(F16:F18) -> 0
B16: FNPI 2d.1 Early Childhood Education (ages 0-5): The number of children and youth who are achieving at basic grade level (academic, social, and other school success skills) | C16: FNPI 2d.1 Early Childhood Education (ages 0-5) | I16: =IF(ISERROR(D16+E16+F16), "Row Incomplete", IF(OR(AND(D16<>"",D16<>0,E16<>"",F16<>""),AND(OR(D16="",D16=0),OR(E16="",E16=0),OR(F16="",F16=0))),"","Row Incomplete")) -> 
B17: FNPI 2d.2 1st grade – 8th grade: The number of children and youth who are achieving at basic grade level (academic, social, and other school success skills) | C17: FNPI 2d.2 1st grade-8th grade
B18: FNPI 2d.3 9st grade – 12th grade: The number of children and youth who are achieving at basic grade level (academic, social, and other school success skills) | C18: FNPI 2d.3 9th grade-12th grade
B19: FNPI 2e The number of parents/caregivers who improved their home environments. | D19: 7 | E19: 5 | F19: 4 | G19: 0.5714285714 | H19: 0.8 | I19: OK
B20: FNPI 2f The number of adults who demonstrated improved basic education.
B21: FNPI 2g The number of individuals who obtained a high school diploma and/or obtained an equivalency certificate or diploma.
B22: FNPI 2h The number of individuals who obtained a recognized credential, certificate, or degree relating to the achievement of educational or vocational skills. | D22: 1 | E22: 2 | F22: 1 | G22: 1 | H22: 0.5 | I22: OK
B23: FNPI 2i The number of individuals who obtained an Associate’s degree.
B24: FNPI 2j The number of individuals who obtained a Bachelor’s degree.
B26: Other Education and Cognitive Development Outcome Indicator (FNPI 2z) | D26: I.) Number of Individuals Served in program(s) (#) | E26: II.) Target (#) | F26: III.) Actual Results (#) | G26: IV.) Percentage Achieving Outcome [III/ I = IV ] (% auto calculated) | H26: V.) Performance Target Accuracy (III/II = V] (% auto calculated) | I26: NPI Entry Status
B27: FNPI 2z.1 | G27: =IFERROR(F27/D27,"") ->  | H27: =IFERROR(F27/E27,"") ->  | I27: =IF(ISERROR(D27+E27+F27), "Row Incomplete", IF(OR(AND(D27<>"",D27<>0,E27<>"", F27<>"", C27<>""), AND(OR(D27="",D27=0), OR(E27="",E27=0), OR(F27="",F27=0), C27="")), "","Row Incomplete")) -> 
B28: FNPI 2z.2
B29: FNPI 2z.3
B30: FNPI 2z.4 | I30: =IF(ISERROR(D30+E30+F30), "Row Incomplete", IF(OR(AND(D30<>"",D30<>0,E30<>"", F30<>"", C30<>""), AND(OR(D30="",D30=0), OR(E30="",E30=0), OR(F30="",F30=0), C30="")), "","Row Incomplete")) -> 
B31: FNPI 2z.5 | I31: =IF(ISERROR(D31+E31+F31), "Row Incomplete", IF(OR(AND(D31<>"",D31<>0,E31<>"", F31<>"", C31<>""), AND(OR(D31="",D31=0), OR(E31="",E31=0), OR(F31="",F31=0), C31="")), "","Row Incomplete")) -> 

Sheet Services Education
B1: FY 2020 CSBG Annual Report
B2: Module 4, Section B: Individual and Family Services - Data Entry Form
B3: Goal 1: Individuals and Families with low-incomes are stable and achieve economic security.
B4: Education and Cognitive Development Services
B5: Name of CSBG Eligible Entity Reporting: | C5: =M4AgencyName -> Southeastern Utah Association of Local Governments
B6: State: | C6: =M4StateName -> Utah | D6: DUNS: | E6: =M4DUNS -> 097758627
B7: Education and Cognitive Development Services (SRV 2) | C7: Unduplicated Number of Individuals Served
B8: Child/Young Adult Education Programs (SRV 2a-j)
B9: SRV 2a Early Head Start
B10: SRV 2b Head Start
B11: SRV 2c Other Early-Childhood (0-5 yr. old) Education
B12: SRV 2d K-12 Education
B13: SRV 2e K-12 Support Services
B14: SRV 2f Financial Literacy Education | C14: 39
B15: SRV 2g Literacy/English Language Education
B16: SRV 2h College-Readiness Preparation/Support | C16: 5
B17: SRV 2i Other Post Secondary Preparation
B18: SRV 2j Other Post Secondary Support
B19: School Supplies (SRV 2k)
B20: SRV 2k School Supplies | C20: 8
B21: Extra-curricular Programs (SRV 2l-q)
B22: SRV 2l Before and After School Activities | C22: 37
B23: SRV 2m Summer Youth Recreational Activities
B24: SRV 2n Summer Education Programs
B25: SRV 2o Behavior Improvement Programs (attitude, self-esteem, Dress-for-Success, etc.) | C25: 8
B26: SRV 2p Mentoring | C26: 41
B27: SRV 2q Leadership Training | C27: 33
B28: Adult Education Programs (SRV 2r-z)
B29: SRV 2r Adult Literacy Classes
B30: SRV 2s English Language Classes
B31: SRV 2t Basic Education Classes
B32: SRV 2u High School Equivalency Classes
B33: SRV 2v Leadership Training
B34: SRV 2w Parenting Supports (may be a part of the early childhood programs identified above)
B35: SRV 2x Applied Technology Classes
B36: SRV 2y Post-Secondary Education Preparation
B37: SRV 2z Financial Literacy Education | C37: 31
B38: Post-Secondary Education Supports (SRV 2aa)
B39: SRV 2aa College applications, text books, computers, etc.
B40: Financial Aid Assistance (SRV 2bb)
B41: SRV 2bb Scholarships
B42: Home Visits (SVR 2cc)
B43: SRV 2cc Home Visits | C43: 19

Sheet Income NPIs
C1: FY 2020 CSBG Annual Report
B2: Module 4, Section A: Individual and Family National Performance Indicators (FNPIs) - Data Entry Form
B3: Goal 1: Individuals and Families with low incomes are stable and achieve economic security.
B4: Income and Asset Building Indicators
B5: Name of CSBG Eligible Entity Reporting: | D5: =M4AgencyName -> Southeastern Utah Association of Local Governments
B6: State: | D6: =M4StateName -> Utah | G6: DUNS: | H6: =M4DUNS -> 097758627
B8: Income and Asset Building (FNPI 3) | D8: I.) Number of Individuals Served in program(s) (#) | E8: II.) Target (#) | F8: III.) Actual Results (#) | G8: IV.) Percentage Achieving Outcome [III/ I = IV ] (% auto calculated) | H8: V.) Performance Target Accuracy (III/II = V] (% auto calculated) | I8: NPI Entry Status
B9: FNPI 3a The number of individuals who achieved and maintained capacity to meet basic needs for 90 days. | D9: 60 | E9: 65 | F9: 53 | G9: =IFERROR(F9/D9,"") -> 0.8833333333 | H9: =IFERROR(F9/E9,"") -> 0.8153846154 | I9: OK
B10: FNPI 3b The number of individuals who achieved and maintained capacity to meet basic needs for 180 days. | D10: 35 | E10: 38 | F10: 28 | G10: 0.8 | H10: 0.7368421053 | I10: OK
B11: FNPI 3c The number of individuals who opened a savings account or IDA. | D11: 11 | E11: 14 | F11: 9 | G11: 0.8181818182 | H11: 0.6428571429 | I11: OK
B12: FNPI 3d The number of individuals who increased their savings. | D12: 26 | E12: 33 | F12: 21 | G12: 0.8076923077 | H12: 0.6363636364 | I12: OK
B13: FNPI 3e The number of individuals who used their savings to purchase an asset. | D13: 11 | E13: 15 | F13: 9 | G13: 0.8181818182 | H13: 0.6 | I13: OK
B14: FNPI 3f The number of individuals who purchased a home. | D14: 8 | E14: 12 | F14: 6 | G14: 0.75 | H14: 0.5 | I14: OK
B15: FNPI 3g The number of individuals who improved their credit scores. | D15: 34 | E15: 41 | F15: 25 | G15: 0.7352941176 | H15: 0.6097560976 | I15: OK
B16: FNPI 3h The number of individuals who increased their net worth. | D16: 31 | E16: 34 | F16: 24 | G16: 0.7741935484 | H16: 0.7058823529 | I16: OK
B17: FNPI 3i The number of individuals engaged with the Community Action Agency who report improved financial well-being. | D17: 36 | E17: 33 | F17: 30 | G17: 0.8333333333 | H17: 0.9090909091 | I17: OK
B20: Other Income and Asset Building Outcome Indicator (FNPI 3z) | D20: I.) Number of Individuals Served in program(s) (#) | E20: II.) Target (#) | F20: III.) Actual Results (#) | G20: IV.) Percentage Achieving Outcome [III/ I = IV ] (% auto calculated) | H20: V.) Performance Target Accuracy (III/II = V] (% auto calculated) | I20: NPI Entry Status
B21: FNPI 3z.1 | C21: Number of Individuals served / Asset Building | D21: 58 | E21: 68 | F21: 49 | G21: =IFERROR(F21/D21,"") -> 0.8448275862 | H21: =IFERROR(F21/E21,"") -> 0.7205882353 | I21: OK
B22: FNPI 3z.2 | G22: =IFERROR(F22/D22,"") -> 
B23: FNPI 3z.3 | G23: =IFERROR(F23/D23,"") -> 
B24: FNPI 3z.4 | G24: =IFERROR(F24/D24,"") -> 
B25: FNPI 3z.5 | C25: Number of Individuals who reduced debt | D25: 12 | E25: 10 | F25: 8 | G25: =IFERROR(F25/D25,"") -> 0.6666666667 | H25: 0.8 | I25: OK

Sheet Services Income
B1: FY 2020 CSBG Annual Report
B2: Module 4, Section B: Individual and Family Services - Data Entry Form
B3: Goal 1: Individuals and Families with low incomes are stable and achieve economic security.
B4: Income and Asset Building Services
B5: Name of CSBG Eligible Entity Reporting: | C5: =M4AgencyName -> Southeastern Utah Association of Local Governments
B6: State: | C6: =M4StateName -> Utah | D6: DUNS: | E6: =M4DUNS -> 097758627
B7: Income and Asset Building Services (SRV 3) | C7: Unduplicated Number of Individuals Served
B8: Training and Counseling Services (SRV 3a-f)
B9: SRV 3a Financial Capability Skills Training | C9: 58
B10: SRV 3b Financial Coaching/Counseling | C10: 53
B11: SRV 3c Financial Management Programs (including budgeting, credit management, credit repair, credit counseling, etc.) | C11: 58
B12: SRV 3d First-time Homebuyer Counseling | C12: 17
B13: SRV 3e Foreclosure Prevention Counseling | C13: 6
B14: SRV 3f Small Business Start-Up and Development Counseling Sessions/Classes | C14: 8
B15: Benefit Coordination and Advocacy (SRV 3g-l)
B16: SRV 3g Child Support Payments | C16: 18
B17: SRV 3h Health Insurance | C17: 22
B18: SRV 3i Social Security/SSI Payments | C18: 20
B19: SRV 3j Veteran's Benefits | C19: 19
B20: SRV 3k TANF Benefits | C20: 39
B21: SRV 3l SNAP Benefits | C21: 52
B22: Asset Building (SRV 3m-o)
B23: SRV 3m Saving Accounts/IDAs and other asset building accounts | C23: 24
B24: SRV 3n Other financial products (IRA accounts, MyRA, other retirement accounts, etc.) | C24: 2
B25: SRV 3o VITA, EITC, or Other Tax Preparation programs
B26: SRV 3p Loans And Grants (SRV 3p-q)
B27: SRV 3p Micro-loans
B28: SRV 3q Business incubator/business development loans | C28: 3

Sheet Housing NPIs
C1: FY 2020 CSBG Annual Report
B2: Module 4, Section A: Individual and Family National Performance Indicators (FNPIs) - Data Entry Form
B3: Goal 1: Individuals and Families with low incomes are stable and achieve economic security.
B4: Housing Indicators
B5: Name of CSBG Eligible Entity Reporting: | D5: =M4AgencyName -> Southeastern Utah Association of Local Governments
B6: State: | D6: =M4StateName -> Utah | G6: DUNS: | H6: =M4DUNS -> 097758627
B8: Housing (FNPI 4) | D8: I.) Number of Individuals Served in program(s) (#) | E8: II.) Target (#) | F8: III.) Actual Results (#) | G8: IV.) Percentage Achieving Outcome [III/ I = IV ] (% auto calculated) | H8: V.) Performance Target Accuracy (III/II = V] (% auto calculated) | I8: NPI Entry Status
B9: FNPI 4a The number of individuals experiencing homelessness who obtained safe temporary shelter. | D9: 40 | E9: 47 | F9: 33 | G9: =IFERROR(F9/D9,"") -> 0.825 | H9: =IFERROR(F9/E9,"") -> 0.7021276596 | I9: OK
B10: FNPI 4b The number of individuals who obtained safe and affordable housing. | D10: 89 | E10: 120 | F10: 78 | G10: 0.8764044944 | H10: 0.65 | I10: OK
B11: FNPI 4c The number of individuals who maintained safe and affordable housing for 90 days. | D11: 69 | E11: 82 | F11: 60 | G11: 0.8695652174 | H11: 0.7317073171 | I11: OK
B12: FNPI 4d The number of individuals who maintained safe and affordable housing for 180 days. | D12: 78 | E12: 95 | F12: 65 | G12: 0.8333333333 | H12: 0.6842105263 | I12: OK
B13: FNPI 4e The number of individuals who avoided eviction. | D13: 127 | E13: 152 | F13: 109 | G13: 0.8582677165 | H13: 0.7171052632 | I13: OK
B14: FNPI 4f The number of individuals who avoided foreclosure. | D14: 18 | E14: 20 | F14: 15 | G14: 0.8333333333 | H14: 0.75 | I14: OK
B15: FNPI 4g The number of individuals who experienced improved health and safety due to improvements within their home (e.g. reduction or elimination of lead, radon, carbon dioxide and/or fire hazards or electrical issues, etc). | D15: 7 | E15: 9 | F15: 5 | G15: 0.7142857143 | H15: 0.5555555556 | I15: OK
B16: FNPI 4h The number of individuals with improved energy efficiency and/or energy burden reduction in their homes. | D16: 68 | E16: 89 | F16: 57 | G16: 0.8382352941 | H16: 0.6404494382 | I16: OK
B18: Other Housing Outcome Indicator (FNPI 4z) | D18: I.) Number of Participants Served in program(s) (#) | E18: II.) Target (#) | F18: III.) Actual Results (#) | G18: IV.) Percentage Achieving Outcome [III/ I = IV ] (% auto calculated) | H18: V.) Performance Target Accuracy (III/II = V] (% auto calculated) | I18: NPI Entry Status
B19: FNPI 4z.1 | G19: =IFERROR(F19/D19,"") ->  | H19: =IFERROR(F19/E19,"") -> 
B20: FNPI 4z.2 | C20: Number of individuals who avoided a utility shut-off | D20: 290 | E20: 331 | F20: 246 | G20: =IFERROR(F20/D20,"") -> 0.8482758621 | H20: 0.7432024169 | I20: OK
B21: FNPI 4z.3 | C21: Number of individuals who obtained utilities | D21: 28 | E21: 36 | F21: 24 | G21: =IFERROR(F21/D21,"") -> 0.8571428571 | H21: 0.6666666667 | I21: OK
B22: FNPI 4z.4 | C22: Number of individuals whose energy service was restored after disconnection | D22: 30 | E22: 38 | F22: 25 | G22: =IFERROR(F22/D22,"") -> 0.8333333333 | H22: 0.6578947368 | I22: OK
B23: FNPI 4z.5 | G23: =IFERROR(F23/D23,"") -> 

Sheet Services Housing
B1: FY 2020 CSBG Annual Report
B2: Module 4, Section B: Individual and Family Services - Data Entry Form
B3: Goal 1: Individuals and Families with low incomes are stable and achieve economic security.
B4: Housing Services
B5: Name of CSBG Eligible Entity Reporting: | C5: =M4AgencyName -> Southeastern Utah Association of Local Governments
B6: State: | C6: =M4StateName -> Utah | D6: DUNS: | E6: =M4DUNS -> 097758627
B7: Housing Services (SRV 4) | C7: Unduplicated Number of Individuals Served
B8: Housing Payment Assistance (SRV 4a-e)
B9: SRV 4a Financial Capability Skill Training | C9: 32
B10: SRV 4b Financial Coaching/Counseling | C10: 34
B11: SRV 4c Rent Payments (includes Emergency Rent Payments) | C11: 186
B12: SRV 4d Deposit Payments | C12: 48
B13: SRV 4e Mortgage Payments (includes Emergency Mortgage Payments) | C13: 7
B14: Eviction Prevention Services (SRV 4f-h)
B15: SRV 4f Eviction Counseling | C15: 1
B16: SRV 4g Landlord/Tenant Mediations | C16: 16
B17: SRV 4h Landlord/Tenant Rights Education | C17: 7
B18: Utility Payment Assistance (SRV 4i-l)
B19: SRV 4i Utility Payments (LIHEAP-includes Emergency Utility Payments) | C19: 3062
B20: SRV 4j Utility Deposits | C20: 23
B21: SRV 4k Utility Arrears Payments | C21: 26
B22: SRV 4l Level Billing Assistance
B23: Housing Placement/Rapid Re-housing (SRV 4m-p)
B24: SRV 4m Temporary Housing Placement (includes Emergency Shelters) | C24: 10
B25: SRV 4n Transitional Housing Placements
B26: SRV 4o Permanent Housing Placements | C26: 38
B27: SRV 4p Rental Counseling | C27: 2
B28: Housing Maintenance & Improvements (SRV 4q)
B29: SRV 4q Home Repairs (e.g. structural, appliance, heating systems. etc.) (Including Emergency Home Repairs)
B30: Weatherization Services (SRV 4r-t)
B31: SRV 4r Independent-living Home Improvements (e.g. ramps, tub and shower grab bars, handicap accessible modifications, etc.)
B32: SRV 4s Healthy Homes Services(e.g. reduction or elimination of lead, radon, carbon monoxide and/or fire hazards or electrical issues, etc.)
B33: SRV 4t Energy Efficiency Improvements (e.g. insulation, air sealing, furnace repair, etc.)

Sheet Health NPIs
C1: FY 2020 CSBG Annual Report
B2: Module 4, Section A: Individual and Family National Performance Indicators (FNPIs) - Data Entry Form
B3: Goal 1: Individuals and Families with low incomes are stable and achieve economic security.
B4: Health and Social/Behavioral Development Indicators
B5: Name of CSBG Eligible Entity Reporting: | D5: =M4AgencyName -> Southeastern Utah Association of Local Governments
B6: State: | D6: =M4StateName -> Utah | G6: DUNS: | H6: =M4DUNS -> 097758627
B8: Health and Social/Behavioral Development (FNPI 5) | D8: I.) Number of Individuals Served in program(s) (#) | E8: II.) Target (#) | F8: III.) Actual Results (#) | G8: IV.) Percentage Achieving Outcome [III/ I = IV ] (% auto calculated) | H8: V.) Performance Target Accuracy (III/II = V] (% auto calculated) | I8: NPI Entry Status
B9: FNPI 5a The number of individuals who demonstrated increased nutrition skills (e.g. cooking, shopping, and growing food). | G9: =IFERROR(F9/D9,"") ->  | H9: =IFERROR(F9/E9,"") ->  | I9: =IF(ISERROR(D9+E9+F9), "Row Incomplete", IF(OR(AND(D9<>"",D9<>0,E9<>"",F9<>""),AND(OR(D9="",D9=0),OR(E9="",E9=0),OR(F9="",F9=0))),"","Row Incomplete")) -> 
B10: FNPI 5b The number of individuals who demonstrated improved physical health and well-being.
B11: FNPI 5c The number of individuals who demonstrated improved mental and behavioral health and well-being. | D11: 4 | E11: 5 | F11: 3 | G11: 0.75 | H11: 0.6 | I11: OK
B12: FNPI 5d The number of individuals who improved skills related to the adult role of parents/ caregivers.
B13: FNPI 5e The number of parents/caregivers who demonstrated increased sensitivity and responsiveness in their interactions with their children.
B14: FNPI 5f The number of seniors (65+) who maintained an independent living situation.
B15: FNPI 5g The number of individuals with disabilities who maintained an independent living situation.
B16: FNPI 5h The number of individuals with a chronic illness who maintained an independent living situation.
B17: FNPI 5i The number of individuals with no recidivating event for six months. | D17: =SUM(D18:D19) -> 0 | E17: =SUM(E18:E19) -> 0 | F17: =SUM(F18:F19) -> 0
B18: FNPI 5i.1 The number of youth with no recidivating event for six months. | C18: FNPI 5i.1 Youth (ages 14-17)
B19: FNPI 5i.2 The number of adults with no recidivating event for six months. | C19: FNPI 5i.2 Adults (ages 18+)
B21: Other Health and Social/Behavioral Development Outcome Indicator (FNPI 5z) | D21: I.) Number of Individuals Served in program(s) (#) | E21: II.) Target (#) | F21: III.) Actual Results (#) | G21: IV.) Percentage Achieving Outcome [III/ I = IV ] (% auto calculated) | H21: V.) Performance Target Accuracy (III/II = V] (% auto calculated) | I21: NPI Entry Status
B22: FNPI 5z.1 | C22: Number of individuals who reported a better sense of food security | D22: 2265 | E22: 2450 | F22: 1989 | G22: =IFERROR(F22/D22,"") -> 0.8781456954 | H22: =IFERROR(F22/E22,"") -> 0.8118367347 | I22: OK
B23: FNPI 5z.2 | G23: =IFERROR(F23/D23,"") -> 
B24: FNPI 5z.3 | G24: =IFERROR(F24/D24,"") -> 
B25: FNPI 5z.4 | G25: =IFERROR(F25/D25,"") -> 
B26: FNPI 5z.5 | G26: =IFERROR(F26/D26,"") -> 

Sheet Services Health and Social
B1: FY 2020 CSBG Annual Report
B2: Module 4, Section B: Individual and Family Services - Data Entry Form
B3: Goal 1: Individuals and Families with low incomes are stable and achieve economic security.
B4: Health and Social/Behavioral Development
B5: Name of CSBG Eligible Entity Reporting: | C5: =M4AgencyName -> Southeastern Utah Association of Local Governments
B6: State: | C6: =M4StateName -> Utah | D6: DUNS: | E6: =M4DUNS -> 097758627
B7: Health and Social/Behavioral Development Services (SRV 5) | C7: Unduplicated Number of Individuals Served
B8: Health Services, Screening and Assessments (SRV 5a-j)
B9: SRV 5a Immunizations
B10: SRV 5b Physicals
B11: SRV 5c Developmental Delay Screening
B12: SRV 5d Vision Screening
B13: SRV 5e Prescription Payments
B14: SRV 5f Doctor Visit Payments
B15: SRV 5g Maternal/Child Health
B16: SRV 5h Nursing Care Sessions
B17: SRV 5i In-Home Affordable Seniors/Disabled Care Sessions (Nursing, Chores, Personal Care Services)
B18: SRV 5j Health Insurance Options Counseling
B19: Reproductive Health Services (SRV 5k-o)
B20: SRV 5k Coaching Sessions
B21: SRV 5l Family Planning Classes
B22: SRV 5m Contraceptives
B23: SRV 5n STI/HIV Prevention Counseling Sessions
B24: SRV 5o STI/HIV Screenings
B25: Wellness Education (SRV 5p-q)
B26: SRV 5p Wellness Classes (stress reduction, medication management, mindfulness, etc.)
B27: SRV 5q Exercise/Fitness
B28: Mental/Behavioral Health (SRV 5r-x)
B29: SRV 5r Detoxification Sessions
B30: SRV 5s Substance Abuse Screenings
B31: SRV 5t Substance Abuse Counseling
B32: SRV 5u Mental Health Assessments | C32: 3
B33: SRV 5v Mental Health Counseling | C33: 3
B34: SRV 5w Crisis Response/Call-In Responses
B35: SRV 5x Domestic Violence Programs
B36: Support Groups (SRV 5y-aa)
B37: SRV 5y Substance Abuse Support Group Meetings
B38: SRV 5z Domestic Violence Support Group Meetings
B39: SRV 5aa Mental Health Support Group Meetings
B40: Health and Social/Behavioral Development Services (Cont'd.) | C40: Unduplicated Number of Individuals Served
B41: Dental Services, Screenings and Exams (SRV 5bb-ee)
B42: SRV 5bb Adult Dental Screening/Exams
B43: SRV 5cc Adult Dental Services (including Emergency Dental Procedures)
B44: SRV 5dd Child Dental Screenings/Exams
B45: SRV 5ee Child Dental Services (including Emergency Dental Procedures)
B46: Nutrition and Food/Meals (SRV 5ff-jj)
B47: SRV 5ff Skills Classes (Gardening, Cooking, Nutrition)
B48: SRV 5gg Community Gardening Activities
B49: SRV 5hh Incentives (e.g. gift card for food preparation, rewards for participation, etc.)
B50: SRV 5ii Prepared Meals
B51: SRV 5jj Food Distribution (Food Bags/Boxes, Food Share Program, Bags of Groceries) | C51: 2265
B52: Family Skills Development (SRV 5kk-mm)
B53: SRV 5kk Family Mentoring Sessions
B54: SRV 5ll Life Skills Coaching Sessions
B55: SRV 5mm Parenting Classes
B56: Emergency Hygiene Assistance (SRV 5nn-oo)
B57: SRV 5nn Kits/boxes | C57: 10
B58: SRV 5oo Hygiene Facility Utilizations (e.g. showers, toilets, sinks)

Sheet CivicEng&Comm NPIs
C1: FY 2020 CSBG Annual Report
B2: Module 4, Section A: Individual and Family National Performance Indicators (FNPIs) - Data Entry Form
B3: Goal 1: Individuals and Families with low incomes are stable and achieve economic security.
B4: Civic Engagement and Community Involvement Indicators
B5: Name of CSBG Eligible Entity Reporting: | D5: =M4AgencyName -> Southeastern Utah Association of Local Governments
B6: State: | D6: =M4StateName -> Utah | G6: DUNS: | H6: =M4DUNS -> 097758627
B8: Civic Engagement and Community Involvement Indicators (FNPI 6) | D8: I.) Number of Individuals Served in program(s) (#) | E8: II.) Target (#) | F8: III.) Actual Results (#) | G8: IV.) Percentage Achieving Outcome [III/ I = IV ] (% auto calculated) | H8: V.) Performance Target Accuracy (III/II = V] (% auto calculated) | I8: NPI Entry Status
B9: FNPI 6a The number of individuals who increased skills, knowledge, and abilities to enable them to work with Community Action to improve conditions in the community. | D9: 134 | E9: 188 | F9: 117 | G9: =IFERROR(F9/D9,"") -> 0.8731343284 | H9: =IFERROR(F9/E9,"") -> 0.6223404255 | I9: OK
B10: FNPI 6a.1 The number of Community Action program participants who improved their leadership skills to enable them to work with Community Action to improve conditions in the community. | C10: FNPI 6a.1 Of the above, the number of Community Action program participants who improved their leadership skills. | D10: 32 | E10: 38 | F10: 27 | G10: =IFERROR(F10/D10,"") -> 0.84375 | H10: 0.7105263158 | I10: OK
B11: FNPI 6a.2 The number of Community Action program participants who improved their social networks to enable them to work with Community Action to improve conditions in the community. | C11: FNPI 6a.2 Of the above, the number of Community Action program participants who improved their social networks. | D11: 98 | E11: 107 | F11: 86 | G11: =IFERROR(F11/D11,"") -> 0.8775510204 | H11: 0.8037383178 | I11: OK
B12: FNPI 6a.3 The number of Community Action program participants who gained other skills, knowledge and abilities to enhance their social networks to enable them to work with Community Action to improve conditions in the community. | C12: FNPI 6a.3 Of the above, the number of Community Action program participants who gained other skills, knowledge and abilities to enhance their ability to engage. | D12: 39 | E12: 41 | F12: 32 | G12: =IFERROR(F12/D12,"") -> 0.8205128205 | H12: 0.7804878049 | I12: OK
B14: Other Civic Engagement and Community Involvement Outcome Indicator (FNPI 6z) | D14: I.) Number of Individuals Served in program(s) (#) | E14: II.) Target (#) | F14: III.) Actual Results (#) | G14: IV.) Percentage Achieving Outcome [III/ I = IV ] (% auto calculated) | H14: V.) Performance Target Accuracy (III/II = V] (% auto calculated) | I14: NPI Entry Status
B15: FNPI 6z.1 | G15: =IFERROR(F15/D15,"") ->  | H15: =IFERROR(F15/E15,"") -> 
B16: FNPI 6z.2 | G16: =IFERROR(F16/D16,"") -> 
B17: FNPI 6z.3 | G17: =IFERROR(F17/D17,"") -> 
B18: FNPI 6z.4 | G18: =IFERROR(F18/D18,"") -> 
B19: FNPI 6z.5 | G19: =IFERROR(F19/D19,"") -> 

Sheet Services Civic Eng. & Comm Inv.
B1: FY 2020 CSBG Annual Report
B2: Module 4, Section B: Individual and Family Services - Data Entry Form
B3: Goal 1: Individuals and Families with low-incomes are stable and achieve economic security.
B4: Civic Engagement and Community Involvement
B5: Name of CSBG Eligible Entity Reporting: | C5: =M4AgencyName -> Southeastern Utah Association of Local Governments
B6: State: | C6: =M4StateName -> Utah | D6: DUNS: | E6: =M4DUNS -> 097758627
B7: Civic Engagement and Community Involvement Services (SRV 6a-f) | C7: Unduplicated Number of Individuals Served
B8: SRV 6a Voter Education and Access | C8: 11
B9: Leadership Training
B10: SRV 6b Leadership Training | C10: 36
B11: SRV 6c Tri-partite Board Membership | C11: 12
B12: SRV 6d Citizenship Classes
B13: SRV 6e Getting Ahead Classes | C13: 16
B14: SRV 6f Volunteer Training | C14: 59

Sheet Outcomes Across Mult Domains
C1: FY 2020 CSBG Annual Report
B2: Module 4, Section A: Individual and Family National Performance Indicators (FNPIs) - Data Entry Form
B3: Goal 1: Individuals and Families with low incomes are stable and achieve economic security.
B4: Outcomes Achieved Across One or More Domains
B5: Name of CSBG Eligible Entity Reporting: | D5: =M4AgencyName -> Southeastern Utah Association of Local Governments
B6: State: | D6: =M4StateName -> Utah | G6: DUNS: | H6: =M4DUNS -> 097758627
B8: Outcomes Achieved Across One or More Domains (FNPI 7) | D8: I.) Number of Individuals Served in program(s) (#) | E8: II.) Target (#) | F8: III.) Actual Results (#) | G8: IV.) Percentage Achieving Outcome [III/ I = IV ] (% auto calculated) | H8: V.) Performance Target Accuracy (III/II = V] (% auto calculated) | I8: NPI Entry Status
B9: FNPI 7a The number of individuals who achieved one or more outcomes in the identified National Performance Indicators in one or more domains. | D9: 2674 | E9: 1974 | F9: 2486 | G9: =IFERROR(F9/D9,"") -> 0.9296933433 | H9: =IFERROR(F9/E9,"") -> 1.259371834 | I9: OK
B11: Other Outcome Indicator (FNPI 7z) | D11: I.) Number of Individuals Served in program(s) (#) | E11: II.) Target (#) | F11: III.) Actual Results (#) | G11: IV.) Percentage Achieving Outcome [III/ I = IV ] (% auto calculated) | H11: V.) Performance Target Accuracy (III/II = V] (% auto calculated) | I11: NPI Entry Status
B12: FNPI 7z.1 | C12: The number of individuals who received bundled services and achieved one or more outcomes | D12: 7 | E12: 10 | F12: 6 | G12: =IFERROR(F12/D12,"") -> 0.8571428571 | H12: =IFERROR(F12/E12,"") -> 0.6 | I12: OK
B13: FNPI 7z.2 | C13: The number of individuals who transitioned out of poverty | D13: 5 | E13: 7 | F13: 3 | G13: =IFERROR(F13/D13,"") -> 0.6 | H13: 0.4285714286 | I13: OK
B14: FNPI 7z.3 | G14: =IFERROR(F14/D14,"") -> 
B15: FNPI 7z.4 | G15: =IFERROR(F15/D15,"") -> 
B16: FNPI 7z.5 | G16: =IFERROR(F16/D16,"") -> 

Sheet Support Services
B1: FY 2020 CSBG Annual Report
B2: Module 4, Section B: Individual and Family Services - Data Entry Form
B3: Goal 1: Individuals and Families with low-incomes are stable and achieve economic security.
B4: Services Supporting Multiple Domains
B5: Name of CSBG Eligible Entity Reporting: | C5: =M4AgencyName -> Southeastern Utah Association of Local Governments
B6: State: | C6: =M4StateName -> Utah | D6: DUNS: | E6: =M4DUNS -> 097758627
B7: Services Supporting Multiple Domains (SRV 7) | C7: Unduplicated Number of Individuals Served
B8: Case Management (SRV 7a)
B9: SRV 7a Case Management | C9: 374
B10: Eligibility Determinations (SRV 7b)
B11: SRV 7b Eligibility Determinations | C11: 472
B12: Referrals (SRV 7c)
B13: SRV 7c Referrals | C13: 2589
B14: Transportation Services (SRV 7d)
B15: SRV 7d Transportation Services (e.g. bus passes, bus transport, support for auto purchase or repair; including emergency services) | C15: 5
B16: Childcare (SRV 7e-f)
B17: SRV 7e Child Care subsidies | C17: 31
B18: SRV 7f Child Care payments | C18: 3
B19: Eldercare (SRV 7g)
B20: SRV 7g Day Centers
B21: Identification Documents (SRV 7h-j)
B22: SRV 7h Birth Certificate
B23: SRV 7i Social Security Card
B24: SRV 7j Driver's License | C24: 3
B25: Re-Entry Services (SRV 7k)
B26: SRV 7k Criminal Record Expungements
B27: Immigration Support Services (SRV 7l)
B28: SRV 7l Immigration Support Services (relocation, food, clothing)
B29: Legal Assistance (includes emergency legal assistance) (SRV 7m)
B30: SRV 7m Legal Assistance
B31: Emergency Clothing Assistance (SRV 7n)
B32: SRV 7n Emergency Clothing Assistance | C32: 16
B33: Mediation/Customer Advocacy Interventions (debt forgiveness, negotiations or issues with landlords, coordinating with other services or government) (SRV 7o)
B34: SRV 7o Mediation/Customer Advocacy Interventions | C34: 29

Sheet ALL Characteristics
C1: FY 2020 CSBG Annual Report
B2: Module 4, Section C: All Characteristics Report - Data Entry Form
C3: Goal 1: Individuals and Families with low-incomes are stable and achieve economic security.
C4: Name of CSBG Eligible Entity Reporting: | F4: =M4AgencyName -> Southeastern Utah Association of Local Governments
C5: State: | F5: =M4StateName -> Utah | K5: DUNS:
B7: A. Total unduplicated number of all INDIVIDUALS about whom one or more characteristics were obtained: | M7: 3196
B8: B. Total unduplicated number of all HOUSEHOLDS about whom one or more characteristics were obtained: | M8: 1656
C9: =IF(AND(M7="",SUM(G16+M16+G33+M30+M41+F49+G49+M56+G60+E64+F64+G64+E66+F66+G66+G77)>0,SUM(G16+M16+G33+M30+M41+F49+G49+M56+G60+E64+F64+G64+E66+F66+G66+G77)<100000000),"INDIVIDUAL LEVEL CHARACTERISTICS CANNOT BE REPORTED UNLESS THE TOTAL UNDUPLICATED NUMBER OF ALL INDIVIDUALS IS REPORTED IN ITEM A",IF(AND(M7=0,SUM(G16+M16+G33+M30+M41+F49+G49+M56+G60+E64+F64+G64+E66+F66+G66+G77)>0,SUM(G16+M16+G33+M30+M41+F49+G49+M56+G60+E64+F64+G64+E66+F66+G66+G77)<100000000),"INDIVIDUAL LEVEL CHARACTERISTICS CANNOT BE REPORTED UNLESS THE TOTAL UNDUPLICATED NUMBER OF ALL INDIVIDUALS IS REPORTED IN ITEM A","")) ->  | S9: A. Total unduplicated individuals
B10: C. INDIVIDUAL LEVEL CHARACTERISTICS | O10: ERROR: TOTAL COUNT CANNOT BE GREATER THAN THE TOTAL UNDUPLICATED NUMBER OF ALL INDIVIDUALS (ITEM A) | S10: B. Total unduplicated households
B11: 1. Gender | G11: Number of Individuals | I11: 6. Ethnicity/Race | M11: Number of Individuals | O11: ERROR: TOTAL COUNT SHOULD NOT BE LESS THAN THE TOTAL UNDUPLICATED NUMBER OF ALL INDIVIDUALS (ITEM A) | S11: C.1a Gender: Male
B12: a. | C12: Male | G12: 1515 | I12: a. Ethnicity | S12: C.1b Gender: Female
B13: b. | C13: Female | G13: 1680 | J13: a.1. Hispanic, Latino or Spanish Origins | M13: 431 | S13: C.1c Gender: Other
B14: c. | C14: Other | G14: 1 | J14: a.2. Not Hispanic, Latino or Spanish Origins | M14: 2380 | S14: C.1d Gender: Unknown/not reported
B15: d. | C15: Unknown/not reported | J15: a.3. Unknown/not reported | M15: 385 | S15: C.2a Age: 0-5
B16: e. | C16: TOTAL (auto calculated) | G16: =SUM(G12:G15) -> 3196 | H16: =IF(AND(OR(C19=O10,C19=O11)),1,0) -> 0 | J16: a.4. TOTAL (auto calculated) | M16: =SUM(M13:M15) -> 3196 | N16: =IF(AND(OR(J19=O10,J19=O11)),1,0) -> 0 | S16: C.2b Age: 6-13
S17: C.2c Age: 14-17
C18: Section C.1 Status | J18: Section C.6a Status | S18: C.2d Age: 18-24
C19: =IF(AND(G16>M7,M7<>"",M7<>0,G16<>0,M7>0,M7<100000000,G16<>0,G16>0,G16<100000000),O10,IF(AND(G16<M7,M7<>"",G16<>0,M7>0,M7<100000000,G16<>0,G16>0,G16<100000000),O11,"")) ->  | J19: =IF(AND(M16<>0,M16>M7,M7<>"",M7<>0,M7>0,M7<100000000,M16>0,M16<100000000),O10,IF(AND(M16<>0,M16<M7,M7>0,M7<100000000,M16>0,M16<100000000),O11,"")) ->  | S19: C.2e Age: 25-44
S20: C.2f Age: 45-54
B21: 2. Age | G21: Number of Individuals | I21: b. Race | S21: C.2g Age: 55-59
B22: a. | C22: 0-5 | G22: 293 | J22: b.1. American Indian or Alaska Native | M22: 168 | S22: C.2h Age: 60-64
B23: b. | C23: 6-13 | G23: 410 | J23: b.2. Asian | M23: 2 | S23: C.2i Age: 65-74
B24: c. | C24: 14-17 | G24: 199 | J24: b.3. Black or African American | M24: 16 | S24: C.2j Age: 75+
B25: d. | C25: 18-24 | G25: 273 | J25: b.4. Native Hawaiian and Other Pacific Islander | M25: 16 | S25: C.2k Age: Unknown/not reported
B26: e. | C26: 25-44 | G26: 875 | J26: b.5. White | M26: 2204 | S26: C.3a Grades 0-8 [ages 14-24]
B27: f. | C27: 45-54 | G27: 432 | J27: b.6. Other | M27: 351 | S27: C.3b Grades 9-12/Non-graduate [ages 14-24]
B28: g. | C28: 55-59 | G28: 222 | J28: b.7. Multi-race (two or more of the above) | M28: 77 | S28: C.3c High school graduate/equivalency diploma [ages 14-24]
B29: h. | C29: 60-64 | G29: 191 | J29: b.8. Unknown/not reported | M29: 362 | S29: C.3d 12 grade + Some Post-Secondary [ages 14-24]
B30: i. | C30: 65-74 | G30: 211 | J30: b.9. TOTAL (auto calculated) | M30: =SUM(M22:M29) -> 3196 | N30: =IF(AND(OR(J33=O10,J33=O11)),1,0) -> 0 | S30: C.3e 2 or 4 years college graduate [ages 14-24]
B31: j. | C31: 75+ | G31: 90 | S31: C.3f Graduate of other post-secondary school [ages 14-24]
B32: k. | C32: Unknown/not reported | J32: Section C.6b Status | S32: C.3g Unknown/not reported [ages 14-24]
B33: l. | C33: TOTAL (auto calculated) | G33: =SUM(G22:G32) -> 3196 | H33: =IF(AND(OR(C36=O10,C36=O11)),1,0) -> 0 | J33: =IF(AND(M30<>0,M30>M7,M7<>"",M7<>0,M7>0,M7<100000000,M30>0,M30<100000000),O10,IF(AND(M30<>0,M30<M7,M7<>"",M7<>0,M7>0,M7<100000000,M30>0,M30<100000000),O11,"")) ->  | S33: C.4a Youth ages 14-24 neither working nor in school
S34: C.5a Disabling condition: Yes
C35: Section C.2 Status | S35: C.5a Disabling condition: No
C36: =IF(AND(G33>M7,M7<>"",M7<>0,G33<>0,M7>0,M7<100000000,G33<>0,G33>0,G33<100000000),O10, IF(AND(G33<M7,M7<>"",M7<>0,G33<>0,M7>0,M7<100000000,G33<>0,G33>0,G33<100000000),O11,"")) ->  | I36: 7. Military Status | M36: Number of Individuals | S36: C.5a Disabling condition: Unknown
I37: a. Veteran | M37: 96 | S37: C.5b Health insurance: Yes
I38: b. Active Military | M38: 1 | S38: C.5b Health insurance: No
B39: 3. Education Levels | G39: Number of Individuals | I39: c. Never Served in the Military | M39: 2002
F40: [ages 14-24] | G40: [ages 25+] | I40: d. Unknown/not reported | M40: 188 | P40: TOTAL NUMBER OF INDIVIDUALS REPORTING MILITARY STATUS IS GREATER THAN INDIVIDUALS REPORTED AS 18+ (SUM OF C.2d THROUGH C.2j) | S40: C.5b Health insurance: Unknown
B41: a. | C41: Grades 0-8 | F41: 132 | G41: 34 | I41: e. TOTAL (auto calculated) | M41: =SUM(M37:M40) -> 2287 | N41: =IF(J44=O10,1,IF(J44=P40,2,0)) -> 0 | P41: TOTAL NUMBER OF INDIVIDUALS REPORTING WORK STATUS IS GREATER THAN INDIVIDUALS REPORTED AS 18+ (SUM OF C.2d THROUGH C.2j) | S41: C.5c.1 Health insurance: Medicaid
B42: b. | C42: Grades 9-12/Non-Graduate | F42: 153 | G42: 425 | S42: C.5c.2 Health insurance: Medicare
B43: c. | C43: High School Graduate | F43: 80 | G43: 567 | J43: Section C.7 Status | S43: C.5c.3 Health insurance: State Children's Health Insurance Program
B44: d. | C44: GED/Equivalency Diploma | F44: 13 | G44: 216 | J44: =IF(AND(M41<>0,M41>M7,M7<>0,M7<>"",M7<100000000,M41>0,M41<100000000),O10,IF(AND(M41<>0,M41>SUM(G25:G31),M7<100000000,M41>0,M41<100000000),"TOTAL NUMBER OF INDIVIDUALS REPORTING MILITARY STATUS IS GREATER THAN INDIVIDUALS REPORTED AS 18+ (SUM OF C.2d THROUGH C.2j)","")) ->  | S44: C.5c.4 Health insurance: State Health Insurance for Adults
B45: e. | C45: 12 grade + Some Post-Secondary | F45: 15 | G45: 313 | S45: C.5c.5 Health insurance: Military Health Care
B46: f. | C46: 2 or 4 years College Graduate | F46: 4 | G46: 167 | S46: C.5c.6 Health insurance: Direct-Purchase
B47: g. | C47: Graduate of other post-secondary school | G47: 28 | I47: 8. Work Status (Individuals 18+) | M47: Number of Individuals | S47: C.5c.7 Health insurance: Employment Based
B48: h. | C48: Unknown/not reported | F48: 75 | G48: 271 | I48: a. Employed Full-Time | M48: 126 | S48: C.5c.8 Health insurance: Unknown/not reported
B49: i. | C49: TOTAL (auto calculated) | E49: =IF(OR(C52<>"",C54<>""),1,0) -> 0 | F49: =SUM(F41:F48) -> 472 | G49: =SUM(G41:G48) -> 2021 | H49: =IF(OR(C52<>"",C56<>""),1,0) -> 0 | I49: b. Employed Part-Time | M49: 230 | S49: C.6a.1 Ethnicity: Hispanic, Latino, or Spanish origins
I50: c. Migrant or Seasonal Farm Worker | M50: 2 | S50: C.6a.2 Ethnicity: Not Hispanic, Latino or Spanish origins
C51: Section C.3 Status | I51: d. Unemployed (Short-Term, 6 months or less) | M51: 223 | S51: C.6a.3 Ethnicity: Unknown/not reported
C52: =IF(AND(F49+G49>M7,M7<>"",M7<>0,M7>0,M7<100000000,F49+G49>0,F49+G49<100000000),"ERROR: C.3h [ages 14-24] + C.3h [ages 25+] CANNOT BE GREATER THAN THE TOTAL UNDUPLICATED NUMBER OF ALL INDIVIDUALS (ITEM A)","") ->  | I52: e. Unemployed (Long-Term, more than 6 months) | M52: 477 | S52: C.6b.1 Race: American Indian or Alaska Native
I53: f. Unemployed (Not in Labor Force) | M53: 955 | S53: C.6b.2 Race: Asian
C54: =IF(AND(F49>G24+G25,F49<>0,F49>0,F49<100000000),"ERROR: THE TOTAL NUMBER OF INDIVIDUALS REPORTED IN EDUCATION LEVELS FOR C.3i [ages 14-24] EXCEEDS THE SUM OF C.2c & C.2d",IF(AND(F49<G24+G25,F49<>0,F49>0,F49<100000000),"ERROR: THE TOTAL NUMBER OF INDIVIDUALS REPORTED IN EDUCATION LEVELS FOR C.3i. [ages 14-24] IS LESS THAN THE SUM OF C.2c & C.2d","")) ->  | I54: g. | J54: Retired | M54: 57 | S54: C.6b.3 Race: Black or African American
I55: h. | J55: Unkown/not reported | M55: 193 | S55: C.6b.4 Race: Native Hawaiian and other Pacific Islander
C56: =IF(AND(G49>G26+G27+G28+G29+G30+G31,G49<>0,G49>0,G49<100000000),"ERROR: THE TOTAL NUMBER OF INDIVIDUALS REPORTED IN EDUCATION LEVELS FOR C.3i [ages 25+] EXCEEDS THE SUM OF C.2e THROUGH C.2j",IF(AND(G49<G26+G27+G28+G29+G30+G31,G49<>0,G49>0,G49<100000000),"ERROR: THE TOTAL NUMBER OF INDIVIDUALS REPORTED IN EDUCATION LEVELS FOR C.3i. [ages 25+] IS LESS THAN THE SUM OF C.2e THROUGH C.2j","")) ->  | I56: i. | J56: Total (autocalculated) | M56: =SUM(M48:M55) -> 2263 | N56: =IF(J59=O10,1,IF(J59=P41,2,0)) -> 0 | S56: C.6b.5 Race: White
S57: C.6b.6 Race: Other
J58: Section C.8 Status | S58: C.6b.7 Race: Multi-race
B59: 4. Disconnected Youth | G59: Number of Individuals | J59: =IF(AND(M56<>0,M56>M7,M7<>"",M7<>"",M7<100000000,M56>0,M56<100000000),O10, IF(AND(M56<>0,M56>SUM(G25:G31),M7<100000000,M56>0,M56<100000000),"TOTAL NUMBER OF INDIVIDUALS REPORTING WORK STATUS IS GREATER THAN INDIVIDUALS REPORTED AS 18+ (SUM OF C.2d THROUGH C.2j)","")) ->  | S59: C.6b.8 Race: Unknown/not reported
B60: a. Youth ages 14-24 who are neither working or in school | G60: 194 | S60: C.7a Military Status: Veteran
S61: C.7b Military Status: Active Military
B62: 5. Health | G62: Number of Individuals | S62: C.7c Military Status: Unknown/not reported
E63: Yes | F63: No | G63: Unknown | S63: C.8a Work Status: Employed full-time
B64: a. Disabling Condition | E64: 688 | F64: 1917 | G64: 591 | H64: =SUM(E64:G64) -> 3196 | S64: C.8b Work Status: Employed part-time
E65: Yes | F65: No | G65: Unknown | S65: C.8c Work Status: Migrant seasonal farm worker
B66: b. Health Insurance* | E66: 1741 | F66: 850 | G66: 605 | H66: =SUM(E66:G66) -> 3196 | S66: C.8d Work Status: Unemployed (Short-term, 6 months or less)
B67: *If an individual reported that they had Health Insurance please identify the source of health insurance below. | S67: C.8e Work Status: Unemployed (Long-term, more than 6 months)
C68: Health Insurance Sources | S68: C.8f Work Status: Unemployed (not in labor force)
C69: c.1. Medicaid | G69: 1190 | S69: C.8g Work Status: Retired
C70: c.2. Medicare | G70: 380 | S70: C.8h Work Status: Unknown/not reported
C71: c.3. State Children’s Health Insurance Program | G71: 23 | S71: C.3a Grades 0-8 [ages 25+]
C72: c.4. State Health Insurance for Adults | G72: 12 | S72: C.3b Grades 9-12/Non-graduate [ages 25+]
C73: c.5. Military Health Care | G73: 19 | S73: C.3c High school graduate/equivalency diploma [ages 25+]
C74: c.6. Direct-Purchase | G74: 20 | S74: C.3d 12 grade + Some Post-Secondary [ages 25+]
C75: c.7. Employment Based | G75: 69 | S75: C.3e 2 or 4 years college graduate [ages 25+]
C76: c.8. Unknown/not reported | G76: 28 | S76: C.3f Graduate of other post-secondary school [ages 25+]
C77: c.9. TOTAL (auto calculated) | G77: =SUM(G69:G76) -> 1741 | H77: =IF(C84= "ERROR: TOTAL COUNT OF INSURANCE SOURCES (C.5.c.9) IS LESS THAN C.5b[Yes]",1,0) -> 0 | S77: C.3g Unknown/not reported [ages 25+]
S78: D.9a Household Type: Single Person
C79: Section C.5 Status | S79: D.9b Household Type: Two Adults NO Children
C80: =IF(AND(E64+F64+G64>M7,M7<>"",H64<>0,M7<>0,M7>0,M7<100000000,H64>0,H64<100000000),"ERROR: SUM OF INDIVIDUALS REPORTED IN DISABLING CONDITION C.5a DATA FIELDS CANNOT BE GREATER THAN THE TOTAL UNDUPLICATED NUMBER OF ALL INDIVIDUALS (ITEM A)",IF(AND(E64+F64+G64<M7,H64<>0,M7>0,M7<100000000,H64>0,H64<100000000),"ERROR: SUM OF INDIVIDUALS REPORTED IN DISABLING CONDITION C.5a DATA FIELDS IS LESS THAN THE TOTAL UNDUPLICATED NUMBER OF ALL INDIVIDUALS (ITEM A)","")) ->  | S80: D.9c Household Type: Single Parent Female
S81: D.9d Household Type: Single Parent Male
C82: =IF(AND(H66<>0,E66+F66+G66>M7,M7<>"",M7<>0,M7>0,M7<100000000,H66>0,H66<100000000),"ERROR: SUM OF INDIVIDUALS REPORTED IN HEALTH INSURANCE C.5b DATA FIELDS CANNOT BE GREATER THAN THE TOTAL UNDUPLICATED NUMBER OF ALL INDIVIDUALS (ITEM A)",IF(AND(H66<>0,E66+F66+G66<M7,M7<>"",M7<>0,M7>0,M7<100000000,H66>0,H66<100000000),"ERROR: SUM OF INDIVIDUALS REPORTED IN HEALTH INSURANCE C.5b DATA FIELDS IS LESS THAN THE TOTAL UNDUPLICATED NUMBER OF ALL INDIVIDUALS (ITEM A)","")) ->  | S82: D.9e Household Type: Two Parent Household
S83: D.9f Household Type: Non-Related Adults with Children
C84: =IF(AND(G77<>0,G77<E66,G77>0,G77<100000000),"ERROR: TOTAL COUNT OF INSURANCE SOURCES (C.5.c.9) IS LESS THAN C.5b[Yes]",IF(AND(G77<>0,G77>0,G77<100000000,OR(E66="",E66=0)),"ERROR: C.5b[Yes] MUST BE GREATER THAN ZERO","")) ->  | S84: D.9g Multigenerational Household
O85: ERROR: TOTAL COUNT GREATER THAN ITEM B | S85: D.9h Household Type: Other
C86: =IF(AND(M8="",SUM(F99,M99,F113,F126,F144,O117,O133)>0,SUM(F99,M99,F113,F126,F144,O117,O133)<100000000),"IN ITEM B (TOP OF THIS TAB), YOU MUST REPORT THE UNDUPLICATED NUMBER OF HOUSEHOLDS ABOUT WHOM CHARACTERISTICS WERE OBTAINED (ITEM B)",IF(AND(M8=0,SUM(F99,M99,F113,F126,F144,O117,O133)>0,SUM(F99,M99,F113,F126,F144,O117,O133)<100000000),"IN ITEM B (TOP OF THIS TAB), YOU MUST REPORT THE UNDUPLICATED NUMBER OF HOUSEHOLDS ABOUT WHOM CHARACTERISTICS WERE OBTAINED (ITEM B)","")) ->  | O86: ERROR: TOTAL COUNT LESS THAN ITEM B | S86: D.9i Household Type: Unknown/not reported
S87: D.10a Household Size: Single Person
B88: D. HOUSEHOLD LEVEL CHARACTERISTICS | S88: D.10b Household Size: Two
B89: 9. Household Type | F89: Number of Households | H89: 13. Sources of Household Income | M89: Number of Households | S89: D.10c Household Size: Three
B90: a. Single Person | F90: 826 | H90: a. Income from Employment Only | M90: 166 | S90: D.10d Household Size: Four
B91: b. Two Adults NO Children | F91: 225 | H91: b. Income from Employment and Other Income Source | M91: 19 | N91: =IF(OR(M91<0,M91>99999999),1,0) -> 0 | S91: D.10e Household Size: Five
B92: c. Single Parent Female | F92: 194 | H92: c. Income from Employment, Other Income Source, and Non-Cash Benefits | M92: 9 | N92: =IF(OR(M92<0,M92>99999999),1,0) -> 0 | S92: D.10f Household Size: Six or more
B93: d. Single Parent Male | F93: 35 | H93: d. Income from Employment and Non-Cash Benefits | M93: 17 | N93: =IF(OR(M93<0,M93>99999999),1,0) -> 0 | S93: D.10g Household Size: Unknown/not reported
B94: e. Two Parent Household | F94: 190 | H94: e. Other Income Source Only | M94: 372 | N94: =IF(OR(M94<0,M94>99999999),1,0) -> 0 | S94: D.11a Housing: Own
B95: f. Non-related Adults with Children | F95: 37 | H95: f. Other Income Source and Non-Cash Benefits | M95: 140 | N95: =IF(OR(M95<0,M95>99999999),1,0) -> 0 | S95: D.11b Housing: Rent
B96: g. Multigenerational Household | F96: 31 | H96: g. No Income | M96: 861 | S96: D.11c Housing: Other permanent housing
B97: h. Other | F97: 16 | H97: h. Non-Cash Benefits Only | M97: 72 | N97: =IF(OR(M97<0,M97>99999999),1,0) -> 0 | S97: D.11d Housing: Homeless
B98: i. Unknown/not reported | F98: 102 | H98: i. Unknown/not reported | S98: D.11e Housing: Other
C99: j. TOTAL (auto calculated) | F99: =SUM(F90:F98) -> 1656 | G99: =IF(C102<>"",1,0) -> 0 | H99: j. TOTAL (auto calculated) | M99: =SUM(M90:M98) -> 1656 | S99: D.11f Housing: Unknown/not reported
N100: =IF(I103<>"",1,0) -> 0 | S100: D.12a Level of Household Income: Up to 50%
C101: Section D.9 Status | S101: D.12b Level of Household Income: 51% to 75%
C102: =IF(AND(F99<>0,F99>M8,M8<>"",M8<>0,M8>0,M8<100000000,F99>0,F99<100000000),"ERROR: TOTAL HOUSEHOLD TYPE COUNT CANNOT BE GREATER THAN THE UNDUPLICATED NUMBER OF HOUSEHOLDS REPORTED IN ITEM B",IF(AND(F99<>0,F99<M8,M8<>"",M8<>0,M8>0,M8<100000000,F99>0,F99<100000000),"ERROR: HOUSEHOLD TYPE TOTAL COUNT LESS THAN THE UNDUPLICATED NUMBER OF HOUSEHOLDS REPORTED IN ITEM B","")) ->  | I102: Section D.13 Status | S102: D.12c Level of Household Income: 76% to 100%
I103: =IF(AND(M99<>0,M99>M8,M8<>"",M8<>0,M8>0,M8<100000000,M99>0,FM99<100000000),"ERROR: TOTAL SOURCES OF HOUSEHOLD INCOME COUNT CANNOT BE GREATER THAN THE UNDUPLICATED NUMBER OF HOUSEHOLDS REPORTED IN ITEM B",IF(AND(M99<>0,M99<M8,M8<>"",M8<>0,M8>0,M8<100000000,M99>0,FM99<100000000),"ERROR: SOURCES OF HOUSEHOLD INCOME TOTAL COUNT LESS THAN THE UNDUPLICATED NUMBER OF HOUSEHOLDS REPORTED IN ITEM B","")) ->  | S103: D.12d Level of Household Income: 101% to 125%
S104: D.12e Level of Household Income: 126% to 150%
B105: 10. Household Size | F105: Number of Households | S105: D.12f Level of Household Income: 151% to 175%
B106: a. Single Person | F106: 826 | H106: Below, please report the types of Other income and/or non-cash benefits received by the households who reported sources other than employment | S106: D.12g Level of Household Income: 176% to 200%
B107: b. Two | F107: 298 | S107: D.12h Level of Household Income: 201% to 250%
B108: c. Three | F108: 151 | S108: D.12i Level of Household Income: 251% and over
B109: d. Four | F109: 119 | J109: 14. Other Income Source | M109: Number of Households | S109: D.12j Level of Household Income: Unknown/not reported
B110: e. Five | F110: 92 | J110: a. TANF | M110: 2 | N110: =IF(AND(M110>M$91+M$92+M$94+M$95,N91<>1,N92<>1,N94<>1,N95<>1),1,0) -> 0 | S110: D.13a Sources of Household Income: Income from Employment Only
B111: f. Six or more | F111: 42 | J111: b. Supplemental Security Income (SSI) | M111: 227 | N111: =IF(AND(M111>M$91+M$92+M$94+M$95,N91<>1,N92<>1,N94<>1,N95<>1),1,0) -> 0 | S111: D.13b Sources of Household Income: Income from Employment and Other Income Source
B112: g. Unknown/not reported | F112: 128 | J112: c. Social Security Disability Income (SSDI) | M112: 288 | N112: =IF(AND(M112>M$91+M$92+M$94+M$95,N91<>1,N92<>1,N94<>1,N95<>1),1,0) -> 0 | S112: D.13c Sources of Household Income: Income from Employment, Other Income Source, and Non-Cash Benefits
B113: h. TOTAL (auto calculated) | F113: =SUM(F106:F112) -> 1656 | G113: =IF(C116<>"",1,0) -> 0 | J113: d. VA Service-Connected Disability Compensation | M113: 3 | N113: =IF(AND(M113>M$91+M$92+M$94+M$95,N91<>1,N92<>1,N94<>1,N95<>1),1,0) -> 0 | S113: D.13d Sources of Household Income: Income from Employment and Non-Cash Benefits
J114: e. VA Non-Service Connected Disability Pension | M114: 3 | N114: =IF(AND(M114>M$91+M$92+M$94+M$95,N91<>1,N92<>1,N94<>1,N95<>1),1,0) -> 0 | S114: D.13e Sources of Household Income: Other Income Source Only
C115: Section D.10 Status | J115: f. Private Disability Insurance | N115: =IF(AND(M115>M$91+M$92+M$94+M$95,N91<>1,N92<>1,N94<>1,N95<>1),1,0) -> 0 | S115: D.13f Sources of Household Income: Other Income Source and Non-Cash Benefits
C116: =IF(AND(F113<>0,F113>M8,M8<>"",M8<>0,M8>0,M8<100000000,F113>0,F113<100000000),"ERROR: TOTAL HOUSEHOLD SIZE COUNT CANNOT BE GREATER THAN THE UNDUPLICATED NUMBER OF HOUSEHOLDS REPORTED IN ITEM B",IF(AND(F113<>0,F113<M8,M8<>0,M8>0,M8>0,M8<100000000,F113>0,F113<100000000),"ERROR: HOUSEHOLD SIZE TOTAL COUNT LESS THAN THE UNDUPLICATED NUMBER OF HOUSEHOLDS REPORTED IN ITEM B","")) ->  | J116: g. Worker’s Compensation | N116: =IF(AND(M116>M$91+M$92+M$94+M$95,N91<>1,N92<>1,N94<>1,N95<>1),1,0) -> 0 | S116: D.13g Sources of Household Income: No Income
J117: h. Retirement Income from Social Security | M117: 292 | N117: =IF(AND(M117>M$91+M$92+M$94+M$95,N91<>1,N92<>1,N94<>1,N95<>1),1,0) -> 0 | O117: =SUM(M110:M124) -> 893 | S117: D.13h Sources of Household Income: Non-Cash Benefits Only
J118: i. Pension | M118: 16 | N118: =IF(AND(M118>M$91+M$92+M$94+M$95,N91<>1,N92<>1,N94<>1,N95<>1),1,0) -> 0 | S118: D.13i Sources of Household Income: Unknown/not reported
B119: 11. Housing | F119: Number of Households | J119: j. Child Support | M119: 21 | N119: =IF(AND(M119>M$91+M$92+M$94+M$95,N91<>1,N92<>1,N94<>1,N95<>1),1,0) -> 0 | S119: D.14a Other Income Source: TANF
B120: a. Own | F120: 256 | J120: k. Alimony or other Spousal Support | M120: 3 | N120: =IF(AND(M120>M$91+M$92+M$94+M$95,N91<>1,N92<>1,N94<>1,N95<>1),1,0) -> 0 | S120: D.14b Other Income Source: Supplemental Security Income (SSI)
B121: b. Rent | F121: 919 | J121: l. Unemployment Insurance | M121: 10 | N121: =IF(AND(M121>M$91+M$92+M$94+M$95,N91<>1,N92<>1,N94<>1,N95<>1),1,0) -> 0 | S121: D.14c Other Income Source: Social Security Disability Income (SSDI)
B122: c. Other permanent housing | F122: 3 | J122: m. EITC | N122: =IF(AND(M122>M$91+M$92+M$94+M$95,N91<>1,N92<>1,N94<>1,N95<>1),1,0) -> 0 | S122: D.14d Other Income Source: VA Service-Connected Disability Compensation
B123: d. Homeless | F123: 150 | J123: n. Other | M123: 17 | N123: =IF(AND(M123>M$91+M$92+M$94+M$95,N91<>1,N92<>1,N94<>1,N95<>1),1,0) -> 0 | S123: D.14e Other Income Source: VA Non-Service Connected Disability Pension
B124: e. Other | F124: 157 | J124: o. Unknown/not reported | M124: 11 | N124: =IF(AND(M124>M$91+M$92+M$94+M$95,N91<>1,N92<>1,N94<>1,N95<>1),1,0) -> 0 | S124: D.14f Other Income Source: Private Disability Insurance
B125: f. Unknown/not reported | F125: 171 | J125: Section D.14 Status | N125: =IF(M133>M92+M93+M95+M97,1,0) -> 0 | S125: D.14g Other Income Source: Worker's Compensation
B126: g. TOTAL (auto calculated) | F126: =SUM(F120:F125) -> 1656 | G126: =IF(C129<>"",1,0) -> 0 | N126: =IF(M134>M92+M93+M95+M97,1,0) -> 0 | S126: D.14h Other Income Source: Retirement Income from Social Security
J127: =IF(SUM(N110:N124)>0,"NO ITEM IN OTHER INCOME SOURCE (SECTION 14) CAN BE GREATER THAN THE SUM OF D.13b, D.13c, D.13e, & D.13f.","") ->  | N127: =IF(M135>M92+M93+M95+M97,1,0) -> 0 | S127: D.14i Other Income Source: Pension
C128: Section D.11 Status | N128: =IF(M136>M92+M93+M95+M97,1,0) -> 0 | S128: D.14j Other Income Source: Child Support
C129: =IF(AND(F126<>0,F126>M8,M8<>"",M8<>0,M8<>0,M8>0,M8<100000000,F126>0,F126<100000000),"ERROR: TOTAL HOUSING COUNT CANNOT BE GREATER THAN THE UNDUPLICATED NUMBER OF HOUSEHOLDS REPORTED IN ITEM B", IF(AND(F126<>0,F126<M8,M8<>"",M8<>0,M8<>0,M8>0,M8<100000000,F126>0,F126<100000000),"ERROR: HOUSING TOTAL COUNT LESS THAN THE UNDUPLICATED NUMBER OF HOUSEHOLDS REPORTED IN ITEM B","")) ->  | N129: =IF(M137>M92+M93+M95+M97,1,0) -> 0 | S129: D.14k Other Income Source: Alimony
J130: 15. Non-Cash Benefits | M130: Number of Households | N130: =IF(M138>M92+M93+M95+M97,1,0) -> 0 | S130: D.14l Other Income Source: Unemployment Insurance
J131: a. SNAP | M131: 17 | N131: =IF(AND(M131>M92+M93+M95+M97,N92<>1,N93<>1,N95<>1,N97<>1),1,0) -> 0 | S131: D.14m Other Income Source: EITC
B132: 12. Level of Household Income | F132: Number of Households | J132: b. WIC | M132: 1 | N132: =IF(AND(M132>M92+M93+M95+M97,N92<>1,N93<>1,N95<>1,N97<>1),1,0) -> 0 | S132: D.14n Other Income Source: Other
B133: (% of HHS Guideline) | J133: c. LIHEAP | N133: =IF(AND(M133>M92+M93+M95+M97,N92<>1,N93<>1,N95<>1,N97<>1),1,0) -> 0 | O133: =SUM(M131:M141) -> 20 | S133: D.14o Other Income Source: Unknown/not reported
B134: a. Up to 50% | F134: 1055 | J134: d. Housing Choice Voucher | N134: =IF(AND(M134>M92+M93+M95+M97,N92<>1,N93<>1,N95<>1,N97<>1),1,0) -> 0 | S134: D.15a Non-Cash Benefits: SNAP
B135: b. 51% to 75% | F135: 234 | J135: e. Public Housing | N135: =IF(AND(M135>M92+M93+M95+M97,N92<>1,N93<>1,N95<>1,N97<>1),1,0) -> 0 | S135: D.15b Non-Cash Benefits: WIC
B136: c. 76% to 100% | F136: 175 | J136: f. Permanent Supportive Housing | N136: =IF(AND(M136>M92+M93+M95+M97,N92<>1,N93<>1,N95<>1,N97<>1),1,0) -> 0 | S136: D.15c Non-Cash Benefits: LIHEAP
B137: d. 101% to 125% | F137: 106 | J137: g. HUD-VASH | N137: =IF(AND(M137>M92+M93+M95+M97,N92<>1,N93<>1,N95<>1,N97<>1),1,0) -> 0 | S137: D.15d Non-Cash Benefits: Housing Choice Voucher
B138: e. 126% to 150% | F138: 60 | J138: h. Childcare Voucher | N138: =IF(AND(M138>M92+M93+M95+M97,N92<>1,N93<>1,N95<>1,N97<>1),1,0) -> 0 | S138: D.15e Non-Cash Benefits: Public Housing
B139: f. 151% to 175% | F139: 7 | J139: i. Affordable Care Act Subsidy | N139: =IF(AND(M139>M92+M93+M95+M97,N92<>1,N93<>1,N95<>1,N97<>1),1,0) -> 0 | S139: D.15f Non-Cash Benefits: Permanent Supportive Housing
B140: g. 176% to 200% | F140: 3 | J140: j. Other | M140: 2 | N140: =IF(AND(M140>M92+M93+M95+M97,N92<>1,N93<>1,N95<>1,N97<>1),1,0) -> 0 | S140: D.15g Non-Cash Benefits: HUD-VASH
B141: h. 201% to 250% | F141: 9 | J141: k. Unknown/not reported | N141: =IF(AND(M141>M92+M93+M95+M97,N92<>1,N93<>1,N95<>1,N97<>1),1,0) -> 0 | S141: D.15h Non-Cash Benefits: Childcare Voucher
B142: i. 251% and over | F142: 7 | N142: =IF(M150>M106+M108+M110+M112,1,0) -> 0 | S142: D.15i Non-Cash Benefits: Affordable Care Act Subsidy
B143: j. Unknown/not reported | J143: Section D.15 Status | S143: D.15j Non-Cash Benefits: Other
B144: k. TOTAL (auto calculated) | F144: =SUM(F134:F143) -> 1656 | G144: =IF(C147<>"",1,0) -> 0 | J144: =IF(SUM(N131:N141)>0,"NO ITEM IN NON CASH BENEFITS (SECTION 15) CAN BE GREATER THAN THE SUM OF D.13c, D.13d, D.13f, and D.13h. ","") ->  | S144: D.15k Non-Cash Benefits: Unknown/not reported
C146: Section D.12 Status
C147: =IF(AND(F144<>0,F144>M8,M8<>"",M8<>0,M8>0,M8<100000000,F144>0,F144<100000000),"ERROR: TOTAL LEVEL OF HOUSEHOLD INCOME COUNT CANNOT BE GREATER THAN THE UNDUPLICATED NUMBER OF HOUSEHOLDS REPORTED IN ITEM B", IF(AND(F144<>0,F144<M8,M8<>"",M8<>0,M8>0,M8<100000000,F144>0,F144<100000000),"ERROR: LEVEL OF HOUSEHOLD INCOME TOTAL COUNT LESS THAN THE UNDUPLICATED NUMBER OF HOUSEHOLDS REPORTED IN ITEM B","")) -> 
B149: E. Number of Individuals Who May or May Not be Included in the Totals Above (due to data collection system integration barriers)
C150: a. Please list the unduplicated number of INDIVIDUALS served in each program*: | J150: Program Name | L150: Number of Individuals
C151: =IF(J166<>L166,"ENTRY INCOMPLETE: Enter Program Name and Number of Individuals Served", "") -> 
J166: =COUNTIF(J151:J165,"") -> 15 | L166: =COUNTIF(L151:L165,"") -> 15
B167: F. Number of Households Who May or May Not be Included in the Totals Above (due to data collection system integration barriers)
C168: a. Please list the unduplicated number of HOUSEHOLDS served in each program*: | J168: Program Name | L168: Number of Households
C169: =IF(J184<>L184,"ENTRY INCOMPLETE: Enter Program Name and Number of Households Served","") -> 
J184: =COUNTIF(J169:J183,"") -> 15 | L184: =COUNTIF(L169:L183,"") -> 15

Sheet Year to Year Comparisons NPIs
B2: Name of CSBG Eligible Entity Reporting: | D2: =M4AgencyName -> Southeastern Utah Association of Local Governments
B3: State: | D3: =M4StateName -> Utah | J3: DUNS: | K3: =M4DUNS -> 097758627
B5: Indicators: | D5: FY 2019 | E5: FY 2020 | G5: % Change | H5: Change from FY19 - FY20 | J5: FY 2019 | K5: FY 2020 | M5: % Change | N5: Change from FY19 - FY20
B6: Employment (FNPI 1) | D6: I.) Number of Participants Served in program(s) (#) | E6: I.) Number of Individuals Served in program(s) (#) | G6: I.) Number of Participants Served in program(s) (#) | H6: I.) Number of Individuals Served in program(s) (#) | J6: III.) Actual Results (#) | K6: III.) Actual Results (#) | M6: III.) Actual Results (#) | N6: III.) Actual Results (#)
B7: FNPI 1a The number of unemployed youth who obtained employment to gain skills or income. | D7: 8 | E7: =IF(ISBLANK('Employment NPIs'!D9),"",'Employment NPIs'!D9) -> 11 | G7: =IF(AND(D7="",E7=""),"",IFERROR((E7-D7)/MIN(D7,E7),"")) -> 0.375 | H7: =IFERROR(E7-D7,"") -> 3 | J7: 7 | K7: =IF(ISBLANK('Employment NPIs'!F9),"",'Employment NPIs'!F9) -> 9 | M7: =IF(AND(J7="",K7=""),"",IFERROR((K7-J7)/MIN(J7,K7),"")) -> 0.2857142857 | N7: =IFERROR(K7-J7,"") -> 2
B8: FNPI 1b The number of unemployed adults who obtained employment (up to a living wage). | D8: 28 | E8: =IF(ISBLANK('Employment NPIs'!D10),"",'Employment NPIs'!D10) -> 39 | G8: =IF(AND(D8="",E8=""),"",IFERROR((E8-D8)/MIN(D8,E8),"")) -> 0.3928571429 | H8: =IFERROR(E8-D8,"") -> 11 | J8: 22 | K8: =IF(ISBLANK('Employment NPIs'!F10),"",'Employment NPIs'!F10) -> 34 | M8: 0.5454545455 | N8: =IFERROR(K8-J8,"") -> 12
B9: FNPI 1c The number of unemployed adults who obtained and maintained employment for at least 90 days (up to a living wage). | D9: 20 | E9: =IF(ISBLANK('Employment NPIs'!D11),"",'Employment NPIs'!D11) -> 42 | G9: 1.1 | H9: 22 | J9: 16 | K9: =IF(ISBLANK('Employment NPIs'!F11),"",'Employment NPIs'!F11) -> 35 | M9: 1.1875 | N9: 19
B10: FNPI 1d The number of unemployed adults who obtained and maintained employment for at least 180 days (up to a living wage). | D10: 20 | E10: =IF(ISBLANK('Employment NPIs'!D12),"",'Employment NPIs'!D12) -> 31 | G10: 0.55 | H10: 11 | J10: 16 | K10: =IF(ISBLANK('Employment NPIs'!F12),"",'Employment NPIs'!F12) -> 27 | M10: 0.6875 | N10: 11
B11: FNPI 1e The number of unemployed adults who obtained employment (with a living wage or higher). | D11: 12 | E11: =IF(ISBLANK('Employment NPIs'!D13),"",'Employment NPIs'!D13) -> 35 | G11: 1.916666667 | H11: 23 | J11: 11 | K11: =IF(ISBLANK('Employment NPIs'!F13),"",'Employment NPIs'!F13) -> 31 | M11: 1.818181818 | N11: 20
B12: FNPI 1f The number of unemployed adults who obtained and maintained employment for at least 90 days (with a living wage or higher). | D12: 14 | E12: =IF(ISBLANK('Employment NPIs'!D14),"",'Employment NPIs'!D14) -> 17 | G12: 0.2142857143 | H12: 3 | J12: 12 | K12: =IF(ISBLANK('Employment NPIs'!F14),"",'Employment NPIs'!F14) -> 14 | M12: 0.1666666667 | N12: 2
B13: FNPI 1g The number of unemployed adults who obtained and maintained employment for at least 180 days (with a living wage or higher). | D13: 14 | E13: =IF(ISBLANK('Employment NPIs'!D15),"",'Employment NPIs'!D15) -> 15 | G13: 0.07142857143 | H13: 1 | J13: 11 | K13: =IF(ISBLANK('Employment NPIs'!F15),"",'Employment NPIs'!F15) -> 12 | M13: 0.09090909091 | N13: 1
B14: FNPI 1h The number of employed participants in a career-advancement related program who entered or transitioned into a position that provided increased income and/or benefits. | D14: 6 | E14: =IF(ISBLANK('Employment NPIs'!D18),"",'Employment NPIs'!D18) -> 39 | G14: 5.5 | H14: 33 | J14: 4 | K14: =IF(ISBLANK('Employment NPIs'!F18),"",'Employment NPIs'!F18) -> 32 | M14: 7 | N14: 28
B15: FNPI 1h.1 The number of employed participants in a career advancement related program who increased income from employment through wage or salary amount increase. | C15: FNPI 1h.1 Of the above, the number of employed participants who Increased income from employment through wage or salary amount increase. | D15: 6 | E15: =IF(ISBLANK('Employment NPIs'!D19),"",'Employment NPIs'!D19) -> 36 | G15: 5 | H15: 30 | J15: 4 | K15: =IF(ISBLANK('Employment NPIs'!F19),"",'Employment NPIs'!F19) -> 32 | M15: 7 | N15: 28
B16: FNPI 1h.2 The number of employed participants in a career advancement related program who increased income from employment through hours worked increase. | C16: FNPI 1h.2 Of the above, the number of employed participants who increased income from employment through hours worked increase. | D16: 6 | E16: =IF(ISBLANK('Employment NPIs'!D20),"",'Employment NPIs'!D20) -> 23 | G16: 2.833333333 | H16: 17 | J16: 4 | K16: =IF(ISBLANK('Employment NPIs'!F20),"",'Employment NPIs'!F20) -> 20 | M16: 4 | N16: 16
B17: FNPI 1h.3 The number of employed participants in a career advancement related program who increased benefits related to employment. | C17: FNPI 1h.3 Of the above, the number of employed participants who increased benefits related to employment. | D17: 6 | E17: =IF(ISBLANK('Employment NPIs'!D21),"",'Employment NPIs'!D21) -> 11 | G17: 0.8333333333 | H17: 5 | J17: 4 | K17: =IF(ISBLANK('Employment NPIs'!F21),"",'Employment NPIs'!F21) -> 8 | M17: 1 | N17: 4
B19: Indicators: | D19: FY 2019 | E19: FY 2020 | G19: % Change | H19: Change from FY19 - FY20 | J19: FY 2019 | K19: FY 2020 | M19: % Change | N19: Change from FY19 - FY20
B20: Education and Cognitive Development (FNPI 2) | D20: I.) Number of Participants Served in program(s) (#) | E20: I.) Number of Individuals Served in program(s) (#) | G20: I.) Number of Participants Served in program(s) (#) | H20: I.) Number of Individuals Served in program(s) (#) | J20: III.) Actual Results (#) | K20: III.) Actual Results (#) | M20: III.) Actual Results (#) | N20: III.) Actual Results (#)
B21: FNPI 2a The number of children (0 to 5) who demonstrated improved emergent literacy skills. | E21: =IF(ISBLANK('Education NPIs'!D9),"",'Education NPIs'!D9) ->  | G21: =IF(AND(D21="",E21=""),"",IFERROR((E21-D21)/MIN(D21,E21),"")) ->  | H21: =IFERROR(E21-D21,"") ->  | K21: =IF(ISBLANK('Education NPIs'!F9),"",'Education NPIs'!F9) ->  | M21: =IF(AND(J21="",K21=""),"",IFERROR((K21-J21)/MIN(J21,K21),"")) ->  | N21: =IFERROR(K21-J21,"") -> 
B22: FNPI 2b The number of children (0 to 5) who demonstrated skills for school readiness. | E22: =IF(ISBLANK('Education NPIs'!D10),"",'Education NPIs'!D10) -> 10 | G22: 1 | H22: 10 | K22: =IF(ISBLANK('Education NPIs'!F10),"",'Education NPIs'!F10) -> 8 | M22: 1 | N22: 8
B23: FNPI 2c The number of children and youth who demonstrated improved positive approaches toward learning, including improved attention skills. (auto total). | E23: =IF(ISBLANK('Education NPIs'!D11),"",'Education NPIs'!D11) -> 0 | H23: 0 | K23: =IF(ISBLANK('Education NPIs'!F11),"",'Education NPIs'!F11) -> 0 | N23: 0
B24: FNPI 2c.1 Early Childhood Education (ages 0-5): The number of children and youth who demonstrated improved positive approaches toward learning, including improved attention skills | C24: FNPI 2c.1 Early Childhood Education (ages 0-5) | E24: =IF(ISBLANK('Education NPIs'!D12),"",'Education NPIs'!D12) ->  | K24: =IF(ISBLANK('Education NPIs'!F12),"",'Education NPIs'!F12) -> 
B25: FNPI 2c.2 1st grade - 8th grade: The number of children and youth who demonstrated improved positive approaches toward learning, including improved attention skills | C25: FNPI 2c.2 1st grade-8th grade | E25: =IF(ISBLANK('Education NPIs'!D13),"",'Education NPIs'!D13) ->  | K25: =IF(ISBLANK('Education NPIs'!F13),"",'Education NPIs'!F13) -> 
B26: FNPI 2c.3 9th grade - 12th grade: The number of children and youth who demonstrated improved positive approaches toward learning, including improved attention skills | C26: FNPI 2c.3 9th grade-12th grade | E26: =IF(ISBLANK('Education NPIs'!D14),"",'Education NPIs'!D14) ->  | K26: =IF(ISBLANK('Education NPIs'!F14),"",'Education NPIs'!F14) -> 
B27: FNPI 2d The number of children and youth who are achieving at basic grade level (academic, social, and other school success skills). (auto total) | E27: =IF(ISBLANK('Education NPIs'!D15),"",'Education NPIs'!D15) -> 0 | H27: 0 | K27: =IF(ISBLANK('Education NPIs'!F15),"",'Education NPIs'!F15) -> 0 | N27: 0
B28: FNPI 2d.1 Early Childhood Education (ages 0-5): The number of children and youth who are achieving at basic grade level (academic, social, and other school success skills) | C28: FNPI 2d.1 Early Childhood Education (ages 0-5) | E28: =IF(ISBLANK('Education NPIs'!D16),"",'Education NPIs'!D16) ->  | K28: =IF(ISBLANK('Education NPIs'!F16),"",'Education NPIs'!F16) -> 
B29: FNPI 2d.2 1st grade – 8th grade: The number of children and youth who are achieving at basic grade level (academic, social, and other school success skills) | C29: FNPI 2d.2 1st grade-8th grade | E29: =IF(ISBLANK('Education NPIs'!D17),"",'Education NPIs'!D17) ->  | K29: =IF(ISBLANK('Education NPIs'!F17),"",'Education NPIs'!F17) -> 
B30: FNPI 2d.3 9st grade – 12th grade: The number of children and youth who are achieving at basic grade level (academic, social, and other school success skills) | C30: FNPI 2d.3 9th grade-12th grade | E30: =IF(ISBLANK('Education NPIs'!D18),"",'Education NPIs'!D18) ->  | K30: =IF(ISBLANK('Education NPIs'!F18),"",'Education NPIs'!F18) -> 
B31: FNPI 2e The number of parents/caregivers who improved their home environments. | E31: =IF(ISBLANK('Education NPIs'!D19),"",'Education NPIs'!D19) -> 7 | G31: 1 | H31: 7 | K31: =IF(ISBLANK('Education NPIs'!F19),"",'Education NPIs'!F19) -> 4 | M31: 1 | N31: 4
B32: FNPI 2f The number of adults who demonstrated improved basic education. | E32: =IF(ISBLANK('Education NPIs'!D20),"",'Education NPIs'!D20) ->  | K32: =IF(ISBLANK('Education NPIs'!F20),"",'Education NPIs'!F20) -> 
B33: FNPI 2g The number of individuals who obtained a high school diploma and/or obtained an equivalency certificate or diploma. | E33: =IF(ISBLANK('Education NPIs'!D21),"",'Education NPIs'!D21) ->  | K33: =IF(ISBLANK('Education NPIs'!F21),"",'Education NPIs'!F21) -> 
B34: FNPI 2h The number of individuals who obtained a recognized credential, certificate, or degree relating to the achievement of educational or vocational skills. | E34: =IF(ISBLANK('Education NPIs'!D22),"",'Education NPIs'!D22) -> 1 | G34: 1 | H34: 1 | K34: =IF(ISBLANK('Education NPIs'!F22),"",'Education NPIs'!F22) -> 1 | M34: 1 | N34: 1
B35: FNPI 2i The number of individuals who obtained an Associate’s degree. | E35: =IF(ISBLANK('Education NPIs'!D23),"",'Education NPIs'!D23) ->  | K35: =IF(ISBLANK('Education NPIs'!F23),"",'Education NPIs'!F23) -> 
B36: FNPI 2j The number of individuals who obtained a Bachelor’s degree. | E36: =IF(ISBLANK('Education NPIs'!D24),"",'Education NPIs'!D24) ->  | K36: =IF(ISBLANK('Education NPIs'!F24),"",'Education NPIs'!F24) -> 
B38: Indicators: | D38: FY 2019 | E38: FY 2020 | G38: % Change | H38: Change from FY19 - FY20 | J38: FY 2019 | K38: FY 2020 | M38: % Change | N38: Change from FY19 - FY20
B39: Income and Asset Building (FNPI 3) | D39: I.) Number of Participants Served in program(s) (#) | E39: I.) Number of Individuals Served in program(s) (#) | G39: I.) Number of Participants Served in program(s) (#) | H39: I.) Number of Individuals Served in program(s) (#) | J39: III.) Actual Results (#) | K39: III.) Actual Results (#) | M39: III.) Actual Results (#) | N39: III.) Actual Results (#)
B40: FNPI 3a The number of individuals who achieved and maintained capacity to meet basic needs for 90 days. | D40: 35 | E40: =IF(ISBLANK('Income NPIs'!D9),"",'Income NPIs'!D9) -> 60 | G40: =IF(AND(D40="",E40=""),"",IFERROR((E40-D40)/MIN(D40,E40),"")) -> 0.7142857143 | H40: =IFERROR(E40-D40,"") -> 25 | J40: 29 | K40: =IF(ISBLANK('Income NPIs'!F9),"",'Income NPIs'!F9) -> 53 | M40: =IF(AND(J40="",K40=""),"",IFERROR((K40-J40)/MIN(J40,K40),"")) -> 0.8275862069 | N40: =IFERROR(K40-J40,"") -> 24
B41: FNPI 3b The number of individuals who achieved and maintained capacity to meet basic needs for 180 days. | D41: 32 | E41: =IF(ISBLANK('Income NPIs'!D10),"",'Income NPIs'!D10) -> 35 | G41: 0.09375 | H41: 3 | J41: 27 | K41: =IF(ISBLANK('Income NPIs'!F10),"",'Income NPIs'!F10) -> 28 | M41: 0.03703703704 | N41: 1
B42: FNPI 3c The number of individuals who opened a savings account or IDA. | D42: 13 | E42: =IF(ISBLANK('Income NPIs'!D11),"",'Income NPIs'!D11) -> 11 | G42: -0.1818181818 | H42: -2 | J42: 12 | K42: =IF(ISBLANK('Income NPIs'!F11),"",'Income NPIs'!F11) -> 9 | M42: -0.3333333333 | N42: -3
B43: FNPI 3d The number of individuals who increased their savings. | D43: 13 | E43: =IF(ISBLANK('Income NPIs'!D12),"",'Income NPIs'!D12) -> 26 | G43: 1 | H43: 13 | J43: 11 | K43: =IF(ISBLANK('Income NPIs'!F12),"",'Income NPIs'!F12) -> 21 | M43: 0.9090909091 | N43: 10
B44: FNPI 3e The number of individuals who used their savings to purchase an asset. | D44: 13 | E44: =IF(ISBLANK('Income NPIs'!D13),"",'Income NPIs'!D13) -> 11 | G44: -0.1818181818 | H44: -2 | J44: 11 | K44: =IF(ISBLANK('Income NPIs'!F13),"",'Income NPIs'!F13) -> 9 | M44: -0.2222222222 | N44: -2
B45: FNPI 3f The number of individuals who purchased a home. | D45: 10 | E45: =IF(ISBLANK('Income NPIs'!D14),"",'Income NPIs'!D14) -> 8 | G45: -0.25 | H45: -2 | J45: 7 | K45: =IF(ISBLANK('Income NPIs'!F14),"",'Income NPIs'!F14) -> 6 | M45: -0.1666666667 | N45: -1
B46: FNPI 3g The number of individuals who improved their credit scores. | D46: 15 | E46: =IF(ISBLANK('Income NPIs'!D15),"",'Income NPIs'!D15) -> 34 | G46: 1.266666667 | H46: 19 | J46: 12 | K46: =IF(ISBLANK('Income NPIs'!F15),"",'Income NPIs'!F15) -> 25 | M46: 1.083333333 | N46: 13
B47: FNPI 3h The number of individuals who increased their net worth. | D47: 14 | E47: =IF(ISBLANK('Income NPIs'!D16),"",'Income NPIs'!D16) -> 31 | G47: 1.214285714 | H47: 17 | J47: 10 | K47: =IF(ISBLANK('Income NPIs'!F16),"",'Income NPIs'!F16) -> 24 | M47: 1.4 | N47: 14
B48: FNPI 3i The number of individuals engaged with the Community Action Agency who report improved financial well-being. | D48: 14 | E48: =IF(ISBLANK('Income NPIs'!D17),"",'Income NPIs'!D17) -> 36 | G48: 1.571428571 | H48: 22 | J48: 12 | K48: =IF(ISBLANK('Income NPIs'!F17),"",'Income NPIs'!F17) -> 30 | M48: 1.5 | N48: 18
B50: Indicators: | D50: FY 2019 | E50: FY 2020 | G50: % Change | H50: Change from FY19 - FY20 | J50: FY 2019 | K50: FY 2020 | M50: % Change | N50: Change from FY19 - FY20
B51: Housing (FNPI 4) | D51: I.) Number of Participants Served in program(s) (#) | E51: I.) Number of Individuals Served in program(s) (#) | G51: I.) Number of Participants Served in program(s) (#) | H51: I.) Number of Individuals Served in program(s) (#) | J51: III.) Actual Results (#) | K51: III.) Actual Results (#) | M51: III.) Actual Results (#) | N51: III.) Actual Results (#)
B52: FNPI 4a The number of households experiencing homelessness who obtained safe temporary shelter. | D52: 6 | E52: =IF(ISBLANK('Housing NPIs'!D9),"",'Housing NPIs'!D9) -> 40 | G52: =IF(AND(D52="",E52=""),"",IFERROR((E52-D52)/MIN(D52,E52),"")) -> 5.666666667 | H52: =IFERROR(E52-D52,"") -> 34 | J52: 5 | K52: =IF(ISBLANK('Housing NPIs'!F9),"",'Housing NPIs'!F9) -> 33 | M52: =IF(AND(J52="",K52=""),"",IFERROR((K52-J52)/MIN(J52,K52),"")) -> 5.6 | N52: =IFERROR(K52-J52,"") -> 28
B53: FNPI 4b The number of households who obtained safe and affordable housing. | D53: 78 | E53: =IF(ISBLANK('Housing NPIs'!D10),"",'Housing NPIs'!D10) -> 89 | G53: 0.141025641 | H53: 11 | J53: 36 | K53: =IF(ISBLANK('Housing NPIs'!F10),"",'Housing NPIs'!F10) -> 78 | M53: 1.166666667 | N53: 42
B54: FNPI 4c The number of households who maintained safe and affordable housing for 90 days. | D54: 42 | E54: =IF(ISBLANK('Housing NPIs'!D11),"",'Housing NPIs'!D11) -> 69 | G54: 0.6428571429 | H54: 27 | J54: 35 | K54: =IF(ISBLANK('Housing NPIs'!F11),"",'Housing NPIs'!F11) -> 60 | M54: 0.7142857143 | N54: 25
B55: FNPI 4d The number of households who maintained safe and affordable housing for 180 days. | D55: 44 | E55: =IF(ISBLANK('Housing NPIs'!D12),"",'Housing NPIs'!D12) -> 78 | G55: 0.7727272727 | H55: 34 | J55: 29 | K55: =IF(ISBLANK('Housing NPIs'!F12),"",'Housing NPIs'!F12) -> 65 | M55: 1.24137931 | N55: 36
B56: FNPI 4e The number of households who avoided eviction. | D56: 19 | E56: =IF(ISBLANK('Housing NPIs'!D13),"",'Housing NPIs'!D13) -> 127 | G56: 5.684210526 | H56: 108 | J56: 14 | K56: =IF(ISBLANK('Housing NPIs'!F13),"",'Housing NPIs'!F13) -> 109 | M56: 6.785714286 | N56: 95
B57: FNPI 4f The number of households who avoided foreclosure. | D57: 3 | E57: =IF(ISBLANK('Housing NPIs'!D14),"",'Housing NPIs'!D14) -> 18 | G57: 5 | H57: 15 | J57: 2 | K57: =IF(ISBLANK('Housing NPIs'!F14),"",'Housing NPIs'!F14) -> 15 | M57: 6.5 | N57: 13
B58: FNPI 4g The number of households who experienced improved health and safety due to improvements within their home (e.g. reduction or elimination of lead, radon, carbon dioxide and/or fire hazards or electrical issues, etc). | E58: =IF(ISBLANK('Housing NPIs'!D15),"",'Housing NPIs'!D15) -> 7 | G58: 1 | H58: 7 | K58: =IF(ISBLANK('Housing NPIs'!F15),"",'Housing NPIs'!F15) -> 5 | M58: 1 | N58: 5
B59: FNPI 4h The number of households with improved energy efficiency and/or energy burden reduction in their homes. | D59: 35 | E59: =IF(ISBLANK('Housing NPIs'!D16),"",'Housing NPIs'!D16) -> 68 | G59: 0.9428571429 | H59: 33 | J59: 27 | K59: =IF(ISBLANK('Housing NPIs'!F16),"",'Housing NPIs'!F16) -> 57 | M59: 1.111111111 | N59: 30
B61: Indicators: | D61: FY 2019 | E61: FY 2020 | G61: % Change | H61: Change from FY19 - FY20 | J61: FY 2019 | K61: FY 2020 | M61: % Change | N61: Change from FY19 - FY20
B62: Health and Social/Behavioral Development (FNPI 5) | D62: I.) Number of Participants Served in program(s) (#) | E62: I.) Number of Individuals Served in program(s) (#) | G62: I.) Number of Participants Served in program(s) (#) | H62: I.) Number of Individuals Served in program(s) (#) | J62: III.) Actual Results (#) | K62: III.) Actual Results (#) | M62: III.) Actual Results (#) | N62: III.) Actual Results (#)
B63: FNPI 5a The number of individuals who demonstrated increased nutrition skills (e.g. cooking, shopping, and growing food). | D63: 12 | E63: =IF(ISBLANK('Health NPIs'!D9),"",'Health NPIs'!D9) ->  | G63: =IF(AND(D63="",E63=""),"",IFERROR((E63-D63)/MIN(D63,E63),"")) ->  | H63: =IFERROR(E63-D63,"") ->  | J63: 8 | K63: =IF(ISBLANK('Health NPIs'!F9),"",'Health NPIs'!F9) ->  | M63: =IF(AND(J63="",K63=""),"",IFERROR((K63-J63)/MIN(J63,K63),"")) ->  | N63: =IFERROR(K63-J63,"") -> 
B64: FNPI 5b The number of individuals who demonstrated improved physical health and well-being. | E64: =IF(ISBLANK('Health NPIs'!D10),"",'Health NPIs'!D10) ->  | K64: =IF(ISBLANK('Health NPIs'!F10),"",'Health NPIs'!F10) -> 
B65: FNPI 5c The number of individuals who demonstrated improved mental and behavioral health and well-being. | E65: =IF(ISBLANK('Health NPIs'!D11),"",'Health NPIs'!D11) -> 4 | G65: 1 | H65: 4 | K65: =IF(ISBLANK('Health NPIs'!F11),"",'Health NPIs'!F11) -> 3 | M65: 1 | N65: 3
B66: FNPI 5d The number of individuals who improved skills related to the adult role of parents/ caregivers. | E66: =IF(ISBLANK('Health NPIs'!D12),"",'Health NPIs'!D12) ->  | K66: =IF(ISBLANK('Health NPIs'!F12),"",'Health NPIs'!F12) -> 
B67: FNPI 5e The number of parents/caregivers who demonstrated increased sensitivity and responsiveness in their interactions with their children. | E67: =IF(ISBLANK('Health NPIs'!D13),"",'Health NPIs'!D13) ->  | K67: =IF(ISBLANK('Health NPIs'!F13),"",'Health NPIs'!F13) -> 
B68: FNPI 5f The number of seniors (65+) who maintained an independent living situation. | E68: =IF(ISBLANK('Health NPIs'!D14),"",'Health NPIs'!D14) ->  | K68: =IF(ISBLANK('Health NPIs'!F14),"",'Health NPIs'!F14) -> 
B69: FNPI 5g The number of individuals with disabilities who maintained an independent living situation. | E69: =IF(ISBLANK('Health NPIs'!D15),"",'Health NPIs'!D15) ->  | K69: =IF(ISBLANK('Health NPIs'!F15),"",'Health NPIs'!F15) -> 
B70: FNPI 5h The number of individuals with chronic illness who maintained an independent living situation. | E70: =IF(ISBLANK('Health NPIs'!D16),"",'Health NPIs'!D16) ->  | K70: =IF(ISBLANK('Health NPIs'!F16),"",'Health NPIs'!F16) -> 
B71: FNPI 5i The number of individuals with no recidivating event for six months. | E71: =IF(ISBLANK('Health NPIs'!D17),"",'Health NPIs'!D17) -> 0 | H71: 0 | K71: =IF(ISBLANK('Health NPIs'!F17),"",'Health NPIs'!F17) -> 0 | N71: 0
B72: FNPI 5i.1 The number of youth with no recidivating event for six months. | C72: FNPI 5i.1 Youth (ages 14-17) | E72: =IF(ISBLANK('Health NPIs'!D18),"",'Health NPIs'!D18) ->  | K72: =IF(ISBLANK('Health NPIs'!F18),"",'Health NPIs'!F18) -> 
B73: FNPI 5i.2 The number of adults with no recidivating event for six months. | C73: FNPI 5i.2 Adults (ages 18+) | E73: =IF(ISBLANK('Health NPIs'!D19),"",'Health NPIs'!D19) ->  | K73: =IF(ISBLANK('Health NPIs'!F19),"",'Health NPIs'!F19) -> 
B75: Indicators: | D75: FY 2019 | E75: FY 2020 | G75: % Change | H75: Change from FY19 - FY20 | J75: FY 2019 | K75: FY 2020 | M75: % Change | N75: Change from FY19 - FY20
B76: Civic Engagement and Community Involvement Indicators (FNPI 6) | D76: I.) Number of Participants Served in program(s) (#) | E76: I.) Number of Participants Served in program(s) (#) | G76: I.) Number of Participants Served in program(s) (#) | H76: I.) Number of Participants Served in program(s) (#) | J76: III.) Actual Results (#) | K76: III.) Actual Results (#) | M76: III.) Actual Results (#) | N76: III.) Actual Results (#)
B77: FNPI 6a The number of Community Action program participants who increased skills, knowledge, and abilities to enable them to work with Community Action to improve conditions in the community. | D77: 158 | E77: =IF(ISBLANK('CivicEng&Comm NPIs'!D9),"",'CivicEng&Comm NPIs'!D9) -> 134 | G77: =IF(AND(D77="",E77=""),"",IFERROR((E77-D77)/MIN(D77,E77),"")) -> -0.1791044776 | H77: =IFERROR(E77-D77,"") -> -24 | J77: 148 | K77: =IF(ISBLANK('CivicEng&Comm NPIs'!F9),"",'CivicEng&Comm NPIs'!F9) -> 117 | M77: =IF(AND(J77="",K77=""),"",IFERROR((K77-J77)/MIN(J77,K77),"")) -> -0.264957265 | N77: =IFERROR(K77-J77,"") -> -31
B78: FNPI 6a.1 The number of Community Action program participants who improved their leadership skills to enable them to work with Community Action to improve conditions in the community. | C78: FNPI 6a.1 Of the above, the number of Community Action program participants who improved their leadership skills. | D78: 30 | E78: =IF(ISBLANK('CivicEng&Comm NPIs'!D10),"",'CivicEng&Comm NPIs'!D10) -> 32 | G78: 0.06666666667 | H78: 2 | J78: 28 | K78: =IF(ISBLANK('CivicEng&Comm NPIs'!F10),"",'CivicEng&Comm NPIs'!F10) -> 27 | M78: -0.03703703704 | N78: -1
B79: FNPI 6a.2 The number of Community Action program participants who improved their social networks to enable them to work with Community Action to improve conditions in the community. | C79: FNPI 6a.2 Of the above, the number of Community Action program participants who improved their social networks. | D79: 114 | E79: =IF(ISBLANK('CivicEng&Comm NPIs'!D11),"",'CivicEng&Comm NPIs'!D11) -> 98 | G79: -0.1632653061 | H79: -16 | J79: 99 | K79: =IF(ISBLANK('CivicEng&Comm NPIs'!F11),"",'CivicEng&Comm NPIs'!F11) -> 86 | M79: -0.1511627907 | N79: -13
B80: FNPI 6a.3 The number of Community Action program participants who gained other skills, knowledge and abilities to enhance their social networks to enable them to work with Community Action to improve conditions in the community. | C80: FNPI 6a.3 Of the above, the number of Community Action program participants who gained other skills, knowledge and abilities to enhance their ability to engage. | D80: 38 | E80: =IF(ISBLANK('CivicEng&Comm NPIs'!D12),"",'CivicEng&Comm NPIs'!D12) -> 39 | G80: 0.02631578947 | H80: 1 | J80: 32 | K80: =IF(ISBLANK('CivicEng&Comm NPIs'!F12),"",'CivicEng&Comm NPIs'!F12) -> 32 | M80: 0 | N80: 0
B82: Indicators: | D82: FY 2019 | E82: FY 2020 | G82: % Change | H82: Change from FY19 - FY20 | J82: FY 2019 | K82: FY 2020 | M82: % Change | N82: Change from FY19 - FY20
B83: Outcomes Across One or More Domains (FNPI 7) | D83: I.) Number of Participants Served in program(s) (#) | E83: I.) Number of Individuals Served in program(s) (#) | G83: I.) Number of Participants Served in program(s) (#) | H83: I.) Number of Individuals Served in program(s) (#) | J83: III.) Actual Results (#) | K83: III.) Actual Results (#) | M83: III.) Actual Results (#) | N83: III.) Actual Results (#)
B84: FNPI 7a The number of individuals who achieved one or more outcomes in the identified National Performance Indicators in one or more domains. | D84: 596 | E84: =IF(ISBLANK('Outcomes Across Mult Domains'!D9),"",'Outcomes Across Mult Domains'!D9) -> 2674 | G84: =IF(AND(D84="",E84=""),"",IFERROR((E84-D84)/MIN(D84,E84),"")) -> 3.486577181 | H84: =IFERROR(E84-D84,"") -> 2078 | J84: 536 | K84: =IF(ISBLANK('Outcomes Across Mult Domains'!F9),"",'Outcomes Across Mult Domains'!F9) -> 2486 | M84: =IF(AND(J84="",K84=""),"",IFERROR((K84-J84)/MIN(J84,K84),"")) -> 3.638059701 | N84: =IFERROR(K84-J84,"") -> 1950

Sheet Year to Year Comparisons SRVs
B2: Name of CSBG Eligible Entity Reporting: | C2: =M4AgencyName -> Southeastern Utah Association of Local Governments
B3: State: | C3: =M4StateName -> Utah | F3: DUNS: | G3: =M4DUNS -> 097758627
B5: SRVs | C5: FY 2019 | D5: FY 2020 | F5: % Change | G5: Change from FY19 - FY20
B6: Employment Services (SRV 1) | C6: Unduplicated Number of Individuals Served | D6: Unduplicated Number of Individuals Served | F6: I.) Number of Participants Served in program(s) (#) | G6: I.) Number of Participants Served in program(s) (#)
B7: Skills Training and Opportunities for Experience (SRV 1a-f)
B8: SRV 1a Vocational Training | C8: 2019 | D8: =IF(ISBLANK('Services Employment'!C9),"",'Services Employment'!C9) -> 5 | F8: =IF(AND(C8="",D8=""),"",IFERROR((D8-C8)/MIN(C8,D8),"")) -> -402.8 | G8: =IFERROR(D8-C8,"") -> -2014
B9: SRV 1b On-the-Job and other Work Experience | C9: 4 | D9: =IF(ISBLANK('Services Employment'!C10),"",'Services Employment'!C10) -> 14 | F9: =IF(AND(C9="",D9=""),"",IFERROR((D9-C9)/MIN(C9,D9),"")) -> 2.5 | G9: =IFERROR(D9-C9,"") -> 10
B10: SRV 1c Youth Summer Work Placements | C10: 13 | D10: =IF(ISBLANK('Services Employment'!C11),"",'Services Employment'!C11) -> 
B11: SRV 1d Apprenticeship/Internship | D11: =IF(ISBLANK('Services Employment'!C12),"",'Services Employment'!C12) -> 3 | F11: 1 | G11: 3
B12: SRV 1e Self-Employment Skills Training | C12: 2 | D12: =IF(ISBLANK('Services Employment'!C13),"",'Services Employment'!C13) -> 2 | F12: 0 | G12: 0
B13: SRV 1f Job Readiness Training | C13: 2 | D13: =IF(ISBLANK('Services Employment'!C14),"",'Services Employment'!C14) -> 18 | F13: 8 | G13: 16
B14: Career Counseling (SRV 1g-h)
B15: SRV 1g Workshops | C15: 16 | D15: =IF(ISBLANK('Services Employment'!C16),"",'Services Employment'!C16) -> 12 | F15: =IF(AND(C15="",D15=""),"",IFERROR((D15-C15)/MIN(C15,D15),"")) -> -0.3333333333 | G15: =IFERROR(D15-C15,"") -> -4
B16: SRV 1h Coaching | C16: 14 | D16: =IF(ISBLANK('Services Employment'!C17),"",'Services Employment'!C17) -> 25 | F16: 0.7857142857 | G16: 11
B17: Job Search (SRV 1i-n)
B18: SRV 1i Coaching | C18: 27 | D18: =IF(ISBLANK('Services Employment'!C19),"",'Services Employment'!C19) -> 26 | F18: =IF(AND(C18="",D18=""),"",IFERROR((D18-C18)/MIN(C18,D18),"")) -> -0.03846153846 | G18: =IFERROR(D18-C18,"") -> -1
B19: SRV 1j Resume Development | C19: 18 | D19: =IF(ISBLANK('Services Employment'!C20),"",'Services Employment'!C20) -> 22 | F19: 0.2222222222 | G19: 4
B20: SRV 1k Interview Skills Training | C20: 20 | D20: =IF(ISBLANK('Services Employment'!C21),"",'Services Employment'!C21) -> 22 | F20: 0.1 | G20: 2
B21: SRV 1l Job Referrals | C21: 20 | D21: =IF(ISBLANK('Services Employment'!C22),"",'Services Employment'!C22) -> 46 | F21: 1.3 | G21: 26
B22: SRV 1m Job Placements | C22: 37 | D22: =IF(ISBLANK('Services Employment'!C23),"",'Services Employment'!C23) -> 13 | F22: -1.846153846 | G22: -24
B23: SRV 1n Pre-employment physicals, background checks, etc. | C23: 11 | D23: =IF(ISBLANK('Services Employment'!C24),"",'Services Employment'!C24) -> 14 | F23: 0.2727272727 | G23: 3
B24: Post Employment Supports (SRV 1o-p)
B25: SRV 1o Coaching | C25: 16 | D25: =IF(ISBLANK('Services Employment'!C26),"",'Services Employment'!C26) -> 9 | F25: =IF(AND(C25="",D25=""),"",IFERROR((D25-C25)/MIN(C25,D25),"")) -> -0.7777777778 | G25: =IFERROR(D25-C25,"") -> -7
B26: SRV 1p Interactions with employers | C26: 6 | D26: =IF(ISBLANK('Services Employment'!C27),"",'Services Employment'!C27) -> 13 | F26: 1.166666667 | G26: 7
B27: Employment Supplies (SRV 1q)
B28: SRV 1q Employment Supplies | C28: 9 | D28: =IF(ISBLANK('Services Employment'!C29),"",'Services Employment'!C29) -> 13 | F28: =IF(AND(C28="",D28=""),"",IFERROR((D28-C28)/MIN(C28,D28),"")) -> 0.4444444444 | G28: =IFERROR(D28-C28,"") -> 4
B30: SRVs | C30: FY 2019 | D30: FY 2020 | F30: % Change | G30: Change from FY19 - FY20
B31: Education and Cognitive Development Services (SRV 2) | C31: Unduplicated Number of Individuals Served | D31: Unduplicated Number of Individuals Served | F31: I.) Number of Participants Served in program(s) (#) | G31: I.) Number of Participants Served in program(s) (#)
B32: Child/Young Adult Education Programs (SRV 2a-j)
B33: SRV 2a Early Head Start | C33: 12 | D33: =IF(ISBLANK('Services Education'!C9),"",'Services Education'!C9) ->  | F33: =IF(AND(C33="",D33=""),"",IFERROR((D33-C33)/MIN(C33,D33),"")) ->  | G33: =IFERROR(D33-C33,"") -> 
B34: SRV 2b Head Start | D34: =IF(ISBLANK('Services Education'!C10),"",'Services Education'!C10) ->  | F34: =IF(AND(C34="",D34=""),"",IFERROR((D34-C34)/MIN(C34,D34),"")) ->  | G34: =IFERROR(D34-C34,"") -> 
B35: SRV 2c Other Early-Childhood (0-5 yr. old) Education | D35: =IF(ISBLANK('Services Education'!C11),"",'Services Education'!C11) -> 
B36: SRV 2d K-12 Education | D36: =IF(ISBLANK('Services Education'!C12),"",'Services Education'!C12) -> 
B37: SRV 2e K-12 Support Services | D37: =IF(ISBLANK('Services Education'!C13),"",'Services Education'!C13) -> 
B38: SRV 2f Financial Literacy Education | D38: =IF(ISBLANK('Services Education'!C14),"",'Services Education'!C14) -> 39 | F38: 1 | G38: 39
B39: SRV 2g Literacy/English Language Education | C39: 20 | D39: =IF(ISBLANK('Services Education'!C15),"",'Services Education'!C15) -> 
B40: SRV 2h College-Readiness Preparation/Support | C40: 1 | D40: =IF(ISBLANK('Services Education'!C16),"",'Services Education'!C16) -> 5 | F40: 4 | G40: 4
B41: SRV 2i Other Post Secondary Preparation | C41: 4 | D41: =IF(ISBLANK('Services Education'!C17),"",'Services Education'!C17) -> 
B42: SRV 2j Other Post Secondary Support | C42: 2 | D42: =IF(ISBLANK('Services Education'!C18),"",'Services Education'!C18) -> 
B43: School Supplies (SRV 2k)
B44: SRV 2k School Supplies | D44: =IF(ISBLANK('Services Education'!C20),"",'Services Education'!C20) -> 8 | F44: =IF(AND(C44="",D44=""),"",IFERROR((D44-C44)/MIN(C44,D44),"")) -> 1 | G44: =IFERROR(D44-C44,"") -> 8
B45: Extra-curricular Programs (SRV 2l-q)
B46: SRV 2l Before and After School Activities | C46: 7 | D46: =IF(ISBLANK('Services Education'!C22),"",'Services Education'!C22) -> 37 | F46: =IF(AND(C46="",D46=""),"",IFERROR((D46-C46)/MIN(C46,D46),"")) -> 4.285714286 | G46: =IFERROR(D46-C46,"") -> 30
B47: SRV 2m Summer Youth Recreational Activities | C47: 24 | D47: =IF(ISBLANK('Services Education'!C23),"",'Services Education'!C23) -> 
B48: SRV 2n Summer Education Programs | D48: =IF(ISBLANK('Services Education'!C24),"",'Services Education'!C24) -> 
B49: SRV 2o Behavior Improvement Programs (attitude, self-esteem, Dress-for-Success, etc.) | D49: =IF(ISBLANK('Services Education'!C25),"",'Services Education'!C25) -> 8 | F49: 1 | G49: 8
B50: SRV 2p Mentoring | C50: 9 | D50: =IF(ISBLANK('Services Education'!C26),"",'Services Education'!C26) -> 41 | F50: 3.555555556 | G50: 32
B51: SRV 2q Leadership Training | C51: 39 | D51: =IF(ISBLANK('Services Education'!C27),"",'Services Education'!C27) -> 33 | F51: -0.1818181818 | G51: -6
B52: Adult Education Programs (SRV 2r-z)
B53: SRV 2r Adult Literacy Classes | C53: 31 | D53: =IF(ISBLANK('Services Education'!C29),"",'Services Education'!C29) ->  | F53: =IF(AND(C53="",D53=""),"",IFERROR((D53-C53)/MIN(C53,D53),"")) ->  | G53: =IFERROR(D53-C53,"") -> 
B54: SRV 2s English Language Classes | D54: =IF(ISBLANK('Services Education'!C30),"",'Services Education'!C30) -> 
B55: SRV 2t Basic Education Classes | D55: =IF(ISBLANK('Services Education'!C31),"",'Services Education'!C31) -> 
B56: SRV 2u High School Equivalency Classes | D56: =IF(ISBLANK('Services Education'!C32),"",'Services Education'!C32) -> 
B57: SRV 2v Leadership Training | D57: =IF(ISBLANK('Services Education'!C33),"",'Services Education'!C33) -> 
B58: SRV 2w Parenting Supports (may be a part of the early childhood programs identified above) | D58: =IF(ISBLANK('Services Education'!C34),"",'Services Education'!C34) -> 
B59: SRV 2x Applied Technology Classes | D59: =IF(ISBLANK('Services Education'!C35),"",'Services Education'!C35) -> 
B60: SRV 2y Post-Secondary Education Preparation | D60: =IF(ISBLANK('Services Education'!C36),"",'Services Education'!C36) -> 
B61: SRV 2z Financial Literacy Education | D61: =IF(ISBLANK('Services Education'!C37),"",'Services Education'!C37) -> 31 | F61: 1 | G61: 31
B62: Post-Secondary Education Supports (SRV 2aa)
B63: SRV 2aa College applications, text books, computers, etc. | C63: 28 | D63: =IF(ISBLANK('Services Education'!C39),"",'Services Education'!C39) ->  | F63: =IF(AND(C63="",D63=""),"",IFERROR((D63-C63)/MIN(C63,D63),"")) ->  | G63: =IFERROR(D63-C63,"") -> 
B64: Financial Aid Assistance (SRV 2bb)
B65: SRV 2bb Scholarships | D65: =IF(ISBLANK('Services Education'!C41),"",'Services Education'!C41) ->  | F65: =IF(AND(C65="",D65=""),"",IFERROR((D65-C65)/MIN(C65,D65),"")) ->  | G65: =IFERROR(D65-C65,"") -> 
B66: Home Visits (SVR 2cc)
B67: SRV 2cc Home Visits | D67: =IF(ISBLANK('Services Education'!C43),"",'Services Education'!C43) -> 19 | F67: =IF(AND(C67="",D67=""),"",IFERROR((D67-C67)/MIN(C67,D67),"")) -> 1 | G67: =IFERROR(D67-C67,"") -> 19
B69: SRVs | C69: FY 2019 | D69: FY 2020 | F69: % Change | G69: Change from FY19 - FY20
B70: Income and Asset Building Services (SRV 3) | C70: Unduplicated Number of Individuals Served | D70: Unduplicated Number of Individuals Served | F70: I.) Number of Participants Served in program(s) (#) | G70: I.) Number of Participants Served in program(s) (#)
B71: Training and Counseling Services (SRV 3a-f)
B72: SRV 3a Financial Capability Skills Training | C72: 31 | D72: =IF(ISBLANK('Services Income'!C9),"",'Services Income'!C9) -> 58 | F72: =IF(AND(C72="",D72=""),"",IFERROR((D72-C72)/MIN(C72,D72),"")) -> 0.8709677419 | G72: =IFERROR(D72-C72,"") -> 27
B73: SRV 3b Financial Coaching/Counseling | C73: 60 | D73: =IF(ISBLANK('Services Income'!C10),"",'Services Income'!C10) -> 53 | F73: -0.1320754717 | G73: -7
B74: SRV 3c Financial Management Programs (including budgeting, credit management, credit repair, credit counseling, etc.) | C74: 52 | D74: =IF(ISBLANK('Services Income'!C11),"",'Services Income'!C11) -> 58 | F74: 0.1153846154 | G74: 6
B75: SRV 3d First-time Homebuyer Counseling | C75: 60 | D75: =IF(ISBLANK('Services Income'!C12),"",'Services Income'!C12) -> 17 | F75: -2.529411765 | G75: -43
B76: SRV 3e Foreclosure Prevention Counseling | C76: 27 | D76: =IF(ISBLANK('Services Income'!C13),"",'Services Income'!C13) -> 6 | F76: -3.5 | G76: -21
B77: SRV 3f Small Business Start-Up and Development Counseling Sessions/Classes | C77: 7 | D77: =IF(ISBLANK('Services Income'!C14),"",'Services Income'!C14) -> 8 | F77: 0.1428571429 | G77: 1
B78: Benefit Coordination and Advocacy (SRV 3g-l)
B79: SRV 3g Child Support Payments | C79: 8 | D79: =IF(ISBLANK('Services Income'!C16),"",'Services Income'!C16) -> 18 | F79: =IF(AND(C79="",D79=""),"",IFERROR((D79-C79)/MIN(C79,D79),"")) -> 1.25 | G79: =IFERROR(D79-C79,"") -> 10
B80: SRV 3h Health Insurance | C80: 15 | D80: =IF(ISBLANK('Services Income'!C17),"",'Services Income'!C17) -> 22 | F80: 0.4666666667 | G80: 7
B81: SRV 3i Social Security/SSI Payments | C81: 23 | D81: =IF(ISBLANK('Services Income'!C18),"",'Services Income'!C18) -> 20 | F81: -0.15 | G81: -3
B82: SRV 3j Veteran's Benefits | C82: 22 | D82: =IF(ISBLANK('Services Income'!C19),"",'Services Income'!C19) -> 19 | F82: -0.1578947368 | G82: -3
B83: SRV 3k TANF Benefits | C83: 19 | D83: =IF(ISBLANK('Services Income'!C20),"",'Services Income'!C20) -> 39 | F83: 1.052631579 | G83: 20
B84: SRV 3l SNAP Benefits | C84: 39 | D84: =IF(ISBLANK('Services Income'!C21),"",'Services Income'!C21) -> 52 | F84: 0.3333333333 | G84: 13
B85: Asset Building (SRV 3m-o)
B86: SRV 3m Saving Accounts/IDAs and other asset building accounts | C86: 46 | D86: =IF(ISBLANK('Services Income'!C23),"",'Services Income'!C23) -> 24 | F86: =IF(AND(C86="",D86=""),"",IFERROR((D86-C86)/MIN(C86,D86),"")) -> -0.9166666667 | G86: =IFERROR(D86-C86,"") -> -22
B87: SRV 3n Other financial products (IRA accounts, MyRA, other retirement accounts, etc.) | C87: 27 | D87: =IF(ISBLANK('Services Income'!C24),"",'Services Income'!C24) -> 2 | F87: -12.5 | G87: -25
B88: SRV 3o VITA, EITC, or Other Tax Preparation programs | C88: 3 | D88: =IF(ISBLANK('Services Income'!C25),"",'Services Income'!C25) -> 
B89: SRV 3p Loans And Grants (SRV 3p-q)
B90: SRV 3p Micro-loans | C90: 78 | D90: =IF(ISBLANK('Services Income'!C27),"",'Services Income'!C27) ->  | F90: =IF(AND(C90="",D90=""),"",IFERROR((D90-C90)/MIN(C90,D90),"")) -> 
B91: SRV 3q Business incubator/business development loans | D91: =IF(ISBLANK('Services Income'!C28),"",'Services Income'!C28) -> 3 | F91: 1 | G91: 3
B93: SRVs | C93: FY 2019 | D93: FY 2020 | F93: % Change | G93: Change from FY19 - FY20
B94: Housing Services (SRV 4) | C94: Unduplicated Number of Individuals Served | D94: Unduplicated Number of Individuals Served | F94: I.) Number of Participants Served in program(s) (#) | G94: I.) Number of Participants Served in program(s) (#)
B95: Housing Payment Assistance (SRV 4a-e)
B96: SRV 4a Financial Capability Skill Training | C96: 2 | D96: =IF(ISBLANK('Services Housing'!C9),"",'Services Housing'!C9) -> 32 | F96: =IF(AND(C96="",D96=""),"",IFERROR((D96-C96)/MIN(C96,D96),"")) -> 15 | G96: =IFERROR(D96-C96,"") -> 30
B97: SRV 4b Financial Coaching/Counseling | C97: 35 | D97: =IF(ISBLANK('Services Housing'!C10),"",'Services Housing'!C10) -> 34 | F97: -0.02941176471 | G97: -1
B98: SRV 4c Rent Payments (includes Emergency Rent Payments) | C98: 36 | D98: =IF(ISBLANK('Services Housing'!C11),"",'Services Housing'!C11) -> 186 | F98: 4.166666667 | G98: 150
B99: SRV 4d Deposit Payments | C99: 46 | D99: =IF(ISBLANK('Services Housing'!C12),"",'Services Housing'!C12) -> 48 | F99: 0.04347826087 | G99: 2
B100: SRV 4e Mortgage Payments (includes Emergency Mortgage Payments) | C100: 31 | D100: =IF(ISBLANK('Services Housing'!C13),"",'Services Housing'!C13) -> 7 | F100: -3.428571429 | G100: -24
B101: Eviction Prevention Services (SRV 4f-h)
B102: SRV 4f Eviction Counseling | C102: 7 | D102: =IF(ISBLANK('Services Housing'!C15),"",'Services Housing'!C15) -> 1 | F102: =IF(AND(C102="",D102=""),"",IFERROR((D102-C102)/MIN(C102,D102),"")) -> -6 | G102: =IFERROR(D102-C102,"") -> -6
B103: SRV 4g Landlord/Tenant Mediations | C103: 1 | D103: =IF(ISBLANK('Services Housing'!C16),"",'Services Housing'!C16) -> 16 | F103: 15 | G103: 15
B104: SRV 4h Landlord/Tenant Rights Education | C104: 9 | D104: =IF(ISBLANK('Services Housing'!C17),"",'Services Housing'!C17) -> 7 | F104: -0.2857142857 | G104: -2
B105: Utility Payment Assistance (SRV 4i-l)
B106: SRV 4i Utility Payments (LIHEAP-includes Emergency Utility Payments) | C106: 3 | D106: =IF(ISBLANK('Services Housing'!C19),"",'Services Housing'!C19) -> 3062 | F106: =IF(AND(C106="",D106=""),"",IFERROR((D106-C106)/MIN(C106,D106),"")) -> 1019.666667 | G106: =IFERROR(D106-C106,"") -> 3059
B107: SRV 4j Utility Deposits | C107: 2019 | D107: =IF(ISBLANK('Services Housing'!C20),"",'Services Housing'!C20) -> 23 | F107: -86.7826087 | G107: -1996
B108: SRV 4k Utility Arrears Payments | C108: 15 | D108: =IF(ISBLANK('Services Housing'!C21),"",'Services Housing'!C21) -> 26 | F108: 0.7333333333 | G108: 11
B109: SRV 4l Level Billing Assistance | C109: 9 | D109: =IF(ISBLANK('Services Housing'!C22),"",'Services Housing'!C22) -> 
B110: Housing Placement/Rapid Re-housing (SRV 4m-p)
B111: SRV 4m Temporary Housing Placement (includes Emergency Shelters) | D111: =IF(ISBLANK('Services Housing'!C24),"",'Services Housing'!C24) -> 10 | F111: =IF(AND(C111="",D111=""),"",IFERROR((D111-C111)/MIN(C111,D111),"")) -> 1 | G111: =IFERROR(D111-C111,"") -> 10
B112: SRV 4n Transitional Housing Placements | D112: =IF(ISBLANK('Services Housing'!C25),"",'Services Housing'!C25) -> 
B113: SRV 4o Permanent Housing Placements | D113: =IF(ISBLANK('Services Housing'!C26),"",'Services Housing'!C26) -> 38 | F113: 1 | G113: 38
B114: SRV 4p Rental Counseling | C114: 22 | D114: =IF(ISBLANK('Services Housing'!C27),"",'Services Housing'!C27) -> 2 | F114: -10 | G114: -20
B115: Housing Maintenance & Improvements (SRV 4q)
B116: SRV 4q Home Repairs (e.g. structural, appliance, heating systems. etc.) (Including Emergency Home Repairs) | D116: =IF(ISBLANK('Services Housing'!C29),"",'Services Housing'!C29) ->  | F116: =IF(AND(C116="",D116=""),"",IFERROR((D116-C116)/MIN(C116,D116),"")) ->  | G116: =IFERROR(D116-C116,"") -> 
B117: Weatherization Services (SRV 4r-t)
B118: SRV 4r Independent-living Home Improvements (e.g. ramps, tub and shower grab bars, handicap accessible modifications, etc.) | D118: =IF(ISBLANK('Services Housing'!C31),"",'Services Housing'!C31) ->  | F118: =IF(AND(C118="",D118=""),"",IFERROR((D118-C118)/MIN(C118,D118),"")) ->  | G118: =IFERROR(D118-C118,"") -> 
B119: SRV 4s Healthy Homes Services(e.g. reduction or elimination of lead, radon, carbon dioxide and/or fire hazards or electrical issues, etc.) | D119: =IF(ISBLANK('Services Housing'!C32),"",'Services Housing'!C32) -> 
B120: SRV 4t Energy Efficiency Improvements (e.g. insullation, air sealing, furnace repair, etc.) | D120: =IF(ISBLANK('Services Housing'!C33),"",'Services Housing'!C33) -> 
B122: SRVs | C122: FY 2019 | D122: FY 2020 | F122: % Change | G122: Change from FY19 - FY20
B123: Health and Social/Behavioral Development Services (SRV 5) | C123: Unduplicated Number of Individuals Served | D123: Unduplicated Number of Individuals Served | F123: I.) Number of Participants Served in program(s) (#) | G123: I.) Number of Participants Served in program(s) (#)
B124: Health Services, Screening and Assessments (SRV 5a-j)
B125: SRV 5a Immunizations | D125: =IF(ISBLANK('Services Health and Social'!C9),"",'Services Health and Social'!C9) ->  | F125: =IF(AND(C125="",D125=""),"",IFERROR((D125-C125)/MIN(C125,D125),"")) ->  | G125: =IFERROR(D125-C125,"") -> 
B126: SRV 5b Physicals | D126: =IF(ISBLANK('Services Health and Social'!C10),"",'Services Health and Social'!C10) -> 
B127: SRV 5c Developmental Delay Screening | D127: =IF(ISBLANK('Services Health and Social'!C11),"",'Services Health and Social'!C11) -> 
B128: SRV 5d Vision Screening | D128: =IF(ISBLANK('Services Health and Social'!C12),"",'Services Health and Social'!C12) -> 
B129: SRV 5e Prescription Payments | D129: =IF(ISBLANK('Services Health and Social'!C13),"",'Services Health and Social'!C13) -> 
B130: SRV 5f Doctor Visit Payments | D130: =IF(ISBLANK('Services Health and Social'!C14),"",'Services Health and Social'!C14) -> 
B131: SRV 5g Maternal/Child Health | D131: =IF(ISBLANK('Services Health and Social'!C15),"",'Services Health and Social'!C15) -> 
B132: SRV 5h Nursing Care Sessions | D132: =IF(ISBLANK('Services Health and Social'!C16),"",'Services Health and Social'!C16) -> 
B133: SRV 5i In-Home Affordable Seniors/Disabled Care Sessions (Nursing, Chores, Personal Care Services) | D133: =IF(ISBLANK('Services Health and Social'!C17),"",'Services Health and Social'!C17) -> 
B134: SRV 5j Health Insurance Options Counseling | D134: =IF(ISBLANK('Services Health and Social'!C18),"",'Services Health and Social'!C18) -> 
B135: Reproductive Health Services (SRV 5k-o)
B136: SRV 5k Coaching Sessions | D136: =IF(ISBLANK('Services Health and Social'!C20),"",'Services Health and Social'!C20) ->  | F136: =IF(AND(C136="",D136=""),"",IFERROR((D136-C136)/MIN(C136,D136),"")) ->  | G136: =IFERROR(D136-C136,"") -> 
B137: SRV 5l Family Planning Classes | D137: =IF(ISBLANK('Services Health and Social'!C21),"",'Services Health and Social'!C21) -> 
B138: SRV 5m Contraceptives | D138: =IF(ISBLANK('Services Health and Social'!C22),"",'Services Health and Social'!C22) -> 
B139: SRV 5n STI/HIV Prevention Counseling Sessions | D139: =IF(ISBLANK('Services Health and Social'!C23),"",'Services Health and Social'!C23) -> 
B140: SRV 5o STI/HIV Screenings | D140: =IF(ISBLANK('Services Health and Social'!C24),"",'Services Health and Social'!C24) -> 
B141: Wellness Education (SRV 5p-q)
B142: SRV 5p Wellness Classes (stress reduction, medication management, mindfulness, etc.) | D142: =IF(ISBLANK('Services Health and Social'!C26),"",'Services Health and Social'!C26) ->  | F142: =IF(AND(C142="",D142=""),"",IFERROR((D142-C142)/MIN(C142,D142),"")) ->  | G142: =IFERROR(D142-C142,"") -> 
B143: SRV 5q Exercise/Fitness | D143: =IF(ISBLANK('Services Health and Social'!C27),"",'Services Health and Social'!C27) -> 
B144: Mental/Behavioral Health (SRV 5r-x)
B145: SRV 5r Detoxification Sessions | D145: =IF(ISBLANK('Services Health and Social'!C29),"",'Services Health and Social'!C29) ->  | F145: =IF(AND(C145="",D145=""),"",IFERROR((D145-C145)/MIN(C145,D145),"")) ->  | G145: =IFERROR(D145-C145,"") -> 
B146: SRV 5s Substance Abuse Screenings | D146: =IF(ISBLANK('Services Health and Social'!C30),"",'Services Health and Social'!C30) -> 
B147: SRV 5t Substance Abuse Counseling | D147: =IF(ISBLANK('Services Health and Social'!C31),"",'Services Health and Social'!C31) -> 
B148: SRV 5u Mental Health Assessments | D148: =IF(ISBLANK('Services Health and Social'!C32),"",'Services Health and Social'!C32) -> 3 | F148: 1 | G148: 3
B149: SRV 5v Mental Health Counseling | D149: =IF(ISBLANK('Services Health and Social'!C33),"",'Services Health and Social'!C33) -> 3 | F149: 1 | G149: 3
B150: SRV 5w Crisis Response/Call-In Responses | D150: =IF(ISBLANK('Services Health and Social'!C34),"",'Services Health and Social'!C34) -> 
B151: SRV 5x Domestic Violence Programs | D151: =IF(ISBLANK('Services Health and Social'!C35),"",'Services Health and Social'!C35) -> 
B152: Support Groups (SRV 5y-aa)
B153: SRV 5y Substance Abuse Support Group Meetings | D153: =IF(ISBLANK('Services Health and Social'!C37),"",'Services Health and Social'!C37) ->  | F153: =IF(AND(C153="",D153=""),"",IFERROR((D153-C153)/MIN(C153,D153),"")) ->  | G153: =IFERROR(D153-C153,"") -> 
B154: SRV 5z Domestic Violence Support Group Meetings | D154: =IF(ISBLANK('Services Health and Social'!C38),"",'Services Health and Social'!C38) -> 
B155: SRV 5aa Mental Health Support Group Meeting | D155: =IF(ISBLANK('Services Health and Social'!C39),"",'Services Health and Social'!C39) -> 
B156: Dental Services, Screenings and Exams (SRV 5bb-ee)
B157: SRV 5bb Adult Dental Screening/Exams | D157: =IF(ISBLANK('Services Health and Social'!C42),"",'Services Health and Social'!C42) ->  | F157: =IF(AND(C157="",D157=""),"",IFERROR((D157-C157)/MIN(C157,D157),"")) ->  | G157: =IFERROR(D157-C157,"") -> 
B158: SRV 5cc Adult Dental Services (including Emergency Dental Procedures) | D158: =IF(ISBLANK('Services Health and Social'!C43),"",'Services Health and Social'!C43) -> 
B159: SRV 5dd Child Dental Screenings/Exams | D159: =IF(ISBLANK('Services Health and Social'!C44),"",'Services Health and Social'!C44) -> 
B160: SRV 5ee Child Dental Services (including Emergency Dental Procedures) | D160: =IF(ISBLANK('Services Health and Social'!C45),"",'Services Health and Social'!C45) -> 
B161: Nutrition and Food/Meals (SRV 5ff-jj)
B162: SRV 5ff Skills Classes (Gardening, Cooking, Nutrition) | D162: =IF(ISBLANK('Services Health and Social'!C47),"",'Services Health and Social'!C47) ->  | F162: =IF(AND(C162="",D162=""),"",IFERROR((D162-C162)/MIN(C162,D162),"")) ->  | G162: =IFERROR(D162-C162,"") -> 
B163: SRV 5gg Community Gardening Activities | C163: 27 | D163: =IF(ISBLANK('Services Health and Social'!C48),"",'Services Health and Social'!C48) -> 
B164: SRV 5hh Incentives (e.g. gift card for food preparation, rewards for participation, etc.) | C164: 9 | D164: =IF(ISBLANK('Services Health and Social'!C49),"",'Services Health and Social'!C49) -> 
B165: SRV 5ii Prepared Meals | D165: =IF(ISBLANK('Services Health and Social'!C50),"",'Services Health and Social'!C50) -> 
B166: SRV 5jj Food Distribution (Food Bags/Boxes, Food Share Program, Bags of Groceries) | C166: 96 | D166: =IF(ISBLANK('Services Health and Social'!C51),"",'Services Health and Social'!C51) -> 2265 | F166: 22.59375 | G166: 2169
B167: Family Skills Development (SRV 5kk-mm)
B168: SRV 5kk Family Mentoring Sessions | C168: 472 | D168: =IF(ISBLANK('Services Health and Social'!C53),"",'Services Health and Social'!C53) ->  | F168: =IF(AND(C168="",D168=""),"",IFERROR((D168-C168)/MIN(C168,D168),"")) ->  | G168: =IFERROR(D168-C168,"") -> 
B169: SRV 5ll Life Skills Coaching Sessions | D169: =IF(ISBLANK('Services Health and Social'!C54),"",'Services Health and Social'!C54) -> 
B170: SRV 5mm Parenting Classes | D170: =IF(ISBLANK('Services Health and Social'!C55),"",'Services Health and Social'!C55) -> 
B171: Emergency Hygiene Assistance (SRV 5nn-oo)
B172: SRV 5nn Kits/boxes | D172: =IF(ISBLANK('Services Health and Social'!C57),"",'Services Health and Social'!C57) -> 10 | F172: =IF(AND(C172="",D172=""),"",IFERROR((D172-C172)/MIN(C172,D172),"")) -> 1 | G172: =IFERROR(D172-C172,"") -> 10
B173: SRV 5oo Hygiene Facility Utilizations (e.g. showers, toilets, sinks) | D173: =IF(ISBLANK('Services Health and Social'!C58),"",'Services Health and Social'!C58) -> 
B175: SRVs | C175: FY 2019 | D175: FY 2020 | F175: % Change | G175: Change from FY19 - FY20
B176: Civic Engagement and Community Involvement Services (SRV 6a-f) | C176: Unduplicated Number of Individuals Served | D176: Unduplicated Number of Individuals Served | F176: I.) Number of Participants Served in program(s) (#) | G176: I.) Number of Participants Served in program(s) (#)
B177: SRV 6a Voter Education and Access | D177: =IF(ISBLANK('Services Civic Eng. & Comm Inv.'!C8),"",'Services Civic Eng. & Comm Inv.'!C8) -> 11 | F177: =IF(AND(C177="",D177=""),"",IFERROR((D177-C177)/MIN(C177,D177),"")) -> 1 | G177: =IFERROR(D177-C177,"") -> 11
B178: SRV 6b Leadership Training | C178: 12 | D178: =IF(ISBLANK('Services Civic Eng. & Comm Inv.'!C10),"",'Services Civic Eng. & Comm Inv.'!C10) -> 36 | F178: 2 | G178: 24
B179: SRV 6c Tri-partite Board Membership | C179: 39 | D179: =IF(ISBLANK('Services Civic Eng. & Comm Inv.'!C11),"",'Services Civic Eng. & Comm Inv.'!C11) -> 12 | F179: -2.25 | G179: -27
B180: SRV 6d Citizenship Classes | C180: 12 | D180: =IF(ISBLANK('Services Civic Eng. & Comm Inv.'!C12),"",'Services Civic Eng. & Comm Inv.'!C12) -> 
B181: SRV 6e Getting Ahead Classes | D181: =IF(ISBLANK('Services Civic Eng. & Comm Inv.'!C13),"",'Services Civic Eng. & Comm Inv.'!C13) -> 16 | F181: 1 | G181: 16
B182: SRV 6f Volunteer Training | C182: 15 | D182: =IF(ISBLANK('Services Civic Eng. & Comm Inv.'!C14),"",'Services Civic Eng. & Comm Inv.'!C14) -> 59 | F182: 2.933333333 | G182: 44
B184: SRVs | C184: FY 2019 | D184: FY 2020 | F184: % Change | G184: Change from FY19 - FY20
B185: Services Supporting Multiple Domains (SRV 7) | C185: Unduplicated Number of Individuals Served | D185: Unduplicated Number of Individuals Served | F185: I.) Number of Participants Served in program(s) (#) | G185: I.) Number of Participants Served in program(s) (#)
B186: Case Management (SRV 7a)
B187: SRV 7a Case Management | C187: 68 | D187: =IF(ISBLANK('Support Services'!C9),"",'Support Services'!C9) -> 374 | F187: =IF(AND(C187="",D187=""),"",IFERROR((D187-C187)/MIN(C187,D187),"")) -> 4.5 | G187: =IFERROR(D187-C187,"") -> 306
B188: Eligibility Determinations (SRV 7b)
B189: SRV 7b Eligibility Determinations | C189: 299 | D189: =IF(ISBLANK('Support Services'!C11),"",'Support Services'!C11) -> 472 | F189: =IF(AND(C189="",D189=""),"",IFERROR((D189-C189)/MIN(C189,D189),"")) -> 0.5785953177 | G189: =IFERROR(D189-C189,"") -> 173
B190: Referrals (SRV 7c)
B191: SRV 7c Referrals | C191: 400 | D191: =IF(ISBLANK('Support Services'!C13),"",'Support Services'!C13) -> 2589 | F191: =IF(AND(C191="",D191=""),"",IFERROR((D191-C191)/MIN(C191,D191),"")) -> 5.4725 | G191: =IFERROR(D191-C191,"") -> 2189
B192: Transportation Services (SRV 7d)
B193: SRV 7d Transportation Services (e.g. bus passes, bus transport, support for auto purchase or repair; including emergency services) | C193: 4722 | D193: =IF(ISBLANK('Support Services'!C15),"",'Support Services'!C15) -> 5 | F193: =IF(AND(C193="",D193=""),"",IFERROR((D193-C193)/MIN(C193,D193),"")) -> -943.4 | G193: =IFERROR(D193-C193,"") -> -4717
B194: Childcare (SRV 7e-f)
B195: SRV 7e Child Care subsidies | C195: 9 | D195: =IF(ISBLANK('Support Services'!C17),"",'Support Services'!C17) -> 31 | F195: =IF(AND(C195="",D195=""),"",IFERROR((D195-C195)/MIN(C195,D195),"")) -> 2.444444444 | G195: =IFERROR(D195-C195,"") -> 22
B196: SRV 7f Child Care payments | C196: 27 | D196: =IF(ISBLANK('Support Services'!C18),"",'Support Services'!C18) -> 3 | F196: -8 | G196: -24
B197: Eldercare (SRV 7g)
B198: SRV 7g Day Centers | C198: 5 | D198: =IF(ISBLANK('Support Services'!C20),"",'Support Services'!C20) ->  | F198: =IF(AND(C198="",D198=""),"",IFERROR((D198-C198)/MIN(C198,D198),"")) ->  | G198: =IFERROR(D198-C198,"") -> 
B199: Identification Documents (SRV 7h-j)
B200: SRV 7h Birth Certificate | D200: =IF(ISBLANK('Support Services'!C22),"",'Support Services'!C22) ->  | F200: =IF(AND(C200="",D200=""),"",IFERROR((D200-C200)/MIN(C200,D200),"")) ->  | G200: =IFERROR(D200-C200,"") -> 
B201: SRV 7i Social Security Card | D201: =IF(ISBLANK('Support Services'!C23),"",'Support Services'!C23) -> 
B202: SRV 7j Driver's License | D202: =IF(ISBLANK('Support Services'!C24),"",'Support Services'!C24) -> 3 | F202: 1 | G202: 3
B203: Re-Entry Services (SRV 7k)
B204: SRV 7k Criminal Record Expungements | D204: =IF(ISBLANK('Support Services'!C26),"",'Support Services'!C26) ->  | F204: =IF(AND(C204="",D204=""),"",IFERROR((D204-C204)/MIN(C204,D204),"")) ->  | G204: =IFERROR(D204-C204,"") -> 
B205: Immigration Support Services (SRV 7l)
B206: SRV 7l Immigration Support Services (relocation, food, clothing) | D206: =IF(ISBLANK('Support Services'!C28),"",'Support Services'!C28) ->  | F206: =IF(AND(C206="",D206=""),"",IFERROR((D206-C206)/MIN(C206,D206),"")) ->  | G206: =IFERROR(D206-C206,"") -> 
B207: Legal Assistance (includes emergency legal assistance) (SRV 7m)
B208: SRV 7m Legal Assistance | D208: =IF(ISBLANK('Support Services'!C30),"",'Support Services'!C30) ->  | F208: =IF(AND(C208="",D208=""),"",IFERROR((D208-C208)/MIN(C208,D208),"")) ->  | G208: =IFERROR(D208-C208,"") -> 
... 4 more rows

Sheet Year to Year ALL Characteristic
B1: Goal 1: Individuals and Families with low-incomes are stable and achieve economic security.
C2: Name of CSBG Eligible Entity Reporting: | F2: =M4AgencyName -> Southeastern Utah Association of Local Governments
C3: State: | F3: =M4StateName -> Utah | J3: DUNS: | K3: =M4DUNS -> 097758627
J5: % Change | K5: Change from FY19 - FY20
G6: FY 2019 | H6: FY 2020 | J6: I.) Number of Participants Served in program(s) (#) | K6: I.) Number of Participants Served in program(s) (#)
B7: A. Total unduplicated number of all INDIVIDUALS about whom one or more characteristics were obtained: | G7: 2872 | H7: =IF(ISBLANK('ALL Characteristics'!M7),"",'ALL Characteristics'!M7) -> 3196 | J7: =IF(AND(G7="",H7=""),"",IFERROR( (H7-G7)/MIN(H7,G7),"")) -> 0.1128133705 | K7: =IFERROR(H7-G7,"") -> 324
B8: B. Total unduplicated number of all HOUSEHOLDS about whom one or more characteristics were obtained: | G8: 1604 | H8: =IF(ISBLANK('ALL Characteristics'!M8),"",'ALL Characteristics'!M8) -> 1656 | J8: 0.03241895262 | K8: =IFERROR(H8-G8,"") -> 52
J10: % Change | K10: Change from FY19 - FY20
B11: C. INDIVIDUAL LEVEL CHARACTERISTICS | G11: FY 2019 | H11: FY 2020 | J11: I.) Number of Participants Served in program(s) (#) | K11: I.) Number of Participants Served in program(s) (#)
B12: 1. Gender | H12: Number of Individuals
B13: a. | C13: Male | G13: 1321 | H13: =IF(ISBLANK('ALL Characteristics'!G12),"",'ALL Characteristics'!G12) -> 1515 | J13: =IF(AND(G13="",H13=""),"",IFERROR( (H13-G13)/MIN(H13,G13),"")) -> 0.1468584406 | K13: =IFERROR(H13-G13,"") -> 194
B14: b. | C14: Female | G14: 1551 | H14: =IF(ISBLANK('ALL Characteristics'!G13),"",'ALL Characteristics'!G13) -> 1680 | J14: =IF(AND(G14="",H14=""),"",IFERROR( (H14-G14)/MIN(H14,G14),"")) -> 0.083172147 | K14: 129
B15: c. | C15: Other | H15: =IF(ISBLANK('ALL Characteristics'!G14),"",'ALL Characteristics'!G14) -> 1 | J15: 1 | K15: 1
B16: d. | C16: Unknown/not reported | H16: =IF(ISBLANK('ALL Characteristics'!G15),"",'ALL Characteristics'!G15) -> 
B17: e. | C17: TOTAL (auto calculated) | G17: 2872 | H17: =IF(ISBLANK('ALL Characteristics'!G16),"",'ALL Characteristics'!G16) -> 3196 | J17: 0.1128133705 | K17: 324
J19: % Change | K19: Change from FY19 - FY20
G20: FY 2019 | H20: FY 2020 | J20: I.) Number of Participants Served in program(s) (#) | K20: I.) Number of Participants Served in program(s) (#)
B21: 2. Age | H21: Number of Individuals
B22: a. | C22: 0-5 | G22: 231 | H22: =IF(ISBLANK('ALL Characteristics'!G22),"",'ALL Characteristics'!G22) -> 293 | J22: =IF(AND(G22="",H22=""),"",IFERROR( (H22-G22)/MIN(H22,G22),"")) -> 0.2683982684 | K22: =IFERROR(H22-G22,"") -> 62
B23: b. | C23: 6-13 | G23: 323 | H23: =IF(ISBLANK('ALL Characteristics'!G23),"",'ALL Characteristics'!G23) -> 410 | J23: 0.2693498452 | K23: 87
B24: c. | C24: 14-17 | G24: 172 | H24: =IF(ISBLANK('ALL Characteristics'!G24),"",'ALL Characteristics'!G24) -> 199 | J24: 0.1569767442 | K24: 27
B25: d. | C25: 18-24 | G25: 228 | H25: =IF(ISBLANK('ALL Characteristics'!G25),"",'ALL Characteristics'!G25) -> 273 | J25: 0.1973684211 | K25: 45
B26: e. | C26: 25-44 | G26: 787 | H26: =IF(ISBLANK('ALL Characteristics'!G26),"",'ALL Characteristics'!G26) -> 875 | J26: 0.1118170267 | K26: 88
B27: f. | C27: 45-54 | G27: 420 | H27: =IF(ISBLANK('ALL Characteristics'!G27),"",'ALL Characteristics'!G27) -> 432 | J27: 0.02857142857 | K27: 12
B28: g. | C28: 55-59 | G28: 238 | H28: =IF(ISBLANK('ALL Characteristics'!G28),"",'ALL Characteristics'!G28) -> 222 | J28: -0.07207207207 | K28: -16
B29: h. | C29: 60-64 | G29: 189 | H29: =IF(ISBLANK('ALL Characteristics'!G29),"",'ALL Characteristics'!G29) -> 191 | J29: 0.01058201058 | K29: 2
B30: i. | C30: 65-74 | G30: 194 | H30: =IF(ISBLANK('ALL Characteristics'!G30),"",'ALL Characteristics'!G30) -> 211 | J30: 0.08762886598 | K30: 17
B31: j. | C31: 75+ | G31: 88 | H31: =IF(ISBLANK('ALL Characteristics'!G31),"",'ALL Characteristics'!G31) -> 90 | J31: 0.02272727273 | K31: 2
B32: k. | C32: Unknown/not reported | G32: 2 | H32: =IF(ISBLANK('ALL Characteristics'!G32),"",'ALL Characteristics'!G32) -> 
B33: l. | C33: TOTAL (auto calculated) | G33: 2872 | H33: =IF(ISBLANK('ALL Characteristics'!G33),"",'ALL Characteristics'!G33) -> 3196 | J33: 0.1128133705 | K33: 324
J35: % Change | K35: Change from FY19 - FY20
G36: FY 2019 | H36: FY 2020 | J36: I.) Number of Participants Served in program(s) (#) | K36: I.) Number of Participants Served in program(s) (#)
B37: 3. Education Levels | H37: Number of Individuals
G38: [ages 14-24] | H38: [ages 14-24]
B39: a. | C39: Grades 0-8 | G39: 127 | H39: =IF(ISBLANK('ALL Characteristics'!F41),"",'ALL Characteristics'!F41) -> 132 | J39: =IF(AND(G39="",H39=""),"",IFERROR( (H39-G39)/MIN(H39,G39),"")) -> 0.03937007874 | K39: =IFERROR(H39-G39,"") -> 5
B40: b. | C40: Grades 9-12/Non-Graduate | G40: 113 | H40: =IF(ISBLANK('ALL Characteristics'!F42),"",'ALL Characteristics'!F42) -> 153 | J40: 0.3539823009 | K40: 40
B41: c. | C41: High School Graduate | G41: 106 | H41: =IF(ISBLANK('ALL Characteristics'!F43),"",'ALL Characteristics'!F43) -> 80 | J41: -0.325 | K41: -26
B42: d. | C42: GED/Equivalency Diploma | H42: =IF(ISBLANK('ALL Characteristics'!F44),"",'ALL Characteristics'!F44) -> 13 | J42: 1 | K42: 13
B43: e. | C43: 12 grade + Some Post-Secondary | G43: 31 | H43: =IF(ISBLANK('ALL Characteristics'!F45),"",'ALL Characteristics'!F45) -> 15 | J43: -1.066666667 | K43: -16
B44: f. | C44: 2 or 4 years College Graduate | G44: 11 | H44: =IF(ISBLANK('ALL Characteristics'!F46),"",'ALL Characteristics'!F46) -> 4 | J44: -1.75 | K44: -7
B45: g. | C45: Graduate of other post-secondary school | G45: 1 | H45: =IF(ISBLANK('ALL Characteristics'!F47),"",'ALL Characteristics'!F47) -> 
B46: h. | C46: Unknown/not reported | G46: 11 | H46: =IF(ISBLANK('ALL Characteristics'!F48),"",'ALL Characteristics'!F48) -> 75 | J46: 5.818181818 | K46: 64
B47: i. | C47: TOTAL (auto calculated) | G47: 400 | H47: =IF(ISBLANK('ALL Characteristics'!F49),"",'ALL Characteristics'!F49) -> 472 | J47: 0.18 | K47: 72
G49: [ages 25+] | H49: [ages 25+]
B50: a. | C50: Grades 0-8 | G50: 45 | H50: =IF(ISBLANK('ALL Characteristics'!G41),"",'ALL Characteristics'!G41) -> 34 | J50: =IF(AND(G50="",H50=""),"",IFERROR( (H50-G50)/MIN(H50,G50),"")) -> -0.3235294118 | K50: =IFERROR(H50-G50,"") -> -11
B51: b. | C51: Grades 9-12/Non-Graduate | G51: 456 | H51: =IF(ISBLANK('ALL Characteristics'!G42),"",'ALL Characteristics'!G42) -> 425 | J51: -0.07294117647 | K51: -31
B52: c. | C52: High School Graduate | G52: 836 | H52: =IF(ISBLANK('ALL Characteristics'!G43),"",'ALL Characteristics'!G43) -> 567 | J52: -0.4744268078 | K52: -269
B53: d. | C53: GED/Equivalency Diploma | H53: =IF(ISBLANK('ALL Characteristics'!G44),"",'ALL Characteristics'!G44) -> 216 | J53: 1 | K53: 216
B54: e. | C54: 12 grade + Some Post-Secondary | G54: 365 | H54: =IF(ISBLANK('ALL Characteristics'!G45),"",'ALL Characteristics'!G45) -> 313 | J54: -0.1661341853 | K54: -52
B55: f. | C55: 2 or 4 years College Graduate | G55: 183 | H55: =IF(ISBLANK('ALL Characteristics'!G46),"",'ALL Characteristics'!G46) -> 167 | J55: -0.09580838323 | K55: -16
B56: g. | C56: Graduate of other post-secondary school | G56: 21 | H56: =IF(ISBLANK('ALL Characteristics'!G47),"",'ALL Characteristics'!G47) -> 28 | J56: 0.3333333333 | K56: 7
B57: h. | C57: Unknown/not reported | G57: 10 | H57: =IF(ISBLANK('ALL Characteristics'!G48),"",'ALL Characteristics'!G48) -> 271 | J57: 26.1 | K57: 261
B58: i. | C58: TOTAL (auto calculated) | G58: 1916 | H58: =IF(ISBLANK('ALL Characteristics'!G49),"",'ALL Characteristics'!G49) -> 2021 | J58: 0.05480167015 | K58: 105
J60: % Change | K60: Change from FY19 - FY20
G61: FY 2019 | H61: FY 2020 | J61: I.) Number of Participants Served in program(s) (#) | K61: I.) Number of Participants Served in program(s) (#)
B62: 4. Disconnected Youth | H62: Number of Individuals
B63: a. Youth ages 14-24 who are neither working or in school | G63: 227 | H63: =IF(ISBLANK('ALL Characteristics'!G60),"",'ALL Characteristics'!G60) -> 194 | J63: =IF(AND(G63="",H63=""),"",IFERROR( (H63-G63)/MIN(H63,G63),"")) -> -0.1701030928 | K63: =IFERROR(H63-G63,"") -> -33
J65: % Change | K65: Change from FY19 - FY20
G66: FY 2019 | H66: FY 2020 | J66: I.) Number of Participants Served in program(s) (#) | K66: I.) Number of Participants Served in program(s) (#)
B67: 5. Health | H67: Number of Individuals
B68: a. Disabling Condition | F68: Yes | G68: 757 | H68: =IF(ISBLANK('ALL Characteristics'!E64),"",'ALL Characteristics'!E64) -> 688 | J68: =IF(AND(G68="",H68=""),"",IFERROR( (H68-G68)/MIN(H68,G68),"")) -> -0.1002906977 | K68: =IFERROR(H68-G68,"") -> -69
F69: No | G69: 2035 | H69: =IF(ISBLANK('ALL Characteristics'!F64),"",'ALL Characteristics'!F64) -> 1917 | J69: -0.06155451226 | K69: -118
F70: Unknown | G70: 80 | H70: =IF(ISBLANK('ALL Characteristics'!G64),"",'ALL Characteristics'!G64) -> 591 | J70: 6.3875 | K70: 511
B72: b. Health Insurance* | F72: Yes | G72: 1788 | H72: =IF(ISBLANK('ALL Characteristics'!E66),"",'ALL Characteristics'!E66) -> 1741 | J72: =IF(AND(G72="",H72=""),"",IFERROR( (H72-G72)/MIN(H72,G72),"")) -> -0.02699597932 | K72: =IFERROR(H72-G72,"") -> -47
F73: No | G73: 966 | H73: =IF(ISBLANK('ALL Characteristics'!F66),"",'ALL Characteristics'!F66) -> 850 | J73: -0.1364705882 | K73: -116
F74: Unknown | G74: 118 | H74: =IF(ISBLANK('ALL Characteristics'!G66),"",'ALL Characteristics'!G66) -> 605 | J74: 4.127118644 | K74: 487
C75: Health Insurance Sources
C76: c.1. Medicaid | G76: 1199 | H76: =IF(ISBLANK('ALL Characteristics'!G69),"",'ALL Characteristics'!G69) -> 1190 | J76: =IF(AND(G76="",H76=""),"",IFERROR( (H76-G76)/MIN(H76,G76),"")) -> -0.00756302521 | K76: =IFERROR(H76-G76,"") -> -9
C77: c.2. Medicare | G77: 406 | H77: =IF(ISBLANK('ALL Characteristics'!G70),"",'ALL Characteristics'!G70) -> 380 | J77: -0.06842105263 | K77: -26
C78: c.3. State Children’s Health Insurance Program | G78: 19 | H78: =IF(ISBLANK('ALL Characteristics'!G71),"",'ALL Characteristics'!G71) -> 23 | J78: 0.2105263158 | K78: 4
C79: c.4. State Health Insurance for Adults | G79: 15 | H79: =IF(ISBLANK('ALL Characteristics'!G72),"",'ALL Characteristics'!G72) -> 12 | J79: -0.25 | K79: -3
C80: c.5. Military Health Care | G80: 15 | H80: =IF(ISBLANK('ALL Characteristics'!G73),"",'ALL Characteristics'!G73) -> 19 | J80: 0.2666666667 | K80: 4
C81: c.6. Direct-Purchase | G81: 16 | H81: =IF(ISBLANK('ALL Characteristics'!G74),"",'ALL Characteristics'!G74) -> 20 | J81: 0.25 | K81: 4
C82: c.7. Employment Based | G82: 98 | H82: =IF(ISBLANK('ALL Characteristics'!G75),"",'ALL Characteristics'!G75) -> 69 | J82: -0.4202898551 | K82: -29
C83: c.8. Unknown/not reported | G83: 20 | H83: =IF(ISBLANK('ALL Characteristics'!G76),"",'ALL Characteristics'!G76) -> 28 | J83: 0.4 | K83: 8
C84: c.9. TOTAL (auto calculated) | G84: 1788 | H84: =IF(ISBLANK('ALL Characteristics'!G77),"",'ALL Characteristics'!G77) -> 1741 | J84: -0.02699597932 | K84: -47
J86: % Change | K86: Change from FY19 - FY20
G87: FY 2019 | H87: FY 2020 | J87: I.) Number of Participants Served in program(s) (#) | K87: I.) Number of Participants Served in program(s) (#)
B88: 6. Ethnicity/Race | H88: Number of Individuals
B89: a. Ethnicity
D90: a.1. Hispanic, Latino or Spanish Origins | G90: 398 | H90: =IF(ISBLANK('ALL Characteristics'!M13),"",'ALL Characteristics'!M13) -> 431 | J90: =IF(AND(G90="",H90=""),"",IFERROR( (H90-G90)/MIN(H90,G90),"")) -> 0.08291457286 | K90: =IFERROR(H90-G90,"") -> 33
D91: a.2. Not Hispanic, Latino or Spanish Origins | G91: 2426 | H91: =IF(ISBLANK('ALL Characteristics'!M14),"",'ALL Characteristics'!M14) -> 2380 | J91: -0.01932773109 | K91: -46
D92: a.3. Unknown/not reported | G92: 48 | H92: =IF(ISBLANK('ALL Characteristics'!M15),"",'ALL Characteristics'!M15) -> 385 | J92: 7.020833333 | K92: 337
D93: a.4. TOTAL (auto calculated) | G93: 2872 | H93: =IF(ISBLANK('ALL Characteristics'!M16),"",'ALL Characteristics'!M16) -> 3196 | J93: 0.1128133705 | K93: 324
B94: b. Race
D95: b.1. American Indian or Alaska Native | G95: 160 | H95: =IF(ISBLANK('ALL Characteristics'!M22),"",'ALL Characteristics'!M22) -> 168 | J95: =IF(AND(G95="",H95=""),"",IFERROR( (H95-G95)/MIN(H95,G95),"")) -> 0.05 | K95: =IFERROR(H95-G95,"") -> 8
D96: b.2. Asian | G96: 3 | H96: =IF(ISBLANK('ALL Characteristics'!M23),"",'ALL Characteristics'!M23) -> 2 | J96: -0.5 | K96: -1
D97: b.3. Black or African American | G97: 22 | H97: =IF(ISBLANK('ALL Characteristics'!M24),"",'ALL Characteristics'!M24) -> 16 | J97: -0.375 | K97: -6
D98: b.4. Native Hawaiian and Other Pacific Islander | G98: 9 | H98: =IF(ISBLANK('ALL Characteristics'!M25),"",'ALL Characteristics'!M25) -> 16 | J98: 0.7777777778 | K98: 7
D99: b.5. White | G99: 2232 | H99: =IF(ISBLANK('ALL Characteristics'!M26),"",'ALL Characteristics'!M26) -> 2204 | J99: -0.01270417423 | K99: -28
D100: b.6. Other | G100: 356 | H100: =IF(ISBLANK('ALL Characteristics'!M27),"",'ALL Characteristics'!M27) -> 351 | J100: -0.01424501425 | K100: -5
D101: b.7. Multi-race (two or more of the above) | G101: 60 | H101: =IF(ISBLANK('ALL Characteristics'!M28),"",'ALL Characteristics'!M28) -> 77 | J101: 0.2833333333 | K101: 17
D102: b.8. Unknown/not reported | G102: 30 | H102: =IF(ISBLANK('ALL Characteristics'!M29),"",'ALL Characteristics'!M29) -> 362 | J102: 11.06666667 | K102: 332
D103: b.9. TOTAL (auto calculated) | G103: 2872 | H103: =IF(ISBLANK('ALL Characteristics'!M30),"",'ALL Characteristics'!M30) -> 3196 | J103: 0.1128133705 | K103: 324
J105: % Change | K105: Change from FY19 - FY20
G106: FY 2019 | H106: FY 2020 | J106: I.) Number of Participants Served in program(s) (#) | K106: I.) Number of Participants Served in program(s) (#)
B107: 7. Military Status | H107: Number of Individuals
C108: a. Veteran | G108: 108 | H108: =IF(ISBLANK('ALL Characteristics'!M37),"",'ALL Characteristics'!M37) -> 96 | J108: =IF(AND(G108="",H108=""),"",IFERROR( (H108-G108)/MIN(H108,G108),"")) -> -0.125 | K108: =IFERROR(H108-G108,"") -> -12
C109: b. Active Military | G109: 1 | H109: =IF(ISBLANK('ALL Characteristics'!M38),"",'ALL Characteristics'!M38) -> 1 | J109: 0 | K109: 0
C110: c. Never Served in the Military | H110: =IF(ISBLANK('ALL Characteristics'!M39),"",'ALL Characteristics'!M39) -> 2002 | J110: 1 | K110: 2002
C111: d. Unknown/not reported | G111: 1975 | H111: =IF(ISBLANK('ALL Characteristics'!M40),"",'ALL Characteristics'!M40) -> 188 | J111: -9.505319149 | K111: =IFERROR(H112-G112,"") -> 203
C112: e. TOTAL (auto calculated) | G112: 2084 | H112: =IF(ISBLANK('ALL Characteristics'!M41),"",'ALL Characteristics'!M41) -> 2287
J113: % Change | K113: Change from FY19 - FY20
G114: FY 2019 | H114: FY 2020 | J114: I.) Number of Participants Served in program(s) (#) | K114: I.) Number of Participants Served in program(s) (#)
B115: 8. Work Status (Individuals 18+) | H115: Number of Individuals
C116: a. Employed Full-Time | G116: 107 | H116: =IF(ISBLANK('ALL Characteristics'!M48),"",'ALL Characteristics'!M48) -> 126 | J116: =IF(AND(G116="",H116=""),"",IFERROR( (H116-G116)/MIN(H116,G116),"")) -> 0.1775700935 | K116: =IFERROR(H116-G116,"") -> 19
C117: b. Employed Part-Time | G117: 183 | H117: =IF(ISBLANK('ALL Characteristics'!M49),"",'ALL Characteristics'!M49) -> 230 | J117: 0.2568306011 | K117: 47
C118: c. Migrant Seasonal Farm Worker | G118: 1 | H118: =IF(ISBLANK('ALL Characteristics'!M50),"",'ALL Characteristics'!M50) -> 2 | J118: 1 | K118: 1
C119: d. Unemployed (Short-Term, 6 months or less) | G119: 42 | H119: =IF(ISBLANK('ALL Characteristics'!M51),"",'ALL Characteristics'!M51) -> 223 | J119: 4.30952381 | K119: 181
C120: e. Unemployed (Long-Term, more than 6 months) | G120: 462 | H120: =IF(ISBLANK('ALL Characteristics'!M52),"",'ALL Characteristics'!M52) -> 477 | J120: 0.03246753247 | K120: 15
C121: f. Unemployed (Not in Labor Force) | G121: 965 | H121: =IF(ISBLANK('ALL Characteristics'!M53),"",'ALL Characteristics'!M53) -> 955 | J121: -0.01047120419 | K121: -10
C122: g. | D122: Retired | G122: 60 | H122: =IF(ISBLANK('ALL Characteristics'!M54),"",'ALL Characteristics'!M54) -> 57 | J122: -0.05263157895 | K122: -3
C123: h. | D123: Unkown/not reported | G123: 46 | H123: =IF(ISBLANK('ALL Characteristics'!M55),"",'ALL Characteristics'!M55) -> 193 | J123: 3.195652174 | K123: 147
C124: i. | D124: Total (autocalculated) | G124: 1866 | H124: =IF(ISBLANK('ALL Characteristics'!M56),"",'ALL Characteristics'!M56) -> 2263 | J124: 0.2127545552 | K124: 397
J126: % Change | K126: Change from FY19 - FY20
B127: D. HOUSEHOLD LEVEL CHARACTERISTICS | G127: FY 2019 | H127: FY 2020 | J127: I.) Number of Participants Served in program(s) (#) | K127: I.) Number of Participants Served in program(s) (#)
B128: 9. Household Type | H128: Number of Households
B129: a. Single Person | G129: 849 | H129: =IF(ISBLANK('ALL Characteristics'!F90),"",'ALL Characteristics'!F90) -> 826 | J129: =IF(AND(G129="",H129=""),"",IFERROR( (H129-G129)/MIN(H129,G129),"")) -> -0.02784503632 | K129: =IFERROR(H129-G129,"") -> -23
B130: b. Two Adults NO Children | G130: 243 | H130: =IF(ISBLANK('ALL Characteristics'!F91),"",'ALL Characteristics'!F91) -> 225 | J130: -0.08 | K130: -18
B131: c. Single Parent Female | G131: 212 | H131: =IF(ISBLANK('ALL Characteristics'!F92),"",'ALL Characteristics'!F92) -> 194 | J131: -0.09278350515 | K131: -18
B132: d. Single Parent Male | G132: 41 | H132: =IF(ISBLANK('ALL Characteristics'!F93),"",'ALL Characteristics'!F93) -> 35 | J132: -0.1714285714 | K132: -6
B133: e. Two Parent Household | G133: 182 | H133: =IF(ISBLANK('ALL Characteristics'!F94),"",'ALL Characteristics'!F94) -> 190 | J133: 0.04395604396 | K133: 8
B134: f. Non-related Adults with Children | G134: 38 | H134: =IF(ISBLANK('ALL Characteristics'!F95),"",'ALL Characteristics'!F95) -> 37 | J134: -0.02702702703 | K134: -1
B135: g. Multigenerational Household | G135: 18 | H135: =IF(ISBLANK('ALL Characteristics'!F96),"",'ALL Characteristics'!F96) -> 31 | J135: 0.7222222222 | K135: 13
B136: h. Other | H136: =IF(ISBLANK('ALL Characteristics'!F97),"",'ALL Characteristics'!F97) -> 16 | J136: 1 | K136: 16
B137: i. Unknown/not reported | G137: 21 | H137: =IF(ISBLANK('ALL Characteristics'!F98),"",'ALL Characteristics'!F98) -> 102 | J137: 3.857142857 | K137: 81
C138: j. TOTAL (auto calculated) | G138: 1604 | H138: =IF(ISBLANK('ALL Characteristics'!F99),"",'ALL Characteristics'!F99) -> 1656 | J138: 0.03241895262 | K138: 52
J140: % Change | K140: Change from FY19 - FY20
G141: FY 2019 | H141: FY 2020 | J141: I.) Number of Participants Served in program(s) (#) | K141: I.) Number of Participants Served in program(s) (#)
B142: 10. Household Size | H142: Number of Households
B143: a. Single Person | G143: 849 | H143: =IF(ISBLANK('ALL Characteristics'!F106),"",'ALL Characteristics'!F106) -> 826 | J143: =IF(AND(G143="",H143=""),"",IFERROR( (H143-G143)/MIN(H143,G143),"")) -> -0.02784503632 | K143: =IFERROR(H143-G143,"") -> -23
B144: b. Two | G144: 350 | H144: =IF(ISBLANK('ALL Characteristics'!F107),"",'ALL Characteristics'!F107) -> 298 | J144: -0.1744966443 | K144: -52
B145: c. Three | G145: 135 | H145: =IF(ISBLANK('ALL Characteristics'!F108),"",'ALL Characteristics'!F108) -> 151 | J145: 0.1185185185 | K145: 16
B146: d. Four | G146: 106 | H146: =IF(ISBLANK('ALL Characteristics'!F109),"",'ALL Characteristics'!F109) -> 119 | J146: 0.1226415094 | K146: 13
B147: e. Five | G147: 66 | H147: =IF(ISBLANK('ALL Characteristics'!F110),"",'ALL Characteristics'!F110) -> 92 | J147: 0.3939393939 | K147: 26
B148: f. Six or more | G148: 33 | H148: =IF(ISBLANK('ALL Characteristics'!F111),"",'ALL Characteristics'!F111) -> 42 | J148: 0.2727272727 | K148: 9
B149: g. Unknown/not reported | G149: 65 | H149: =IF(ISBLANK('ALL Characteristics'!F112),"",'ALL Characteristics'!F112) -> 128 | J149: 0.9692307692 | K149: 63
B150: h. TOTAL (auto calculated) | G150: 1604 | H150: =IF(ISBLANK('ALL Characteristics'!F113),"",'ALL Characteristics'!F113) -> 1656 | J150: 0.03241895262 | K150: 52
J152: % Change | K152: Change from FY19 - FY20
G153: FY 2019 | H153: FY 2020 | J153: I.) Number of Participants Served in program(s) (#) | K153: I.) Number of Participants Served in program(s) (#)
B154: 11. Housing | H154: Number of Households
B155: a. Own | G155: 297 | H155: =IF(ISBLANK('ALL Characteristics'!F120),"",'ALL Characteristics'!F120) -> 256 | J155: =IF(AND(G155="",H155=""),"",IFERROR( (H155-G155)/MIN(H155,G155),"")) -> -0.16015625 | K155: =IFERROR(H155-G155,"") -> -41
B156: b. Rent | G156: 945 | H156: =IF(ISBLANK('ALL Characteristics'!F121),"",'ALL Characteristics'!F121) -> 919 | J156: -0.02829162133 | K156: -26
B157: c. Other permanent housing | G157: 1 | H157: =IF(ISBLANK('ALL Characteristics'!F122),"",'ALL Characteristics'!F122) -> 3 | J157: 2 | K157: 2
B158: d. Homeless | G158: 174 | H158: =IF(ISBLANK('ALL Characteristics'!F123),"",'ALL Characteristics'!F123) -> 150 | J158: -0.16 | K158: -24
B159: e. Other | G159: 166 | H159: =IF(ISBLANK('ALL Characteristics'!F124),"",'ALL Characteristics'!F124) -> 157 | J159: -0.05732484076 | K159: -9
B160: f. Unknown/not reported | G160: 21 | H160: =IF(ISBLANK('ALL Characteristics'!F125),"",'ALL Characteristics'!F125) -> 171 | J160: 7.142857143 | K160: 150
B161: g. TOTAL (auto calculated) | G161: 1604 | H161: =IF(ISBLANK('ALL Characteristics'!F126),"",'ALL Characteristics'!F126) -> 1656 | J161: 0.03241895262 | K161: 52
J163: % Change | K163: Change from FY19 - FY20
G164: FY 2019 | H164: FY 2020 | J164: I.) Number of Participants Served in program(s) (#) | K164: I.) Number of Participants Served in program(s) (#)
B165: 12. Level of Household Income | H165: Number of Households
B166: (% of HHS Guideline)
B167: a. Up to 50% | G167: 891 | H167: =IF(ISBLANK('ALL Characteristics'!F134),"",'ALL Characteristics'!F134) -> 1055 | J167: =IF(AND(G167="",H167=""),"",IFERROR( (H167-G167)/MIN(H167,G167),"")) -> 0.1840628507 | K167: =IFERROR(H167-G167,"") -> 164
B168: b. 51% to 75% | G168: 205 | H168: =IF(ISBLANK('ALL Characteristics'!F135),"",'ALL Characteristics'!F135) -> 234 | J168: 0.1414634146 | K168: 29
B169: c. 76% to 100% | G169: 142 | H169: =IF(ISBLANK('ALL Characteristics'!F136),"",'ALL Characteristics'!F136) -> 175 | J169: 0.2323943662 | K169: 33
B170: d. 101% to 125% | G170: 103 | H170: =IF(ISBLANK('ALL Characteristics'!F137),"",'ALL Characteristics'!F137) -> 106 | J170: 0.02912621359 | K170: 3
B171: e. 126% to 150% | G171: 61 | H171: =IF(ISBLANK('ALL Characteristics'!F138),"",'ALL Characteristics'!F138) -> 60 | J171: -0.01666666667 | K171: -1
B172: f. 151% to 175% | G172: 21 | H172: =IF(ISBLANK('ALL Characteristics'!F139),"",'ALL Characteristics'!F139) -> 7 | J172: -2 | K172: -14
B173: g. 176% to 200% | G173: 8 | H173: =IF(ISBLANK('ALL Characteristics'!F140),"",'ALL Characteristics'!F140) -> 3 | J173: -1.666666667 | K173: -5
B174: h. 201% to 250% | G174: 12 | H174: =IF(ISBLANK('ALL Characteristics'!F141),"",'ALL Characteristics'!F141) -> 9 | J174: -0.3333333333 | K174: -3
B175: i. 250% and over | H175: =IF(ISBLANK('ALL Characteristics'!F142),"",'ALL Characteristics'!F142) -> 7 | J175: 1 | K175: 7
B176: j. Unknown/not reported | G176: 161 | H176: =IF(ISBLANK('ALL Characteristics'!F143),"",'ALL Characteristics'!F143) -> 
B177: k. TOTAL (auto calculated) | G177: 1604 | H177: =IF(ISBLANK('ALL Characteristics'!F144),"",'ALL Characteristics'!F144) -> 1656 | J177: 0.03241895262 | K177: 52
J179: % Change | K179: Change from FY19 - FY20
G180: FY 2019 | H180: FY 2020 | J180: I.) Number of Participants Served in program(s) (#) | K180: I.) Number of Participants Served in program(s) (#)
B181: 13. Sources of Household Income | H181: Number of Households
B182: a. Income from Employment Only | G182: 141 | H182: =IF(ISBLANK('ALL Characteristics'!M90),"",'ALL Characteristics'!M90) -> 166 | J182: =IF(AND(G182="",H182=""),"",IFERROR( (H182-G182)/MIN(H182,G182),"")) -> 0.1773049645 | K182: =IFERROR(H182-G182,"") -> 25
B183: b. Income from Employment and Other Income Source | G183: 16 | H183: =IF(ISBLANK('ALL Characteristics'!M91),"",'ALL Characteristics'!M91) -> 19 | J183: 0.1875 | K183: 3
B184: c. Income from Employment, Other Income Source, and Non-Cash Benefits | G184: 4 | H184: =IF(ISBLANK('ALL Characteristics'!M92),"",'ALL Characteristics'!M92) -> 9 | J184: 1.25 | K184: 5
B185: d. Income from Employment and Non-Cash Benefits | G185: 13 | H185: =IF(ISBLANK('ALL Characteristics'!M93),"",'ALL Characteristics'!M93) -> 17 | J185: 0.3076923077 | K185: 4
B186: e. Other Income Source Only | G186: 418 | H186: =IF(ISBLANK('ALL Characteristics'!M94),"",'ALL Characteristics'!M94) -> 372 | J186: -0.123655914 | K186: -46
B187: f. Other Income Source and Non-Cash Benefits | G187: 105 | H187: =IF(ISBLANK('ALL Characteristics'!M95),"",'ALL Characteristics'!M95) -> 140 | J187: 0.3333333333 | K187: 35
B188: g. No Income | G188: 742 | H188: =IF(ISBLANK('ALL Characteristics'!M96),"",'ALL Characteristics'!M96) -> 861 | J188: 0.1603773585 | K188: 119
B189: h. Non-Cash Benefits Only | G189: 48 | H189: =IF(ISBLANK('ALL Characteristics'!M97),"",'ALL Characteristics'!M97) -> 72 | J189: 0.5 | K189: 24
B190: i. Unknown/not reported | G190: 117 | H190: =IF(ISBLANK('ALL Characteristics'!M98),"",'ALL Characteristics'!M98) -> 
B191: j. TOTAL (auto calculated) | G191: 1604 | H191: =IF(ISBLANK('ALL Characteristics'!M99),"",'ALL Characteristics'!M99) -> 1656 | J191: 0.03241895262 | K191: 52
J193: % Change | K193: Change from FY19 - FY20
G194: FY 2019 | H194: FY 2020 | J194: I.) Number of Participants Served in program(s) (#) | K194: I.) Number of Participants Served in program(s) (#)
B195: 14. Other Income Source | H195: Number of Households
B196: a. TANF | G196: 4 | H196: =IF(ISBLANK('ALL Characteristics'!M110),"",'ALL Characteristics'!M110) -> 2 | J196: =IF(AND(G196="",H196=""),"",IFERROR( (H196-G196)/MIN(H196,G196),"")) -> -1 | K196: =IFERROR(H196-G196,"") -> -2
B197: b. Supplemental Security Income (SSI) | G197: 235 | H197: =IF(ISBLANK('ALL Characteristics'!M111),"",'ALL Characteristics'!M111) -> 227 | J197: -0.03524229075 | K197: -8
B198: c. Social Security Disability Income (SSDI) | G198: 235 | H198: =IF(ISBLANK('ALL Characteristics'!M112),"",'ALL Characteristics'!M112) -> 288 | J198: 0.2255319149 | K198: 53
B199: d. VA Service-Connected Disability Compensation | G199: 1 | H199: =IF(ISBLANK('ALL Characteristics'!M113),"",'ALL Characteristics'!M113) -> 3 | J199: 2 | K199: 2
B200: e. VA Non-Service Connected Disability Pension | G200: 2 | H200: =IF(ISBLANK('ALL Characteristics'!M114),"",'ALL Characteristics'!M114) -> 3 | J200: 0.5 | K200: 1
B201: f. Private Disability Insurance | H201: =IF(ISBLANK('ALL Characteristics'!M115),"",'ALL Characteristics'!M115) -> 
B202: g. Worker’s Compensation | H202: =IF(ISBLANK('ALL Characteristics'!M116),"",'ALL Characteristics'!M116) -> 
B203: h. Retirement Income from Social Security | G203: 313 | H203: =IF(ISBLANK('ALL Characteristics'!M117),"",'ALL Characteristics'!M117) -> 292 | J203: -0.07191780822 | K203: -21
B204: i. Pension | G204: 26 | H204: =IF(ISBLANK('ALL Characteristics'!M118),"",'ALL Characteristics'!M118) -> 16 | J204: -0.625 | K204: -10
B205: j. Child Support | G205: 21 | H205: =IF(ISBLANK('ALL Characteristics'!M119),"",'ALL Characteristics'!M119) -> 21 | J205: 0 | K205: 0
B206: k. Alimony or other Spousal Support | G206: 1 | H206: =IF(ISBLANK('ALL Characteristics'!M120),"",'ALL Characteristics'!M120) -> 3 | J206: 2 | K206: 2
B207: l. Unemployment Insurance | H207: =IF(ISBLANK('ALL Characteristics'!M121),"",'ALL Characteristics'!M121) -> 10 | J207: 1 | K207: 10
B208: m. EITC | H208: =IF(ISBLANK('ALL Characteristics'!M122),"",'ALL Characteristics'!M122) -> 
B209: n. Other | H209: =IF(ISBLANK('ALL Characteristics'!M123),"",'ALL Characteristics'!M123) -> 17 | J209: 1 | K209: 17
B210: o. Unknown/not reported | H210: =IF(ISBLANK('ALL Characteristics'!M124),"",'ALL Characteristics'!M124) -> 11 | J210: 1 | K210: 11
J212: % Change | K212: Change from FY19 - FY20
G213: FY 2019 | H213: FY 2020 | J213: I.) Number of Participants Served in program(s) (#) | K213: I.) Number of Participants Served in program(s) (#)
B214: 15. Non-Cash Benefits | H214: Number of Households
B215: a. SNAP | G215: 168 | H215: =IF(ISBLANK('ALL Characteristics'!M131),"",'ALL Characteristics'!M131) -> 17 | J215: =IF(AND(G215="",H215=""),"",IFERROR( (H215-G215)/MIN(H215,G215),"")) -> -8.882352941 | K215: =IFERROR(H215-G215,"") -> -151
B216: b. WIC | H216: =IF(ISBLANK('ALL Characteristics'!M132),"",'ALL Characteristics'!M132) -> 1 | J216: 1 | K216: 1
B217: c. LIHEAP | H217: =IF(ISBLANK('ALL Characteristics'!M133),"",'ALL Characteristics'!M133) -> 
... 8 more rows

Sheet Identification (hidden)
C1: Version: | D1: M4-2019.1
C3: State: | D3: ='XML Export Map'!D5 -> Utah
C4: Name of CSBG Eligible Entity Reporting: | D4: ='XML Export Map'!D6 -> Southeastern Utah Association of Local Governments
C5: DUNS Number: | D5: ='XML Export Map'!D9 -> 097758627
C6: Organization: | D6: ACF
C7: Program Acronym: | D7: CSBG
C8: Lead Agency: | D8: UTAH
C9: Grant Number: | D9: 2001UTCOSR
C11: Report Period Start Date: | D11: 2019-10-01
C12: Report Period End Date: | D12: 2020-09-30

Sheet XML Export Map (hidden)
A2: Question/Reference | B2: Smartform Range Name | C2: Address | D2: Value | E2: Type | F2: XML Export Name for DB | G2: Max Length
I3: =FIND("]",J3) -> 87 | J3: =CELL("address",INDIRECT(B4)) -> '[FY20_UT_M4_Southeastern_Utah_Association_of_Local_Governments_097758627 (1) (1).xlsm]Identification'!$D$8
A4: leadAgency | B4: M4LeadAgency | C4: ="'='" & MID(CELL("address",INDIRECT(B4)),$I$3+1,100) -> '='Identification'!$D$8 | D4: =M4LeadAgency -> UTAH | E4: Text | F4: GRANTEENAME | G4: 100
A5: State Name | B5: M4StateName | C5: ="'='" & MID(CELL("address",INDIRECT(B5)),$I$3+1,100) -> '='Employment NPIs'!$D$6 | D5: =M4StateName -> Utah | E5: Text
A6: Agency Name | B6: M4AgencyName | C6: ="'='" & MID(CELL("address",INDIRECT(B6)),$I$3+1,100) -> '='Employment NPIs'!$D$5 | D6: =M4AgencyName -> Southeastern Utah Association of Local Governments | E6: Text | F6: ELIGIBLEENTITY
A7: orgAbbrev | B7: M4OrgAbbrev | C7: ="'='" & MID(CELL("address",INDIRECT(B7)),$I$3+1,100) -> '='Identification'!$D$6 | D7: =M4OrgAbbrev -> ACF | E7: Text | F7: orgAbbrev
A8: programAcronym | B8: M4ProgramAcronym | C8: ="'='" & MID(CELL("address",INDIRECT(B8)),$I$3+1,100) -> '='Identification'!$D$7 | D8: =M4ProgramAcronym -> CSBG | E8: Text | F8: programAcronym
A9: DUNS Number | B9: M4Duns | C9: ="'='" & MID(CELL("address",INDIRECT(B9)),$I$3+1,100) -> '='Employment NPIs'!$H$6 | D9: =M4DUNS -> 097758627 | E9: Text | F9: duns
A10: reportPeriodStartDate | B10: M4ReportPeriodStartDate | C10: ="'='" & MID(CELL("address",INDIRECT(B10)),$I$3+1,100) -> '='Identification'!$D$11 | D10: =M4ReportPeriodStartDate -> 2019-10-01 | E10: Date | F10: reportPeriodStartDate
A11: reportPeriodEndDate | B11: M4ReportPeriodEndDate | C11: ="'='" & MID(CELL("address",INDIRECT(B11)),$I$3+1,100) -> '='Identification'!$D$12 | D11: =M4ReportPeriodEndDate -> 2020-09-30 | E11: Date | F11: reportPeriodEndDate
A12: grantNumber | B12: M4GrantNumber | C12: ="'='" & MID(CELL("address",INDIRECT(B12)),$I$3+1,100) -> '='Identification'!$D$9 | D12: =M4GrantNumber -> 2001UTCOSR | E12: Text | F12: grantNumber
A13: subGrantee | D13: TRUE | E13: True/False | F13: subGrantee
A14: All_A | B14: M4CA1Individuals | C14: ="'='" & MID(CELL("address",INDIRECT(B14)),$I$3+1,100) -> '='ALL Characteristics'!$M$7 | D14: =M4CA1Individuals -> 3196 | E14: Number | F14: M4CA1Individuals
A15: All_B | B15: M4CB1Households | C15: ="'='" & MID(CELL("address",INDIRECT(B15)),$I$3+1,100) -> '='ALL Characteristics'!$M$8 | D15: =M4CB1Households -> 1656 | E15: Number | F15: M4CB1Households
A16: All_C.1a | B16: M4CC1aGenderMale | C16: ="'='" & MID(CELL("address",INDIRECT(B16)),$I$3+1,100) -> '='ALL Characteristics'!$G$12 | D16: =M4CC1aGenderMale -> 1515 | E16: Number | F16: M4CC1aGenderMale
A17: All_C.1b | B17: M4CC1bGenderFemale | C17: ="'='" & MID(CELL("address",INDIRECT(B17)),$I$3+1,100) -> '='ALL Characteristics'!$G$13 | D17: =M4CC1bGenderFemale -> 1680 | E17: Number | F17: M4CC1bGenderFemale
A18: All_C.6a.1 | B18: M4CC6a1EthnicityHisp | C18: ="'='" & MID(CELL("address",INDIRECT(B18)),$I$3+1,100) -> '='ALL Characteristics'!$M$13 | D18: =M4CC6a1EthnicityHisp -> 431 | E18: Number | F18: M4CC6a1EthnicityHisp
A19: All_C.1c | B19: M4CC1cGenderOther | C19: ="'='" & MID(CELL("address",INDIRECT(B19)),$I$3+1,100) -> '='ALL Characteristics'!$G$14 | D19: =M4CC1cGenderOther -> 1 | E19: Number | F19: M4CC1cGenderOther
A20: All_C.6a.2 | B20: M4CC6a2EthnicityNonHisp | C20: ="'='" & MID(CELL("address",INDIRECT(B20)),$I$3+1,100) -> '='ALL Characteristics'!$M$14 | D20: =M4CC6a2EthnicityNonHisp -> 2380 | E20: Number | F20: M4CC6a2EthnicityNonHisp
A21: All_C.1d | B21: M4CC1dGenderUnk | C21: ="'='" & MID(CELL("address",INDIRECT(B21)),$I$3+1,100) -> '='ALL Characteristics'!$G$15 | D21: =M4CC1dGenderUnk -> 0 | E21: Number | F21: M4CC1dGenderUnk
A22: All_C.6a.3 | B22: M4CC6a3EthnicityUnk | C22: ="'='" & MID(CELL("address",INDIRECT(B22)),$I$3+1,100) -> '='ALL Characteristics'!$M$15 | D22: =M4CC6a3EthnicityUnk -> 385 | E22: Number | F22: M4CC6a3EthnicityUnk
A23: All_C.1e | B23: M4CC1eGenderTotal | C23: ="'='" & MID(CELL("address",INDIRECT(B23)),$I$3+1,100) -> '='ALL Characteristics'!$G$16 | D23: =M4CC1eGenderTotal -> 3196 | E23: Number | F23: M4CC1eGenderTotal
A24: All_C.6a.4 | B24: M4CC6a4EthnicityTotal | C24: ="'='" & MID(CELL("address",INDIRECT(B24)),$I$3+1,100) -> '='ALL Characteristics'!$M$16 | D24: =M4CC6a4EthnicityTotal -> 3196 | E24: Number | F24: M4CC6a4EthnicityTotal
A25: All_C.2a | B25: M4CC2aAge0to5 | C25: ="'='" & MID(CELL("address",INDIRECT(B25)),$I$3+1,100) -> '='ALL Characteristics'!$G$22 | D25: =M4CC2aAge0to5 -> 293 | E25: Number | F25: M4CC2aAge0to5
A26: All_C.6b.1 | B26: M4CC6b1RaceAmericanIndian | C26: ="'='" & MID(CELL("address",INDIRECT(B26)),$I$3+1,100) -> '='ALL Characteristics'!$M$22 | D26: =M4CC6b1RaceAmericanIndian -> 168 | E26: Number | F26: M4CC6b1RaceAmericanIndian
A27: All_C.2b | B27: M4CC2bAge6to13 | C27: ="'='" & MID(CELL("address",INDIRECT(B27)),$I$3+1,100) -> '='ALL Characteristics'!$G$23 | D27: =M4CC2bAge6to13 -> 410 | E27: Number | F27: M4CC2bAge6to13
A28: All_C.6b.2 | B28: M4CC6b2RaceAsian | C28: ="'='" & MID(CELL("address",INDIRECT(B28)),$I$3+1,100) -> '='ALL Characteristics'!$M$23 | D28: =M4CC6b2RaceAsian -> 2 | E28: Number | F28: M4CC6b2RaceAsian
A29: All_C.2c | B29: M4CC2cAge14to17 | C29: ="'='" & MID(CELL("address",INDIRECT(B29)),$I$3+1,100) -> '='ALL Characteristics'!$G$24 | D29: =M4CC2cAge14to17 -> 199 | E29: Number | F29: M4CC2cAge14to17
A30: All_C.6b.3 | B30: M4CC6b3RaceBlack | C30: ="'='" & MID(CELL("address",INDIRECT(B30)),$I$3+1,100) -> '='ALL Characteristics'!$M$24 | D30: =M4CC6b3RaceBlack -> 16 | E30: Number | F30: M4CC6b3RaceBlack
A31: All_C.2d | B31: M4CC2dAge18to24 | C31: ="'='" & MID(CELL("address",INDIRECT(B31)),$I$3+1,100) -> '='ALL Characteristics'!$G$25 | D31: =M4CC2dAge18to24 -> 273 | E31: Number | F31: M4CC2dAge18to24
A32: All_C.6b.4 | B32: M4CC6b4RaceHawaiian | C32: ="'='" & MID(CELL("address",INDIRECT(B32)),$I$3+1,100) -> '='ALL Characteristics'!$M$25 | D32: =M4CC6b4RaceHawaiian -> 16 | E32: Number | F32: M4CC6b4RaceHawaiian
A33: All_C.2e | B33: M4CC2eAge25to44 | C33: ="'='" & MID(CELL("address",INDIRECT(B33)),$I$3+1,100) -> '='ALL Characteristics'!$G$26 | D33: =M4CC2eAge25to44 -> 875 | E33: Number | F33: M4CC2eAge25to44
A34: All_C.6b.5 | B34: M4CC6b5RaceWhite | C34: ="'='" & MID(CELL("address",INDIRECT(B34)),$I$3+1,100) -> '='ALL Characteristics'!$M$26 | D34: =M4CC6b5RaceWhite -> 2204 | E34: Number | F34: M4CC6b5RaceWhite
A35: All_C.2f | B35: M4CC2fAge45to54 | C35: ="'='" & MID(CELL("address",INDIRECT(B35)),$I$3+1,100) -> '='ALL Characteristics'!$G$27 | D35: =M4CC2fAge45to54 -> 432 | E35: Number | F35: M4CC2fAge45to54
A36: All_C.6b.6 | B36: M4CC6b6RaceOther | C36: ="'='" & MID(CELL("address",INDIRECT(B36)),$I$3+1,100) -> '='ALL Characteristics'!$M$27 | D36: =M4CC6b6RaceOther -> 351 | E36: Number | F36: M4CC6b6RaceOther
A37: All_C.2g | B37: M4CC2gAge55to59 | C37: ="'='" & MID(CELL("address",INDIRECT(B37)),$I$3+1,100) -> '='ALL Characteristics'!$G$28 | D37: =M4CC2gAge55to59 -> 222 | E37: Number | F37: M4CC2gAge55to59
A38: All_C.6b.7 | B38: M4CC6b7RaceMulti | C38: ="'='" & MID(CELL("address",INDIRECT(B38)),$I$3+1,100) -> '='ALL Characteristics'!$M$28 | D38: =M4CC6b7RaceMulti -> 77 | E38: Number | F38: M4CC6b7RaceMulti
A39: All_C.2h | B39: M4CC2hAge60to64 | C39: ="'='" & MID(CELL("address",INDIRECT(B39)),$I$3+1,100) -> '='ALL Characteristics'!$G$29 | D39: =M4CC2hAge60to64 -> 191 | E39: Number | F39: M4CC2hAge60to64
A40: All_C.6b.8 | B40: M4CC6b8RaceUnk | C40: ="'='" & MID(CELL("address",INDIRECT(B40)),$I$3+1,100) -> '='ALL Characteristics'!$M$29 | D40: =M4CC6b8RaceUnk -> 362 | E40: Number | F40: M4CC6b8RaceUnk
A41: All_C.2i | B41: M4CC2iAge65to74 | C41: ="'='" & MID(CELL("address",INDIRECT(B41)),$I$3+1,100) -> '='ALL Characteristics'!$G$30 | D41: =M4CC2iAge65to74 -> 211 | E41: Number | F41: M4CC2iAge65to74
A42: All_C.6b.9 | B42: M4CC6b9RaceTotal | C42: ="'='" & MID(CELL("address",INDIRECT(B42)),$I$3+1,100) -> '='ALL Characteristics'!$M$30 | D42: =M4CC6b9RaceTotal -> 3196 | E42: Number | F42: M4CC6b9RaceTotal
A43: All_C.2j | B43: M4CC2jAge75plus | C43: ="'='" & MID(CELL("address",INDIRECT(B43)),$I$3+1,100) -> '='ALL Characteristics'!$G$31 | D43: =M4CC2jAge75plus -> 90 | E43: Number | F43: M4CC2jAge75plus
A44: All_C.2k | B44: M4CC2kAgeUnk | C44: ="'='" & MID(CELL("address",INDIRECT(B44)),$I$3+1,100) -> '='ALL Characteristics'!$G$32 | D44: =M4CC2kAgeUnk -> 0 | E44: Number | F44: M4CC2kAgeUnk
A45: All_C.2l | B45: M4CC2lAgeTotal | C45: ="'='" & MID(CELL("address",INDIRECT(B45)),$I$3+1,100) -> '='ALL Characteristics'!$G$33 | D45: =M4CC2lAgeTotal -> 3196 | E45: Number | F45: M4CC2lAgeTotal
A46: All_C.7a | B46: M4CC7aMilitaryVeteran | C46: ="'='" & MID(CELL("address",INDIRECT(B46)),$I$3+1,100) -> '='ALL Characteristics'!$M$37 | D46: =M4CC7aMilitaryVeteran -> 96 | E46: Number | F46: M4CC7aMilitaryVeteran
A47: All_C.7b | B47: M4CC7bMilitaryActive | C47: ="'='" & MID(CELL("address",INDIRECT(B47)),$I$3+1,100) -> '='ALL Characteristics'!$M$38 | D47: =M4CC7bMilitaryActive -> 1 | E47: Number | F47: M4CC7bMilitaryActive
A48: All_C.7c | B48: M4CC7cNoMilitaryStatus | C48: ="'='" & MID(CELL("address",INDIRECT(B48)),$I$3+1,100) -> '='ALL Characteristics'!$M$39 | D48: =M4CC7cNoMilitaryStatus -> 2002 | E48: Number | F48: M4CC7cNoMilitaryStatus
A49: All_C.7d | B49: M4CC7dMilitaryUnk | C49: ="'='" & MID(CELL("address",INDIRECT(B49)),$I$3+1,100) -> '='ALL Characteristics'!$M$40 | D49: =M4CC7dMilitaryUnk -> 188 | E49: Number | F49: M4CC7dMilitaryUnk
A50: All_C.3a_14 | B50: M4CC3aEduGrade8Age14to24 | C50: ="'='" & MID(CELL("address",INDIRECT(B50)),$I$3+1,100) -> '='ALL Characteristics'!$F$41 | D50: =M4CC3aEduGrade8Age14to24 -> 132 | E50: Number | F50: M4CC3aEduGrade8Age14to24
A51: All_C.3a_25 | B51: M4CC3aEduGrade8Age25plus | C51: ="'='" & MID(CELL("address",INDIRECT(B51)),$I$3+1,100) -> '='ALL Characteristics'!$G$41 | D51: =M4CC3aEduGrade8Age25plus -> 34 | E51: Number | F51: M4CC3aEduGrade8Age25plus
A52: All_C.7e | B52: M4CC7eMilitaryTotal | C52: ="'='" & MID(CELL("address",INDIRECT(B52)),$I$3+1,100) -> '='ALL Characteristics'!$M$41 | D52: =M4CC7eMilitaryTotal -> 2287 | E52: Number | F52: M4CC7eMilitaryTotal
A53: All_C.3b_14 | B53: M4CC3bEduGrade12Age24und | C53: ="'='" & MID(CELL("address",INDIRECT(B53)),$I$3+1,100) -> '='ALL Characteristics'!$F$42 | D53: =M4CC3bEduGrade12Age24und -> 153 | E53: Number | F53: M4CC3bEduGrade12Age24und
A54: All_C.3b_25 | B54: M4CC3bEduGrade12Age25plus | C54: ="'='" & MID(CELL("address",INDIRECT(B54)),$I$3+1,100) -> '='ALL Characteristics'!$G$42 | D54: =M4CC3bEduGrade12Age25plus -> 425 | E54: Number | F54: M4CC3bEduGrade12Age25plus
A55: All_C.3c_14 | B55: M4CC3cEduHSGradAge24und | C55: ="'='" & MID(CELL("address",INDIRECT(B55)),$I$3+1,100) -> '='ALL Characteristics'!$F$43 | D55: =M4CC3cEduHSGradAge24und -> 80 | E55: Number | F55: M4CC3cEduHSGradAge24und
A56: All_C.3c_25 | B56: M4CC3cEduHSGradAge25plus | C56: ="'='" & MID(CELL("address",INDIRECT(B56)),$I$3+1,100) -> '='ALL Characteristics'!$G$43 | D56: =M4CC3cEduHSGradAge25plus -> 567 | E56: Number | F56: M4CC3cEduHSGradAge25plus
A57: All_C.3d_14 | B57: M4CC3dEquivDiplomaAge24und | C57: ="'='" & MID(CELL("address",INDIRECT(B57)),$I$3+1,100) -> '='ALL Characteristics'!$F$44 | D57: =M4CC3dEquivDiplomaAge24und -> 13 | E57: Number | F57: M4CC3dEquivDiplomaAge24und
A58: All_C.3d_25 | B58: M4CC3dEquivDiplomaAge25plus | C58: ="'='" & MID(CELL("address",INDIRECT(B58)),$I$3+1,100) -> '='ALL Characteristics'!$G$44 | D58: =M4CC3dEquivDiplomaAge25plus -> 216 | E58: Number | F58: M4CC3dEquivDiplomaAge25plus
A59: All_C.3e_14 | B59: M4CC3eEduPostSecAge24und | C59: ="'='" & MID(CELL("address",INDIRECT(B59)),$I$3+1,100) -> '='ALL Characteristics'!$F$45 | D59: =M4CC3eEduPostSecAge24und -> 15 | E59: Number | F59: M4CC3eEduPostSecAge24und
A60: All_C.3e_25 | B60: M4CC3eEduPostSecAge25plus | C60: ="'='" & MID(CELL("address",INDIRECT(B60)),$I$3+1,100) -> '='ALL Characteristics'!$G$45 | D60: =M4CC3eEduPostSecAge25plus -> 313 | E60: Number | F60: M4CC3eEduPostSecAge25plus
A61: All_C.3f_14 | B61: M4CC3fEduCollegeGradAge24und | C61: ="'='" & MID(CELL("address",INDIRECT(B61)),$I$3+1,100) -> '='ALL Characteristics'!$F$46 | D61: =M4CC3fEduCollegeGradAge24und -> 4 | E61: Number | F61: M4CC3fEduCollegeGradAge24und
A62: All_C.3f_25 | B62: M4CC3fEduCollegeGradAge25plus | C62: ="'='" & MID(CELL("address",INDIRECT(B62)),$I$3+1,100) -> '='ALL Characteristics'!$G$46 | D62: =M4CC3fEduCollegeGradAge25plus -> 167 | E62: Number | F62: M4CC3fEduCollegeGradAge25plus
A63: All_C.3g_14 | B63: M4CC3gEduGradPostSecAge24und | C63: ="'='" & MID(CELL("address",INDIRECT(B63)),$I$3+1,100) -> '='ALL Characteristics'!$F$47 | D63: =M4CC3gEduGradPostSecAge24und -> 0 | E63: Number | F63: M4CC3gEduGradPostSecAge24und
A64: All_C.3g_25 | B64: M4CC3gEduGradPostSecAge25plus | C64: ="'='" & MID(CELL("address",INDIRECT(B64)),$I$3+1,100) -> '='ALL Characteristics'!$G$47 | D64: =M4CC3gEduGradPostSecAge25plus -> 28 | E64: Number | F64: M4CC3gEduGradPostSecAge25plus
A65: All_C.3h_14 | B65: M4CC3hEduUnkAge24und | C65: ="'='" & MID(CELL("address",INDIRECT(B65)),$I$3+1,100) -> '='ALL Characteristics'!$F$48 | D65: =M4CC3hEduUnkAge24und -> 75 | E65: Number | F65: M4CC3hEduUnkAge24und
A66: All_C.3h_25 | B66: M4CC3hEduUnkAge25plus | C66: ="'='" & MID(CELL("address",INDIRECT(B66)),$I$3+1,100) -> '='ALL Characteristics'!$G$48 | D66: =M4CC3hEduUnkAge25plus -> 271 | E66: Number | F66: M4CC3hEduUnkAge25plus
A67: All_C.8a | B67: M4CC8aWorkEmployFT | C67: ="'='" & MID(CELL("address",INDIRECT(B67)),$I$3+1,100) -> '='ALL Characteristics'!$M$48 | D67: =M4CC8aWorkEmployFT -> 126 | E67: Number | F67: M4CC8aWorkEmployFT
A68: All_C.3i_14 | B68: M4CC3iEduTotalAge24und | C68: ="'='" & MID(CELL("address",INDIRECT(B68)),$I$3+1,100) -> '='ALL Characteristics'!$F$49 | D68: =M4CC3iEduTotalAge24und -> 472 | E68: Number | F68: M4CC3iEduTotalAge24und
A69: All_C.3i_25 | B69: M4CC3iEduTotalAge25plus | C69: ="'='" & MID(CELL("address",INDIRECT(B69)),$I$3+1,100) -> '='ALL Characteristics'!$G$49 | D69: =M4CC3iEduTotalAge25plus -> 2021 | E69: Number | F69: M4CC3iEduTotalAge25plus
A70: All_C.8b | B70: M4CC8bWorkEmployPT | C70: ="'='" & MID(CELL("address",INDIRECT(B70)),$I$3+1,100) -> '='ALL Characteristics'!$M$49 | D70: =M4CC8bWorkEmployPT -> 230 | E70: Number | F70: M4CC8bWorkEmployPT
A71: All_C.8c | B71: M4CC8cWorkSeasonal | C71: ="'='" & MID(CELL("address",INDIRECT(B71)),$I$3+1,100) -> '='ALL Characteristics'!$M$50 | D71: =M4CC8cWorkSeasonal -> 2 | E71: Number | F71: M4CC8cWorkSeasonal
A72: All_C.8d | B72: M4CC8dWorkUnemployShort | C72: ="'='" & MID(CELL("address",INDIRECT(B72)),$I$3+1,100) -> '='ALL Characteristics'!$M$51 | D72: =M4CC8dWorkUnemployShort -> 223 | E72: Number | F72: M4CC8dWorkUnemployShort
A73: All_C.8e | B73: M4CC8eWorkUnemployLong | C73: ="'='" & MID(CELL("address",INDIRECT(B73)),$I$3+1,100) -> '='ALL Characteristics'!$M$52 | D73: =M4CC8eWorkUnemployLong -> 477 | E73: Number | F73: M4CC8eWorkUnemployLong
A74: All_C.8f | B74: M4CC8fWorkUnemployNLF | C74: ="'='" & MID(CELL("address",INDIRECT(B74)),$I$3+1,100) -> '='ALL Characteristics'!$M$53 | D74: =M4CC8fWorkUnemployNLF -> 955 | E74: Number | F74: M4CC8fWorkUnemployNLF
A75: All_C.8g | B75: M4CC8gWorkRetired | C75: ="'='" & MID(CELL("address",INDIRECT(B75)),$I$3+1,100) -> '='ALL Characteristics'!$M$54 | D75: =M4CC8gWorkRetired -> 57 | E75: Number | F75: M4CC8gWorkRetired
A76: All_C.8h | B76: M4CC8hWorkUnk | C76: ="'='" & MID(CELL("address",INDIRECT(B76)),$I$3+1,100) -> '='ALL Characteristics'!$M$55 | D76: =M4CC8hWorkUnk -> 193 | E76: Number | F76: M4CC8hWorkUnk
A77: All_C.8i | B77: M4CC8iWorkTotal | C77: ="'='" & MID(CELL("address",INDIRECT(B77)),$I$3+1,100) -> '='ALL Characteristics'!$M$56 | D77: =M4CC8iWorkTotal -> 2263 | E77: Number | F77: M4CC8iWorkTotal
A78: All_C.4a | B78: M4CC4aDisconnectedYouth | C78: ="'='" & MID(CELL("address",INDIRECT(B78)),$I$3+1,100) -> '='ALL Characteristics'!$G$60 | D78: =M4CC4aDisconnectedYouth -> 194 | E78: Number | F78: M4CC4aDisconnectedYouth
A79: All_C.5a_Yes | B79: M4CC5aHealthDisableYes | C79: ="'='" & MID(CELL("address",INDIRECT(B79)),$I$3+1,100) -> '='ALL Characteristics'!$E$64 | D79: =M4CC5aHealthDisableYes -> 688 | E79: Number | F79: M4CC5aHealthDisableYes
A80: All_C.5a_Unknown | B80: M4CC5aHealthDisableUnk | C80: ="'='" & MID(CELL("address",INDIRECT(B80)),$I$3+1,100) -> '='ALL Characteristics'!$G$64 | D80: =M4CC5aHealthDisableUnk -> 591 | E80: Number | F80: M4CC5aHealthDisableUnk
A81: All_C.5a_No | B81: M4CC5aHealthDisableNo | C81: ="'='" & MID(CELL("address",INDIRECT(B81)),$I$3+1,100) -> '='ALL Characteristics'!$F$64 | D81: =M4CC5aHealthDisableNo -> 1917 | E81: Number | F81: M4CC5aHealthDisableNo
A82: All_C.5b_Yes | B82: M4CC5b1HealthInsuranceYes | C82: ="'='" & MID(CELL("address",INDIRECT(B82)),$I$3+1,100) -> '='ALL Characteristics'!$E$66 | D82: =M4CC5b1HealthInsuranceYes -> 1741 | E82: Number | F82: M4CC5b1HealthInsuranceYes
A83: All_C.5b_No | B83: M4CC5b2HealthInsuranceNo | C83: ="'='" & MID(CELL("address",INDIRECT(B83)),$I$3+1,100) -> '='ALL Characteristics'!$F$66 | D83: =M4CC5b2HealthInsuranceNo -> 850 | E83: Number | F83: M4CC5b2HealthInsuranceNo
A84: All_C.5b_Unknown | B84: M4CC5b3HealthInsuranceUnk | C84: ="'='" & MID(CELL("address",INDIRECT(B84)),$I$3+1,100) -> '='ALL Characteristics'!$G$66 | D84: =M4CC5b3HealthInsuranceUnk -> 605 | E84: Number | F84: M4CC5b3HealthInsuranceUnk
A85: All_C.5c.1 | B85: M4CC5c1InsuranceMedicaid | C85: ="'='" & MID(CELL("address",INDIRECT(B85)),$I$3+1,100) -> '='ALL Characteristics'!$G$69 | D85: =M4CC5c1InsuranceMedicaid -> 1190 | E85: Number | F85: M4CC5c1InsuranceMedicaid
A86: All_C.5c.2 | B86: M4CC5c2InsuranceMedicare | C86: ="'='" & MID(CELL("address",INDIRECT(B86)),$I$3+1,100) -> '='ALL Characteristics'!$G$70 | D86: =M4CC5c2InsuranceMedicare -> 380 | E86: Number | F86: M4CC5c2InsuranceMedicare
A87: All_C.5c.3 | B87: M4CC5c3InsuranceStateChild | C87: ="'='" & MID(CELL("address",INDIRECT(B87)),$I$3+1,100) -> '='ALL Characteristics'!$G$71 | D87: =M4CC5c3InsuranceStateChild -> 23 | E87: Number | F87: M4CC5c3InsuranceStateChild
A88: All_C.5c.4 | B88: M4CC5c4InsuranceStateAdult | C88: ="'='" & MID(CELL("address",INDIRECT(B88)),$I$3+1,100) -> '='ALL Characteristics'!$G$72 | D88: =M4CC5c4InsuranceStateAdult -> 12 | E88: Number | F88: M4CC5c4InsuranceStateAdult
A89: All_C.5c.5 | B89: M4CC5c5InsuranceMilitary | C89: ="'='" & MID(CELL("address",INDIRECT(B89)),$I$3+1,100) -> '='ALL Characteristics'!$G$73 | D89: =M4CC5c5InsuranceMilitary -> 19 | E89: Number | F89: M4CC5c5InsuranceMilitary
A90: All_C.5c.6 | B90: M4CC5c6InsuranceDirectPurch | C90: ="'='" & MID(CELL("address",INDIRECT(B90)),$I$3+1,100) -> '='ALL Characteristics'!$G$74 | D90: =M4CC5c6InsuranceDirectPurch -> 20 | E90: Number | F90: M4CC5c6InsuranceDirectPurch
A91: All_C.5c.7 | B91: M4CC5c7InsuranceEmploy | C91: ="'='" & MID(CELL("address",INDIRECT(B91)),$I$3+1,100) -> '='ALL Characteristics'!$G$75 | D91: =M4CC5c7InsuranceEmploy -> 69 | E91: Number | F91: M4CC5c7InsuranceEmploy
A92: All_C.5c.8 | B92: M4CC5c8InsuranceUnk | C92: ="'='" & MID(CELL("address",INDIRECT(B92)),$I$3+1,100) -> '='ALL Characteristics'!$G$76 | D92: =M4CC5c8InsuranceUnk -> 28 | E92: Number | F92: M4CC5c8InsuranceUnk
A93: All_C.5c.9 | B93: M4CC5c9InsuranceTotal | C93: ="'='" & MID(CELL("address",INDIRECT(B93)),$I$3+1,100) -> '='ALL Characteristics'!$G$77 | D93: =M4CC5c9InsuranceTotal -> 1741 | E93: Number | F93: M4CC5c9InsuranceTotal
A94: All_D.9a | B94: M4CD9aHHTypeOne | C94: ="'='" & MID(CELL("address",INDIRECT(B94)),$I$3+1,100) -> '='ALL Characteristics'!$F$90 | D94: =M4CD9aHHTypeOne -> 826 | E94: Number | F94: M4CD9aHHTypeOne
A95: All_D.13a | B95: M4CD13aIncomeEmployOnly | C95: ="'='" & MID(CELL("address",INDIRECT(B95)),$I$3+1,100) -> '='ALL Characteristics'!$M$90 | D95: =M4CD13aIncomeEmployOnly -> 166 | E95: Number | F95: M4CD13aIncomeEmployOnly
A96: All_D.9b | B96: M4CD9bHHTypeTwoNoChild | C96: ="'='" & MID(CELL("address",INDIRECT(B96)),$I$3+1,100) -> '='ALL Characteristics'!$F$91 | D96: =M4CD9bHHTypeTwoNoChild -> 225 | E96: Number | F96: M4CD9bHHTypeTwoNoChild
A97: All_D.13b | B97: M4CD13bIncomeEmployOther | C97: ="'='" & MID(CELL("address",INDIRECT(B97)),$I$3+1,100) -> '='ALL Characteristics'!$M$91 | D97: =M4CD13bIncomeEmployOther -> 19 | E97: Number | F97: M4CD13bIncomeEmployOther
A98: All_D.9c | B98: M4CD9cHHTypeSingleParentFem | C98: ="'='" & MID(CELL("address",INDIRECT(B98)),$I$3+1,100) -> '='ALL Characteristics'!$F$92 | D98: =M4CD9cHHTypeSingleParentFem -> 194 | E98: Number | F98: M4CD9cHHTypeSingleParentFem
A99: All_D.13c | B99: M4CD13cIncomeEmployOtherNoncash | C99: ="'='" & MID(CELL("address",INDIRECT(B99)),$I$3+1,100) -> '='ALL Characteristics'!$M$92 | D99: =M4CD13cIncomeEmployOtherNoncash -> 9 | E99: Number | F99: M4CD13cIncomeEmployOtherNoncash
A100: All_D.9d | B100: M4CD9dHHTypeSingleParentMale | C100: ="'='" & MID(CELL("address",INDIRECT(B100)),$I$3+1,100) -> '='ALL Characteristics'!$F$93 | D100: =M4CD9dHHTypeSingleParentMale -> 35 | E100: Number | F100: M4CD9dHHTypeSingleParentMale
A101: All_D.13d | B101: M4CD13dIncomeEmployNoncash | C101: ="'='" & MID(CELL("address",INDIRECT(B101)),$I$3+1,100) -> '='ALL Characteristics'!$M$93 | D101: =M4CD13dIncomeEmployNoncash -> 17 | E101: Number | F101: M4CD13dIncomeEmployNoncash
A102: All_D.9e | B102: M4CD9eHHTypeTwoParent | C102: ="'='" & MID(CELL("address",INDIRECT(B102)),$I$3+1,100) -> '='ALL Characteristics'!$F$94 | D102: =M4CD9eHHTypeTwoParent -> 190 | E102: Number | F102: M4CD9eHHTypeTwoParent
A103: All_D.13e | B103: M4CD13eIncomeOtherOnly | C103: ="'='" & MID(CELL("address",INDIRECT(B103)),$I$3+1,100) -> '='ALL Characteristics'!$M$94 | D103: =M4CD13eIncomeOtherOnly -> 372 | E103: Number | F103: M4CD13eIncomeOtherOnly
A104: All_D.9f | B104: M4CD9fHHTypeUnrelAdultsChild | C104: ="'='" & MID(CELL("address",INDIRECT(B104)),$I$3+1,100) -> '='ALL Characteristics'!$F$95 | D104: =M4CD9fHHTypeUnrelAdultsChild -> 37 | E104: Number | F104: M4CD9fHHTypeUnrelAdultsChild
A105: All_D.13f | B105: M4CD13fIncomeOtherNoncash | C105: ="'='" & MID(CELL("address",INDIRECT(B105)),$I$3+1,100) -> '='ALL Characteristics'!$M$95 | D105: =M4CD13fIncomeOtherNoncash -> 140 | E105: Number | F105: M4CD13fIncomeOtherNoncash
A106: All_D.9g | B106: M4CD9gHHTypeMultigen | C106: ="'='" & MID(CELL("address",INDIRECT(B106)),$I$3+1,100) -> '='ALL Characteristics'!$F$96 | D106: =M4CD9gHHTypeMultigen -> 31 | E106: Number | F106: M4CD9gHHTypeMultigen
A107: All_D.13g | B107: M4CD13gIncomeNone | C107: ="'='" & MID(CELL("address",INDIRECT(B107)),$I$3+1,100) -> '='ALL Characteristics'!$M$96 | D107: =M4CD13gIncomeNone -> 861 | E107: Number | F107: M4CD13gIncomeNone
A108: All_D.9h | B108: M4CD9hHHTypeOther | C108: ="'='" & MID(CELL("address",INDIRECT(B108)),$I$3+1,100) -> '='ALL Characteristics'!$F$97 | D108: =M4CD9hHHTypeOther -> 16 | E108: Number | F108: M4CD9hHHTypeOther
A109: All_D.13h | B109: M4CD13hIncomeNoncashOnly | C109: ="'='" & MID(CELL("address",INDIRECT(B109)),$I$3+1,100) -> '='ALL Characteristics'!$M$97 | D109: =M4CD13hIncomeNoncashOnly -> 72 | E109: Number | F109: M4CD13hIncomeNoncashOnly
A110: All_D.9i | B110: M4CD9iHHTypeUnk | C110: ="'='" & MID(CELL("address",INDIRECT(B110)),$I$3+1,100) -> '='ALL Characteristics'!$F$98 | D110: =M4CD9iHHTypeUnk -> 102 | E110: Number | F110: M4CD9iHHTypeUnk
A111: All_D.13i | B111: M4CD13iIncomeUnk | C111: ="'='" & MID(CELL("address",INDIRECT(B111)),$I$3+1,100) -> '='ALL Characteristics'!$M$98 | D111: =M4CD13iIncomeUnk -> 0 | E111: Number | F111: M4CD13iIncomeUnk
A112: All_D.9j | B112: M4CD9jHHTypeTotal | C112: ="'='" & MID(CELL("address",INDIRECT(B112)),$I$3+1,100) -> '='ALL Characteristics'!$F$99 | D112: =M4CD9jHHTypeTotal -> 1656 | E112: Number | F112: M4CD9jHHTypeTotal
A113: All_D.13j | B113: M4CD13jIncomeTotal | C113: ="'='" & MID(CELL("address",INDIRECT(B113)),$I$3+1,100) -> '='ALL Characteristics'!$M$99 | D113: =M4CD13jIncomeTotal -> 1656 | E113: Number | F113: M4CD13jIncomeTotal
A114: All_D.10a | B114: M4CD10aHHSize1 | C114: ="'='" & MID(CELL("address",INDIRECT(B114)),$I$3+1,100) -> '='ALL Characteristics'!$F$106 | D114: =M4CD10aHHSize1 -> 826 | E114: Number | F114: M4CD10aHHSize1
A115: All_D.10b | B115: M4CD10bHHSize2 | C115: ="'='" & MID(CELL("address",INDIRECT(B115)),$I$3+1,100) -> '='ALL Characteristics'!$F$107 | D115: =M4CD10bHHSize2 -> 298 | E115: Number | F115: M4CD10bHHSize2
A116: All_D.10c | B116: M4CD10cHHSize3 | C116: ="'='" & MID(CELL("address",INDIRECT(B116)),$I$3+1,100) -> '='ALL Characteristics'!$F$108 | D116: =M4CD10cHHSize3 -> 151 | E116: Number | F116: M4CD10cHHSize3
A117: All_D.10d | B117: M4CD10dHHSize4 | C117: ="'='" & MID(CELL("address",INDIRECT(B117)),$I$3+1,100) -> '='ALL Characteristics'!$F$109 | D117: =M4CD10dHHSize4 -> 119 | E117: Number | F117: M4CD10dHHSize4
A118: All_D.10e | B118: M4CD10eHHSize5 | C118: ="'='" & MID(CELL("address",INDIRECT(B118)),$I$3+1,100) -> '='ALL Characteristics'!$F$110 | D118: =M4CD10eHHSize5 -> 92 | E118: Number | F118: M4CD10eHHSize5
A119: All_D.14a | B119: M4CD14aOtherincTANF | C119: ="'='" & MID(CELL("address",INDIRECT(B119)),$I$3+1,100) -> '='ALL Characteristics'!$M$110 | D119: =M4CD14aOtherincTANF -> 2 | E119: Number | F119: M4CD14aOtherincTANF
A120: All_D.10f | B120: M4CD10fHHSize6plus | C120: ="'='" & MID(CELL("address",INDIRECT(B120)),$I$3+1,100) -> '='ALL Characteristics'!$F$111 | D120: =M4CD10fHHSize6plus -> 42 | E120: Number | F120: M4CD10fHHSize6plus
A121: All_D.14b | B121: M4CD14bOtherincSSI | C121: ="'='" & MID(CELL("address",INDIRECT(B121)),$I$3+1,100) -> '='ALL Characteristics'!$M$111 | D121: =M4CD14bOtherincSSI -> 227 | E121: Number | F121: M4CD14bOtherincSSI
A122: All_D.10g | B122: M4CD10gHHSizeUnk | C122: ="'='" & MID(CELL("address",INDIRECT(B122)),$I$3+1,100) -> '='ALL Characteristics'!$F$112 | D122: =M4CD10gHHSizeUnk -> 128 | E122: Number | F122: M4CD10gHHSizeUnk
A123: All_D.14c | B123: M4CD14cOtherincSSDI | C123: ="'='" & MID(CELL("address",INDIRECT(B123)),$I$3+1,100) -> '='ALL Characteristics'!$M$112 | D123: =M4CD14cOtherincSSDI -> 288 | E123: Number | F123: M4CD14cOtherincSSDI
A124: All_D.10h | B124: M4CD10hHHSizeTotal | C124: ="'='" & MID(CELL("address",INDIRECT(B124)),$I$3+1,100) -> '='ALL Characteristics'!$F$113 | D124: =M4CD10hHHSizeTotal -> 1656 | E124: Number | F124: M4CD10hHHSizeTotal
A125: All_D.14d | B125: M4CD14dOtherincVADisComp | C125: ="'='" & MID(CELL("address",INDIRECT(B125)),$I$3+1,100) -> '='ALL Characteristics'!$M$113 | D125: =M4CD14dOtherincVADisComp -> 3 | E125: Number | F125: M4CD14dOtherincVADisComp
A126: All_D.14e | B126: M4CD14eOtherincVADisPension | C126: ="'='" & MID(CELL("address",INDIRECT(B126)),$I$3+1,100) -> '='ALL Characteristics'!$M$114 | D126: =M4CD14eOtherincVADisPension -> 3 | E126: Number | F126: M4CD14eOtherincVADisPension
A127: All_D.14f | B127: M4CD14fOtherincPrivateDis | C127: ="'='" & MID(CELL("address",INDIRECT(B127)),$I$3+1,100) -> '='ALL Characteristics'!$M$115 | D127: =M4CD14fOtherincPrivateDis -> 0 | E127: Number | F127: M4CD14fOtherincPrivateDis
A128: All_D.14g | B128: M4CD14gOtherincWorkerComp | C128: ="'='" & MID(CELL("address",INDIRECT(B128)),$I$3+1,100) -> '='ALL Characteristics'!$M$116 | D128: =M4CD14gOtherincWorkerComp -> 0 | E128: Number | F128: M4CD14gOtherincWorkerComp
A129: All_D.14h | B129: M4CD14hOtherincRetirement | C129: ="'='" & MID(CELL("address",INDIRECT(B129)),$I$3+1,100) -> '='ALL Characteristics'!$M$117 | D129: =M4CD14hOtherincRetirement -> 292 | E129: Number | F129: M4CD14hOtherincRetirement
A130: All_D.14i | B130: M4CD14iOtherincPension | C130: ="'='" & MID(CELL("address",INDIRECT(B130)),$I$3+1,100) -> '='ALL Characteristics'!$M$118 | D130: =M4CD14iOtherincPension -> 16 | E130: Number | F130: M4CD14iOtherincPension
A131: All_D.14j | B131: M4CD14jOtherincChildSupp | C131: ="'='" & MID(CELL("address",INDIRECT(B131)),$I$3+1,100) -> '='ALL Characteristics'!$M$119 | D131: =M4CD14jOtherincChildSupp -> 21 | E131: Number | F131: M4CD14jOtherincChildSupp
A132: All_D.11a | B132: M4CD11aHousingOwn | C132: ="'='" & MID(CELL("address",INDIRECT(B132)),$I$3+1,100) -> '='ALL Characteristics'!$F$120 | D132: =M4CD11aHousingOwn -> 256 | E132: Number | F132: M4CD11aHousingOwn
A133: All_D.14k | B133: M4CD14kOtherincAlimony | C133: ="'='" & MID(CELL("address",INDIRECT(B133)),$I$3+1,100) -> '='ALL Characteristics'!$M$120 | D133: =M4CD14kOtherincAlimony -> 3 | E133: Number | F133: M4CD14kOtherincAlimony
A134: All_D.11b | B134: M4CD11bHousingRent | C134: ="'='" & MID(CELL("address",INDIRECT(B134)),$I$3+1,100) -> '='ALL Characteristics'!$F$121 | D134: =M4CD11bHousingRent -> 919 | E134: Number | F134: M4CD11bHousingRent
A135: All_D.14l | B135: M4CD14lOtherincUnemploy | C135: ="'='" & MID(CELL("address",INDIRECT(B135)),$I$3+1,100) -> '='ALL Characteristics'!$M$121 | D135: =M4CD14lOtherincUnemploy -> 10 | E135: Number | F135: M4CD14lOtherincUnemploy
A136: All_D.11c | B136: M4CD11cHousingOtherPerm | C136: ="'='" & MID(CELL("address",INDIRECT(B136)),$I$3+1,100) -> '='ALL Characteristics'!$F$122 | D136: =M4CD11cHousingOtherPerm -> 3 | E136: Number | F136: M4CD11cHousingOtherPerm
A137: All_D.14m | B137: M4CD14mOtherincEITC | C137: ="'='" & MID(CELL("address",INDIRECT(B137)),$I$3+1,100) -> '='ALL Characteristics'!$M$122 | D137: =M4CD14mOtherincEITC -> 0 | E137: Number | F137: M4CD14mOtherincEITC
A138: All_D.11d | B138: M4CD11dHousingHomeless | C138: ="'='" & MID(CELL("address",INDIRECT(B138)),$I$3+1,100) -> '='ALL Characteristics'!$F$123 | D138: =M4CD11dHousingHomeless -> 150 | E138: Number | F138: M4CD11dHousingHomeless
A139: All_D.14n | B139: M4CD14nOtherincOther | C139: ="'='" & MID(CELL("address",INDIRECT(B139)),$I$3+1,100) -> '='ALL Characteristics'!$M$123 | D139: =M4CD14nOtherincOther -> 17 | E139: Number | F139: M4CD14nOtherincOther
A140: All_D.11e | B140: M4CD11eHousingOther | C140: ="'='" & MID(CELL("address",INDIRECT(B140)),$I$3+1,100) -> '='ALL Characteristics'!$F$124 | D140: =M4CD11eHousingOther -> 157 | E140: Number | F140: M4CD11eHousingOther
A141: All_D.14o | B141: M4CD14oOtherincUnk | C141: ="'='" & MID(CELL("address",INDIRECT(B141)),$I$3+1,100) -> '='ALL Characteristics'!$M$124 | D141: =M4CD14oOtherincUnk -> 11 | E141: Number | F141: M4CD14oOtherincUnk
A142: All_D.11f | B142: M4CD11fHousingUnk | C142: ="'='" & MID(CELL("address",INDIRECT(B142)),$I$3+1,100) -> '='ALL Characteristics'!$F$125 | D142: =M4CD11fHousingUnk -> 171 | E142: Number | F142: M4CD11fHousingUnk
A143: All_D.11g | B143: M4CD11gHousingTotal | C143: ="'='" & MID(CELL("address",INDIRECT(B143)),$I$3+1,100) -> '='ALL Characteristics'!$F$126 | D143: =M4CD11gHousingTotal -> 1656 | E143: Number | F143: M4CD11gHousingTotal
A144: All_D.15a | B144: M4CD15aNoncashSNAP | C144: ="'='" & MID(CELL("address",INDIRECT(B144)),$I$3+1,100) -> '='ALL Characteristics'!$M$131 | D144: =M4CD15aNoncashSNAP -> 17 | E144: Number | F144: M4CD15aNoncashSNAP
A145: All_D.15b | B145: M4CD15bNoncashWIC | C145: ="'='" & MID(CELL("address",INDIRECT(B145)),$I$3+1,100) -> '='ALL Characteristics'!$M$132 | D145: =M4CD15bNoncashWIC -> 1 | E145: Number | F145: M4CD15bNoncashWIC
A146: All_D.15c | B146: M4CD15cNoncashLIHEAP | C146: ="'='" & MID(CELL("address",INDIRECT(B146)),$I$3+1,100) -> '='ALL Characteristics'!$M$133 | D146: =M4CD15cNoncashLIHEAP -> 0 | E146: Number | F146: M4CD15cNoncashLIHEAP
A147: All_D.12a | B147: M4CD12aPov50 | C147: ="'='" & MID(CELL("address",INDIRECT(B147)),$I$3+1,100) -> '='ALL Characteristics'!$F$134 | D147: =M4CD12aPov50 -> 1055 | E147: Number | F147: M4CD12aPov50
A148: All_D.15d | B148: M4CD15dNoncashHCVP | C148: ="'='" & MID(CELL("address",INDIRECT(B148)),$I$3+1,100) -> '='ALL Characteristics'!$M$134 | D148: =M4CD15dNoncashHCVP -> 0 | E148: Number | F148: M4CD15dNoncashHCVP
A149: All_D.12b | B149: M4CD12bPov51to75 | C149: ="'='" & MID(CELL("address",INDIRECT(B149)),$I$3+1,100) -> '='ALL Characteristics'!$F$135 | D149: =M4CD12bPov51to75 -> 234 | E149: Number | F149: M4CD12bPov51to75
A150: All_D.15e | B150: M4CD15eNoncashPubHouse | C150: ="'='" & MID(CELL("address",INDIRECT(B150)),$I$3+1,100) -> '='ALL Characteristics'!$M$135 | D150: =M4CD15eNoncashPubHouse -> 0 | E150: Number | F150: M4CD15eNoncashPubHouse
A151: All_D.12c | B151: M4CD12cPov76to100 | C151: ="'='" & MID(CELL("address",INDIRECT(B151)),$I$3+1,100) -> '='ALL Characteristics'!$F$136 | D151: =M4CD12cPov76to100 -> 175 | E151: Number | F151: M4CD12cPov76to100
A152: All_D.15f | B152: M4CD15fNoncashPermHouse | C152: ="'='" & MID(CELL("address",INDIRECT(B152)),$I$3+1,100) -> '='ALL Characteristics'!$M$136 | D152: =M4CD15fNoncashPermHouse -> 0 | E152: Number | F152: M4CD15fNoncashPermHouse
A153: All_D.12d | B153: M4CD12dPov101to125 | C153: ="'='" & MID(CELL("address",INDIRECT(B153)),$I$3+1,100) -> '='ALL Characteristics'!$F$137 | D153: =M4CD12dPov101to125 -> 106 | E153: Number | F153: M4CD12dPov101to125
A154: All_D.15g | B154: M4CD15gNoncashHUDVASH | C154: ="'='" & MID(CELL("address",INDIRECT(B154)),$I$3+1,100) -> '='ALL Characteristics'!$M$137 | D154: =M4CD15gNoncashHUDVASH -> 0 | E154: Number | F154: M4CD15gNoncashHUDVASH
A155: All_D.12e | B155: M4CD12ePov126to150 | C155: ="'='" & MID(CELL("address",INDIRECT(B155)),$I$3+1,100) -> '='ALL Characteristics'!$F$138 | D155: =M4CD12ePov126to150 -> 60 | E155: Number | F155: M4CD12ePov126to150
A156: All_D.15h | B156: M4CD15hNoncashChildcareVouch | C156: ="'='" & MID(CELL("address",INDIRECT(B156)),$I$3+1,100) -> '='ALL Characteristics'!$M$138 | D156: =M4CD15hNoncashChildcareVouch -> 0 | E156: Number | F156: M4CD15hNoncashChildcareVouch
A157: All_D.12f | B157: M4CD12fPov151to175 | C157: ="'='" & MID(CELL("address",INDIRECT(B157)),$I$3+1,100) -> '='ALL Characteristics'!$F$139 | D157: =M4CD12fPov151to175 -> 7 | E157: Number | F157: M4CD12fPov151to175
A158: All_D.15i | B158: M4CD15iNoncashACA | C158: ="'='" & MID(CELL("address",INDIRECT(B158)),$I$3+1,100) -> '='ALL Characteristics'!$M$139 | D158: =M4CD15iNoncashACA -> 0 | E158: Number | F158: M4CD15iNoncashACA
A159: All_D.12g | B159: M4CD12gPov176to200 | C159: ="'='" & MID(CELL("address",INDIRECT(B159)),$I$3+1,100) -> '='ALL Characteristics'!$F$140 | D159: =M4CD12gPov176to200 -> 3 | E159: Number | F159: M4CD12gPov176to200
A160: All_D.15j | B160: M4CD15jNoncashOther | C160: ="'='" & MID(CELL("address",INDIRECT(B160)),$I$3+1,100) -> '='ALL Characteristics'!$M$140 | D160: =M4CD15jNoncashOther -> 2 | E160: Number | F160: M4CD15jNoncashOther
A161: All_D.12h | B161: M4CD12hPov201to250 | C161: ="'='" & MID(CELL("address",INDIRECT(B161)),$I$3+1,100) -> '='ALL Characteristics'!$F$141 | D161: =M4CD12hPov201to250 -> 9 | E161: Number | F161: M4CD12hPov201to250
A162: All_D.15k | B162: M4CD15kNoncashUnk | C162: ="'='" & MID(CELL("address",INDIRECT(B162)),$I$3+1,100) -> '='ALL Characteristics'!$M$141 | D162: =M4CD15kNoncashUnk -> 0 | E162: Number | F162: M4CD15kNoncashUnk
A163: All_D.12i | B163: M4CD12iPov250plus | C163: ="'='" & MID(CELL("address",INDIRECT(B163)),$I$3+1,100) -> '='ALL Characteristics'!$F$142 | D163: =M4CD12iPov250plus -> 7 | E163: Number | F163: M4CD12iPov250plus
A164: All_D.12j | B164: M4CD12jPovUnk | C164: ="'='" & MID(CELL("address",INDIRECT(B164)),$I$3+1,100) -> '='ALL Characteristics'!$F$143 | D164: =M4CD12jPovUnk -> 0 | E164: Number | F164: M4CD12jPovUnk
A165: All_D.12k | B165: M4CD12kPovTotal | C165: ="'='" & MID(CELL("address",INDIRECT(B165)),$I$3+1,100) -> '='ALL Characteristics'!$F$144 | D165: =M4CD12kPovTotal -> 1656 | E165: Number | F165: M4CD12kPovTotal
A166: Mod 4 Sec C Sub E Item 1a - Program Name | B166: M4CE1aIndivNotIncluded1 | C166: ="'='" & MID(CELL("address",INDIRECT(B166)),$I$3+1,100) -> '='ALL Characteristics'!$J$151 | D166: =IF(ISBLANK(M4CE1aIndivNotIncluded1),"",M4CE1aIndivNotIncluded1) ->  | E166: Text | F166: M4CE1aIndivNotIncluded1 | G166: 100
A167: Mod 4 Sec C Sub E Item 1b - Number of Individuals | B167: M4CE1bIndivNotIncluded1 | C167: ="'='" & MID(CELL("address",INDIRECT(B167)),$I$3+1,100) -> '='ALL Characteristics'!$L$151 | D167: =M4CE1bIndivNotIncluded1 -> 0 | E167: Number | F167: M4CE1bIndivNotIncluded1
A168: Mod 4 Sec C Sub E Item 2a - Program Name | B168: M4CE2aIndivNotIncluded2 | C168: ="'='" & MID(CELL("address",INDIRECT(B168)),$I$3+1,100) -> '='ALL Characteristics'!$J$152 | D168: =IF(ISBLANK(M4CE2aIndivNotIncluded2),"",M4CE2aIndivNotIncluded2) ->  | E168: Text | F168: M4CE2aIndivNotIncluded2 | G168: 100
A169: Mod 4 Sec C Sub E Item 2b - Number of Individuals | B169: M4CE2bIndivNotIncluded2 | C169: ="'='" & MID(CELL("address",INDIRECT(B169)),$I$3+1,100) -> '='ALL Characteristics'!$L$152 | D169: =M4CE2bIndivNotIncluded2 -> 0 | E169: Number | F169: M4CE2bIndivNotIncluded2
A170: Mod 4 Sec C Sub E Item 3a - Program Name | B170: M4CE3aIndivNotIncluded3 | C170: ="'='" & MID(CELL("address",INDIRECT(B170)),$I$3+1,100) -> '='ALL Characteristics'!$J$153 | D170: =IF(ISBLANK(M4CE3aIndivNotIncluded3),"",M4CE3aIndivNotIncluded3) ->  | E170: Text | F170: M4CE3aIndivNotIncluded3 | G170: 100
A171: Mod 4 Sec C Sub E Item 3b - Number of Individuals | B171: M4CE3bIndivNotIncluded3 | C171: ="'='" & MID(CELL("address",INDIRECT(B171)),$I$3+1,100) -> '='ALL Characteristics'!$L$153 | D171: =M4CE3bIndivNotIncluded3 -> 0 | E171: Number | F171: M4CE3bIndivNotIncluded3
A172: Mod 4 Sec C Sub E Item 4a - Program Name | B172: M4CE4aIndivNotIncluded4 | C172: ="'='" & MID(CELL("address",INDIRECT(B172)),$I$3+1,100) -> '='ALL Characteristics'!$J$154 | D172: =IF(ISBLANK(M4CE4aIndivNotIncluded4),"",M4CE4aIndivNotIncluded4) ->  | E172: Text | F172: M4CE4aIndivNotIncluded4 | G172: 100
A173: Mod 4 Sec C Sub E Item 4b - Number of Individuals | B173: M4CE4bIndivNotIncluded4 | C173: ="'='" & MID(CELL("address",INDIRECT(B173)),$I$3+1,100) -> '='ALL Characteristics'!$L$154 | D173: =M4CE4bIndivNotIncluded4 -> 0 | E173: Number | F173: M4CE4bIndivNotIncluded4
A174: Mod 4 Sec C Sub E Item 5a - Program Name | B174: M4CE5aIndivNotIncluded5 | C174: ="'='" & MID(CELL("address",INDIRECT(B174)),$I$3+1,100) -> '='ALL Characteristics'!$J$155 | D174: =IF(ISBLANK(M4CE5aIndivNotIncluded5),"",M4CE5aIndivNotIncluded5) ->  | E174: Text | F174: M4CE5aIndivNotIncluded5 | G174: 100
A175: Mod 4 Sec C Sub E Item 5b - Number of Individuals | B175: M4CE5bIndivNotIncluded5 | C175: ="'='" & MID(CELL("address",INDIRECT(B175)),$I$3+1,100) -> '='ALL Characteristics'!$L$155 | D175: =M4CE5bIndivNotIncluded5 -> 0 | E175: Number | F175: M4CE5bIndivNotIncluded5
A176: Mod 4 Sec C Sub E Item 6a - Program Name | B176: M4CE6aIndivNotIncluded6 | C176: ="'='" & MID(CELL("address",INDIRECT(B176)),$I$3+1,100) -> '='ALL Characteristics'!$J$156 | D176: =IF(ISBLANK(M4CE6aIndivNotIncluded6),"",M4CE6aIndivNotIncluded6) ->  | E176: Text | F176: M4CE6aIndivNotIncluded6 | G176: 100
A177: Mod 4 Sec C Sub E Item 6b - Number of Individuals | B177: M4CE6bIndivNotIncluded6 | C177: ="'='" & MID(CELL("address",INDIRECT(B177)),$I$3+1,100) -> '='ALL Characteristics'!$L$156 | D177: =M4CE6bIndivNotIncluded6 -> 0 | E177: Number | F177: M4CE6bIndivNotIncluded6
A178: Mod 4 Sec C Sub E Item 7a - Program Name | B178: M4CE7aIndivNotIncluded7 | C178: ="'='" & MID(CELL("address",INDIRECT(B178)),$I$3+1,100) -> '='ALL Characteristics'!$J$157 | D178: =IF(ISBLANK(M4CE7aIndivNotIncluded7),"",M4CE7aIndivNotIncluded7) ->  | E178: Text | F178: M4CE7aIndivNotIncluded7 | G178: 100
A179: Mod 4 Sec C Sub E Item 7b - Number of Individuals | B179: M4CE7bIndivNotIncluded7 | C179: ="'='" & MID(CELL("address",INDIRECT(B179)),$I$3+1,100) -> '='ALL Characteristics'!$L$157 | D179: =M4CE7bIndivNotIncluded7 -> 0 | E179: Number | F179: M4CE7bIndivNotIncluded7
A180: Mod 4 Sec C Sub E Item 8a - Program Name | B180: M4CE8aIndivNotIncluded8 | C180: ="'='" & MID(CELL("address",INDIRECT(B180)),$I$3+1,100) -> '='ALL Characteristics'!$J$158 | D180: =IF(ISBLANK(M4CE8aIndivNotIncluded8),"",M4CE8aIndivNotIncluded8) ->  | E180: Text | F180: M4CE8aIndivNotIncluded8 | G180: 100
A181: Mod 4 Sec C Sub E Item 8b - Number of Individuals | B181: M4CE8bIndivNotIncluded8 | C181: ="'='" & MID(CELL("address",INDIRECT(B181)),$I$3+1,100) -> '='ALL Characteristics'!$L$158 | D181: =M4CE8bIndivNotIncluded8 -> 0 | E181: Number | F181: M4CE8bIndivNotIncluded8
A182: Mod 4 Sec C Sub E Item 9a - Program Name | B182: M4CE9aIndivNotIncluded9 | C182: ="'='" & MID(CELL("address",INDIRECT(B182)),$I$3+1,100) -> '='ALL Characteristics'!$J$159 | D182: =IF(ISBLANK(M4CE9aIndivNotIncluded9),"",M4CE9aIndivNotIncluded9) ->  | E182: Text | F182: M4CE9aIndivNotIncluded9 | G182: 100
A183: Mod 4 Sec C Sub E Item 9b - Number of Individuals | B183: M4CE9bIndivNotIncluded9 | C183: ="'='" & MID(CELL("address",INDIRECT(B183)),$I$3+1,100) -> '='ALL Characteristics'!$L$159 | D183: =M4CE9bIndivNotIncluded9 -> 0 | E183: Number | F183: M4CE9bIndivNotIncluded9
A184: Mod 4 Sec C Sub E Item 10a - Program Name | B184: M4CE10aIndivNotIncluded10 | C184: ="'='" & MID(CELL("address",INDIRECT(B184)),$I$3+1,100) -> '='ALL Characteristics'!$J$160 | D184: =IF(ISBLANK(M4CE10aIndivNotIncluded10),"",M4CE10aIndivNotIncluded10) ->  | E184: Text | F184: M4CE10aIndivNotIncluded10 | G184: 100
A185: Mod 4 Sec C Sub E Item 10b - Number of Individuals | B185: M4CE10bIndivNotIncluded10 | C185: ="'='" & MID(CELL("address",INDIRECT(B185)),$I$3+1,100) -> '='ALL Characteristics'!$L$160 | D185: =M4CE10bIndivNotIncluded10 -> 0 | E185: Number | F185: M4CE10bIndivNotIncluded10
A186: Mod 4 Sec C Sub E Item 11a - Program Name | B186: M4CE11aIndivNotIncluded11 | C186: ="'='" & MID(CELL("address",INDIRECT(B186)),$I$3+1,100) -> '='ALL Characteristics'!$J$161 | D186: =IF(ISBLANK(M4CE11aIndivNotIncluded11),"",M4CE11aIndivNotIncluded11) ->  | E186: Text | F186: M4CE11aIndivNotIncluded11 | G186: 100
A187: Mod 4 Sec C Sub E Item 11b - Number of Individuals | B187: M4CE11bIndivNotIncluded11 | C187: ="'='" & MID(CELL("address",INDIRECT(B187)),$I$3+1,100) -> '='ALL Characteristics'!$L$161 | D187: =M4CE11bIndivNotIncluded11 -> 0 | E187: Number | F187: M4CE11bIndivNotIncluded11
A188: Mod 4 Sec C Sub E Item 12a - Program Name | B188: M4CE12aIndivNotIncluded12 | C188: ="'='" & MID(CELL("address",INDIRECT(B188)),$I$3+1,100) -> '='ALL Characteristics'!$J$162 | D188: =IF(ISBLANK(M4CE12aIndivNotIncluded12),"",M4CE12aIndivNotIncluded12) ->  | E188: Text | F188: M4CE12aIndivNotIncluded12 | G188: 100
A189: Mod 4 Sec C Sub E Item 12b - Number of Individuals | B189: M4CE12bIndivNotIncluded12 | C189: ="'='" & MID(CELL("address",INDIRECT(B189)),$I$3+1,100) -> '='ALL Characteristics'!$L$162 | D189: =M4CE12bIndivNotIncluded12 -> 0 | E189: Number | F189: M4CE12bIndivNotIncluded12
A190: Mod 4 Sec C Sub E Item 13a - Program Name | B190: M4CE13aIndivNotIncluded13 | C190: ="'='" & MID(CELL("address",INDIRECT(B190)),$I$3+1,100) -> '='ALL Characteristics'!$J$163 | D190: =IF(ISBLANK(M4CE13aIndivNotIncluded13),"",M4CE13aIndivNotIncluded13) ->  | E190: Text | F190: M4CE13aIndivNotIncluded13 | G190: 100
A191: Mod 4 Sec C Sub E Item 13b - Number of Individuals | B191: M4CE13bIndivNotIncluded13 | C191: ="'='" & MID(CELL("address",INDIRECT(B191)),$I$3+1,100) -> '='ALL Characteristics'!$L$163 | D191: =M4CE13bIndivNotIncluded13 -> 0 | E191: Number | F191: M4CE13bIndivNotIncluded13
A192: Mod 4 Sec C Sub E Item 14a - Program Name | B192: M4CE14aIndivNotIncluded14 | C192: ="'='" & MID(CELL("address",INDIRECT(B192)),$I$3+1,100) -> '='ALL Characteristics'!$J$164 | D192: =IF(ISBLANK(M4CE14aIndivNotIncluded14),"",M4CE14aIndivNotIncluded14) ->  | E192: Text | F192: M4CE14aIndivNotIncluded14 | G192: 100
A193: Mod 4 Sec C Sub E Item 14b - Number of Individuals | B193: M4CE14bIndivNotIncluded14 | C193: ="'='" & MID(CELL("address",INDIRECT(B193)),$I$3+1,100) -> '='ALL Characteristics'!$L$164 | D193: =M4CE14bIndivNotIncluded14 -> 0 | E193: Number | F193: M4CE14bIndivNotIncluded14
A194: Mod 4 Sec C Sub E Item 15a - Program Name | B194: M4CE15aIndivNotIncluded15 | C194: ="'='" & MID(CELL("address",INDIRECT(B194)),$I$3+1,100) -> '='ALL Characteristics'!$J$165 | D194: =IF(ISBLANK(M4CE15aIndivNotIncluded15),"",M4CE15aIndivNotIncluded15) ->  | E194: Text | F194: M4CE15aIndivNotIncluded15 | G194: 100
A195: Mod 4 Sec C Sub E Item 15b - Number of Individuals | B195: M4CE15bIndivNotIncluded15 | C195: ="'='" & MID(CELL("address",INDIRECT(B195)),$I$3+1,100) -> '='ALL Characteristics'!$L$165 | D195: =M4CE15bIndivNotIncluded15 -> 0 | E195: Number | F195: M4CE15bIndivNotIncluded15
A196: Mod 4 Sec C Sub F Item 1a - Program Name | B196: M4CF1aHHNotIncluded1 | C196: ="'='" & MID(CELL("address",INDIRECT(B196)),$I$3+1,100) -> '='ALL Characteristics'!$J$169 | D196: =IF(ISBLANK(M4CF1aHHNotIncluded1),"",M4CF1aHHNotIncluded1) ->  | E196: Text | F196: M4CF1aHHNotIncluded1 | G196: 100
A197: Mod 4 Sec C Sub F Item 1b - Number of Individuals | B197: M4CF1bHHNotIncluded1 | C197: ="'='" & MID(CELL("address",INDIRECT(B197)),$I$3+1,100) -> '='ALL Characteristics'!$L$169 | D197: =M4CF1bHHNotIncluded1 -> 0 | E197: Number | F197: M4CF1bHHNotIncluded1
A198: Mod 4 Sec C Sub F Item 2a - Program Name | B198: M4CF2aHHNotIncluded2 | C198: ="'='" & MID(CELL("address",INDIRECT(B198)),$I$3+1,100) -> '='ALL Characteristics'!$J$170 | D198: =IF(ISBLANK(M4CF2aHHNotIncluded2),"",M4CF2aHHNotIncluded2) ->  | E198: Text | F198: M4CF2aHHNotIncluded2 | G198: 100
A199: Mod 4 Sec C Sub F Item 2b - Number of Individuals | B199: M4CF2bHHNotIncluded2 | C199: ="'='" & MID(CELL("address",INDIRECT(B199)),$I$3+1,100) -> '='ALL Characteristics'!$L$170 | D199: =M4CF2bHHNotIncluded2 -> 0 | E199: Number | F199: M4CF2bHHNotIncluded2
A200: Mod 4 Sec C Sub F Item 3a - Program Name | B200: M4CF3aHHNotIncluded3 | C200: ="'='" & MID(CELL("address",INDIRECT(B200)),$I$3+1,100) -> '='ALL Characteristics'!$J$171 | D200: =IF(ISBLANK(M4CF3aHHNotIncluded3),"",M4CF3aHHNotIncluded3) ->  | E200: Text | F200: M4CF3aHHNotIncluded3 | G200: 100
A201: Mod 4 Sec C Sub F Item 3b - Number of Individuals | B201: M4CF3bHHNotIncluded3 | C201: ="'='" & MID(CELL("address",INDIRECT(B201)),$I$3+1,100) -> '='ALL Characteristics'!$L$171 | D201: =M4CF3bHHNotIncluded3 -> 0 | E201: Number | F201: M4CF3bHHNotIncluded3
... 686 more rows
